Workbook

Sheet Introductie
B2: Automatische gegevensupdate - versie 2024-03 → het openen kan iets langer duren dan voorheen - als u problemen ondervindt, kunt u de tool opnieuw downloaden op onze website →
B4: Tot op heden gaan de gegevens van Revtool slechts terug tot 1 januari 2018 !
C5: Welkom, deze heeft als doel om ondernemers bewust te maken van de indexering in de sector. Opgepast! Deze tool is geen juridisch instrument, maar louter een berekeningstool.
C7: Aan de slag in 4 stappen!
B14: Extra info: Profiteer van de volgende bonuspagina's als u verder onderzoek wilt doen (ze zijn standaard verborgen, klik op de witte knoppen om ze te laten verschijnen)
C15: Werkblad | D15: U kunt op deze pagina een prognose maken van wat de prijs na een bepaalde periode zou kunnen zijn. (Indien het project bijvoorbeeld pas over 10 maanden van start zal gaan.)
D16: De resultaten van deze prognoses blijven gebaseerd op inschattingen. Helaas kunnen wij toekomstige prijsontwikkelingen niet exact voorspellen.
C18: Werkblad | D18: Hier kunt u nagaan welke toeslagpercentages men kan gebruiken zonder dat de catalogusprijzen van uw leveranciers worden overschreden.
D19: U kunt ook de uiteindelijke impact op het budget van de klant berekenen door de prijswijziging als eerste opslag en het BTW-tarief als tweede opslag toe te passen. Op die manier kunt u het verschil zien tussen het uiteindelijke budget van de klant en het oorspronkelijke budget door ze te vergelijken.
C21: Werkbladen | D21: Deze werkbladen doen dienst als achtergrondinformatie. Hier kan je het cijfermateriaal raadplegen dat gebruikt wordt in de berekeningen.
D22: Je vindt op deze pagina’s ook tal van grafieken die de cijfers visueel voorstellen.
D23: Deze pagina's worden elke maand bijgewerkt. Vergeet niet telkens de laatste nieuwe versie te downloaden.
C25: Wij willen er op wijzen dat prijsindexering niet automatisch gebeurt. De met de klant overeengekomen prijs moet worden gerespecteerd en kan niet eenzijdig worden aangepast. In sommige gevallen voorzien de contractuele documenten of de aanbestedingsdocumenten in het gebruik van een herzieningsformule. In dit geval maakt het gebruik van deze formule het mogelijk een verandering in de prijs van materialen en arbeid door te voeren. (zowel naar boven als naar beneden) RevTool is ontwikkeld door Buildwise om haar leden bewust te maken van de impact van inflatie op de bouwprijzen. Buildwise kan niet verantwoordelijk worden gehouden voor de juiste toepassing van de tool. De berekeningen zijn afhankelijk van de overeenkomsten tussen de contracterende partijen. Buildwise biedt geen expliciete of impliciete garantie en de garantie van geschiktheid voor een specifiek doel is uitgesloten. De Gebruiker zal nagaan of de aldus verkregen resultaten kunnen worden gebruikt in het kader van zijn professionele doelstellingen en zal deze steeds controleren. Hij is als enige verantwoordelijk voor de nauwkeurigheid van de resultaten. Buildwise garandeert niet dat Revtool volledig vrij is van bugs of fouten. Buildwise zal alle redelijke inspanningen leveren om de goede werking van de tool te waarborgen.
C32: Voor vragen over de tool en het gebruik ervan kan je de afdeling "Beheer en kwaliteit" van Buildwise contacteren
C33: gebe@buildwise.be | D33: https://www.buildwise.be/expertise-ondersteuning/bedrijfsbeheer-bim/
C35: Voor juridische vragen over de toepassing van de herzieningsformules, modeldocumenten of juridische clausules kan je contact opnemen met Embuild of Bouwunie
C36: https://embuild.be/nl | D36: https://www.bouwunie.be/nl/
C44: naar de Juridische clausule van Buildwise

Sheet Grafiek evolutie van indexen
B2: Op dit blad ziet u de evolutie van alle prijsindexen die in deze tool beschikbaar zijn (vanaf 2018 tot op heden). U kunt de grafieken personaliseren met behulp van de grafiekfilterfunctie alnaargelang uw voorkeuren. Om de filterfunctionaliteit te gebruiken, klikt u op de grafiek en selecteert u het 3e symbool dat in de rechterbovenhoek verschijnt. Selecteer vervolgens de gegevens en perioden die u wilt tonen.
A7: ← | B7: klik op "+" / "-" → "toon" / "verberg" de inleiding → Wat kan ik op dit blad doen?
L106: Materiaaltype | M106: Natuursteen-materialen en Zand | AK106: Metalen | BR106: Hout | BV106: Bakstenen en cement | BZ106: Cement | CD106: Betonproducten | CK106: Brandstoffen en Bitumineuze Materialen | CV106: kunststoffen | DE106: GRYMAFER | DI106: Elektriciteit 04.5.1.0 | DJ106: Aardgas 04.5.2.1 | DK106: Water 04.4.1.0 | DL106: CPI Consumptie Prijs Index Statbel | DM106: Inflatie Index Statbel | DN106: Gezondheids Index Statbel | DO106: Afzetprijsindex in de bouwnijverheid Statbel | DP106: Huur index Statbel
B107: datum | C107: index "i" | D107: index "i2021" | E107: index "K1" | F107: index "K2" | G107: index "M" | H107: index "MM" | I107: prijsevolutie - volgens prijsherzieningsformule -index i 2021 | J107: prijsevolutie - volgens prijsherzieningsformule -index i | K107: prijsherzieningsformule - index i 2021 | L107: prijsherzieningsformule - index i | M107: OW 101 - Porfierslag - 40/56 | N107: OW 102 - Porfierslag - 20/32 | O107: OW 103 - Porfierslag - 6/20 | P107: OW 104 - Porfierslag - 2/6 | Q107: OW 109 - Zandsteenslag - 32/56 | R107: OW 110 - Zandsteenslag - 20/32 | S107: OW 111 - Zandsteenslag - 6/20 | T107: OW 112 - Zandsteenslag - 2/6 | U107: OW 117 - Kalksteen - 20/32 | V107: OW 118 - Kalksteen - 14/20 | W107: OW 119 - Kalksteen - 6/14 | X107: OW 120 - Kalksteen - 2/6 | Y107: OW 121 - Kalksteen - 0/2 - 0/4 | Z107: OW 130 - Binnenlands zand - voor gestabiliseerd zand | AA107: OW 131 - Binnenlands zand - voor beton | AB107: OW 132 - Binnenlands grind - grind 4/28 | AC107: OW 133 - Binnenlands grind - zand van de Maas | AD107: OW 134 - Binnenlands grind - gebroken 2/6 | AE107: OW 135 - Binnenlands grind - gebroken 6/20 | AF107: OW 136 - Binnenlands grind - gebroken 2/32 | AG107: OW 137 - Grind Rijnland - kaai Brussel | AH107: OW 137² - Grind Rijnland - kaai Antwerpen | AI107: OW 138 - Rivierzand Waal - kaai Brussel | AJ107: OW 138² - Rivierzand Waal - kaai Antwerpen | AK107: OW 205 - Koudgewalste dunne platen - 1mm | AL107: OW 210 - Profielstaal, kwaliteitsstaal - staal AE 355 D | AM107: OW 211 - Staafstaal, andere kwaliteiten - courant staal AE 235 A | AN107: OW 212 - Dikke platen, kwaliteitsstaal - staal AE 355 D | AO107: OW 213 - Profielstaal, kwaliteitsstaal - staal AE 235 C | AP107: OW 215 - Dikke platen, kwaliteitsstaal - staal AE 235 A | AQ107: OW 216 - platen gemiddeldes - courant staal A320 | AR107: OW 217 - Profielstaal, kwaliteitsstaal - courant staal AE 235 A | AS107: OW 218 - betonijzer - BE 500 grof | AT107: OW 219 - Staafstaal, andere kwaliteiten - staal AE 355 C | AU107: OW 220 - Dikke platen, kwaliteitsstaal - courant staal A 320 | AV107: OW 221 - Warmgewalste dunne platen - courant staal A 320 - 1,5 mm | AW107: OW 222 - Warmgewalste dunne platen - courant staal A 320 - 2 mm | AX107: OW 223 - Warmgewalste dunne platen - courant staal A 320 - 2,75 mm | AY107: OW 224 - betonijzer - diam. 10 tot 40 mm | AZ107: OW 226 - Damplanken - profielen AZ 18 - PAE 320 | BA107: OW 227 - vormgietijzer - | BB107: OW 230 - Staal - Handelsstaal | BC107: OW 231 - Staal - H-balken | BD107: OW 232 - Staal - Plaatstaal | BE107: OW 233 - Staal - Warmgewalste rollen | BF107: OW 234 - Staal - Koudgewalste rollen | BG107: OW 235 - Staal - Verzinkt | BH107: OW 236 - 304 roestvrij staal - koudgewalste coils | BI107: OW 259 - lood - onbehandeld | BJ107: OW 260 - Elektrolytisch koper - onbehandeld | BK107: OW 260 bis - koper - ruw | BL107: OW 261 - zink - onbehandeld | BM107: OW 261 bis - ruw zink | BN107: OW 262 - aluminium - onbehandeld | BO107: OW 262 bis - aluminium - brut | BP107: OW 262 ter - aluminiumplaten | BQ107: OW 263 - ruw nikkel | BR107: OW 339 - Gezaagd inlands naaldhout - epicea inlands - 2½ x 7 | BS107: OW 340 - Gezaagd inlands naaldhout - epicea inlands - 4/4 x 4 | BT107: OW 341 - Gezaagd naaldhout Noorse grenen - noorse berd - 2½ x 7 | BU107: OW 342 - Gezaagd naaldhout Noorse grenen - noorse berd - 4/4 x 4 | BV107: OW 442 - geperforeerde bouwblokken - L : 290 / b : 140 /h : 90 | BW107: OW 443 - geperforeerde bouwblokken - L : 290 / b : 140 / h : 140 | BX107: OW 445 - bakstenen - West-Vl. + Doornik - L : 190 / b : 09 / h : 65 | BY107: OW 448 - bakstenen - gevelstenen : L : 190 / b : 90 / h : 50 | BZ107: OW 462 - cement - klasse 32,5 | CA107: OW 464 - cement - klasse 42,5 | CB107: OW 466 - cement - klasse 52,5 | CC107: OW 467 - cement - zakken | CD107: OW 470 - betonproducten voor het wegennetwerk - betonnen tegels - 30/30/6 cm | CE107: OW 475 - betonproducten voor het wegennetwerk - betonnen straatstenen - 22/11/10 cm | CF107: OW 476 - betonproducten voor de bouwsector - holle betonblokken - klasse p - 0,8 39/19/19 | CG107: OW 477 - betonproducten voor de bouwsector - volle betonblokken - klasse p 2,2 - 39/19/19 | CH107: OW 480 - betonproducten voor het wegennetwerk - boordstenen - 21-411 - type 1A | CI107: OW 486 - betonproducten voor het wegennetwerk - buizen ongewapend - L : 2,5 m - diam. 80cm | CJ107: OW 486² - betonproducten voor het wegennetwerk - buizen ongewapend - L : 2 m - diam. 80cm | CK107: OW 549 - Diesel B7 aan de pomp - 10 ppm | CL107: OW 549² - Diesel B7 aan de pomp - 50 ppm | CM107: OW 549³ - Diesel B7 aan de pomp - - | CN107: OW 550 - Gasolie verwarming - 1000 ppm | CO107: OW 550² - Gasolie verwarming - 2000 ppm | CP107: OW 551 - Eurosuper 95 aan de pomp - 10 ppm | CQ107: OW 551² - Eurosuper 95 aan de pomp - 50 ppm | CR107: OW 551³ - Eurosuper 95 aan de pomp - - | CS107: OW 552 - LPG - - | CT107: OW 563 - Oliebitumen - vaten | CU107: OW 564 - Oliebitumen - valk | CV107: OW 671 - polyester (UP) - vloeibaar | CW107: OW 672 - PVC - Polyvinylchloride | CX107: OW 673 - polyethyleen lage dichtheid - PE/LD - lage dichtheid | CY107: OW 674 - polyethyleen hoge dichtheid - PE/HD - hoge dichtheid | CZ107: OW 675 - buizen in polyethyleen - PE/HD - hoge dichtheid | DA107: OW 680 - PVC - buizen | DB107: OW 681 - PELD - film | DC107: OW 683 - PEHD - spuitgieten | DD107: OW 684 - PP - polypropyleen (homopolymeer) | DE107: beton staven - GRYMAFER - BELMETAL - RSR | DF107: Koudgewalste draad - GRYMAFER - BELMETAL - FKC | DG107: Warmgewalste draad - GRYMAFER - BELMETAL - CWH | DH107: Netten - GRYMAFER - BELMETAL - TNM | DI107: Elektriciteit - Statbel - 04.5.1.0 | DJ107: Aardgas - Statbel - 04.5.2.1 | DK107: Water - Statbel - 04.4.1.0 | DL107: Consumptie Prijs Index Statbel | DM107: Inflatie Index Statbel | DN107: Gezondheids Index Statbel | DO107: Afzetprijsindex in de bouwnijverheid - Statbel | DP107: Huur index Statbel | DS107: periode | DT107: 49.41 - Goederenvervoer over de weg | DU107: 50.2 - Zee- en kustvaart, goederenvervoer | DV107: 52.1 - Opslag en bewaring | DW107: 52.24 - Behandeling | DX107: 53.2 - Andere post- en koeriersdiensten | DY107: 61 - Telecommunicatie | DZ107: 62 - Programmering, advies en en andere IT-activiteiten | EA107: 71 - Architecten en ingenieurs; technische controle en analyse | EB107: 73 - Reclame en marktonderzoek | EC107: 78 - Activiteiten in verband met werkgelegenheid | ED107: 80 - Privé onderzoek en veiligheid | EE107: 81.2 - Schoonmaakactiviteiten | EF107: 90 - Energie | EG107: 255 - Metallurgie en producten van metaal (24-25) | EH107: 257 - Metaalverwerking (25-30) | EI107: 267 - Vervaardiging van elektrische machines en van audio-, video- en communicatieapparatuur (261-264 + 27) | EJ107: 800 - Overige winning van delfstoffen | EK107: 810 - Winning van steen, zand en klei | EL107: 811 - Winning van bouw- en siersteen, kalksteen, gips, krijt en leisteen | EM107: 812 - Winning van grind, zand, klei en kaolien | EN107: 1083 - Verwerking van thee en koffie | EO107: 1105 - Vervaardiging van bier | EP107: 1393 - Vervaardiging van vloerkleden en tapijt | EQ107: 1412 - Vervaardiging van werkkleding | ER107: 1600 - Houtindustrie en vervaardiging van artikelen van hout en van kurk, exclusief meubelen; vervaardiging van artikelen van riet en van vlechtwerk | ES107: 1610 - Zagen en schaven van hout | ET107: 1620 - Vervaardiging van artikelen van hout, kurk, riet of vlechtwerk | EU107: 1621 - Vervaardiging van fineer en van panelen op basis van hout | EV107: 1623 - Vervaardiging van ander schrijn- en timmerwerk | EW107: 1700 - Vervaardiging van papier en papierwaren | EX107: 1920 - Vervaardiging van geraffineerde aardolieproducten | EY107: 2000 - Vervaardiging van chemische producten | EZ107: 2010 - Vervaardiging van chemische basisproducten, kunstmeststoffen en stikstofverbindingen en van kunststoffen en synthetische rubber in primaire vormen | FA107: 2012 - Vervaardiging van kleurstoffen en pigmenten | FB107: 2013 - Vervaardiging van andere anorganische chemische basisproducten | FC107: 2016 - Vervaardiging van kunststoffen in primaire vormen | FD107: 2030 - Vervaardiging van verf, vernis e.d., drukinkt en mastiek | FE107: 2200 - Vervaardiging van producten van rubber of kunststof | FF107: 2210 - Vervaardiging van producten van rubber | FG107: 2220 - Vervaardiging van producten van kunststof | FH107: 2221 - Vervaardiging van platen, vellen, buizen en profielen van kunststof | FI107: 2222 - Vervaardiging van verpakkingsmateriaal van kunststof | FJ107: 2223 - Vervaardiging van kunststofartikelen voor de bouw | FK107: 2300 - Vervaardiging van andere niet-metaalhoudende minerale producten | FL107: 2310 - Vervaardiging van glas en glaswerk | FM107: 2312 - Vormen en bewerken van vlakglas | FN107: 2330 - Vervaardiging van producten voor de bouw, van klei | FO107: 2332 - Vervaardiging van bakstenen, tegels en producten voor de bouw van gebakken klei | FP107: 2350 - Vervaardiging van cement, kalk en gips | FQ107: 2351 - Vervaardiging van cement | FR107: 2360 - Vervaardiging van artikelen van beton, cement en gips | FS107: 2361 - Vervaardiging van artikelen van beton voor de bouw | FT107: 2363 - Vervaardiging van stortklare beton | FU107: 2369 - Vervaardiging van andere artikelen van beton, gips en cement | FV107: 2370 - Houwen, bewerken en afwerken van natuursteen | FW107: 2390 - Vervaardiging van andere schuurmiddelen en niet-metaalhoudende minerale producten n.e.g. | FX107: 2400 - Vervaardiging van metalen in primaire vorm | FY107: 2410 - Vervaardiging van ijzer en staal en van ferrolegeringen | FZ107: 2430 - Vervaardiging van andere producten van de eerste verwerking van staal | GA107: 2434 - Koudtrekken van draad | GB107: 2440 - Productie van edele metalen en van andere non-ferrometalen | GC107: 2444 - Productie van koper | GD107: 2450 - Gieten van metalen | GE107: 2451 - Gieten van ijzer | GF107: 2500 - Vervaardiging van informaticaproducten en van elektronische en optische producten | GG107: 2510 - Vervaardiging van metalen constructiewerken | GH107: 2511 - Vervaardiging van metalen constructiewerken en delen daarvan | GI107: 2512 - Vervaardiging van metalen deuren en vensters | GJ107: 2520 - Vervaardiging van tanks, reservoirs en bergingsmiddelen, van metaal | GK107: 2521 - Vervaardiging van radiatoren en ketels voor centrale verwarming | GL107: 2600 - Manufacture of computer, electronic and optical products | GM107: 2630 - Communicatieapparatuur (productie) | GN107: 2700 - Vervaardiging van elektrische apparatuur | GO107: 2730 - Vervaardiging van kabels en van schakelaars, stekkers, stopcontacten e. d. | GP107: 2733 - Vervaardiging van schakelaars, stekkers, stopcontacten e.d. | GQ107: 2740 - Vervaardiging van lampen en verlichtingsapparaten | GR107: 2750 - Vervaardiging van huishoudapparaten | GS107: 2800 - Vervaardiging van machines, apparaten en werktuigen, n.e.g. | GT107: 2822 - Vervaardiging van hijs-, hef- en transportwerktuigen | GU107: 2900 - Vervaardiging en assemblage van motorvoertuigen, aanhangwagens en opleggers | GV107: 3100 - Vervaardiging van meubelen | GW107: 3101 - Vervaardiging van kantoor- en winkelmeubelen | GX107: 3102 - Vervaardiging van keukenmeubelen | GY107: 3200 - Overige industrie | GZ107: 3300 - Reparatie en installatie van machines en apparaten | HA107: 3500 - Productie en distributie van elektriciteit, gas, stoom en gekoelde lucht | HB107: 3510 - Opwekking, transmissie en distributie van elektriciteit | HC107: 3520 - Productie en distributie van gas | HD107: 3600 - Winning, behandeling en distributie van water | HF107: Période | HG107: index "s" - cat A (< 10 p) | HH107: index "s" - cat A (van 10 tot 19 p) | HI107: index "s" - cat A (≥ 20 p) | HJ107: index "s" - cat B (< 10 p) | HK107: index "s" - cat B (van 10 tot 19 p) | HL107: index "s" - cat B (≥ 20 p) | HM107: index "s" - cat C (< 10 p) | HN107: index "s" - cat C (van 10 tot 19 p) | HO107: index "s" - cat C (≥ 20 p) | HP107: index "s" - cat D (< 10 p) | HQ107: index "s" - cat D (van 10 tot 19 p) | HR107: index "s" - cat D (≥ 20 p) | HS107: index "s" - elektriciens (< 10 p) | HT107: index "s" - elektriciens (≥ 10 p) | HU107: Index T0 - asfalteerders | HV107: Index T1 - asfalteerders | HW107: Index T2 - asfalteerders | HX107: Index T3 - asfalteerders | HY107: Index T4 - asfalteerders | HZ107: Index T5 - asfalteerders | IA107: prijsevolutie - volgens prijsherzieningsformule -index i 2021 | IB107: prijsevolutie - volgens prijsherzieningsformule -index i | IC107: prijsherzieningsformule - index i 2021 | ID107: prijsherzieningsformule - index i | IE107: PC 124 - bouw - arbeiders | IF107: PC 200 - bedienden | IG107: PC 149.01 - elektriciens - arbeiders | IH107: PC 116.0001 - Chemische industrie - arbeiders | II107: PC 121 - Schoonmaak - arbeiders | IJ107: PC 111.0030 - Staalbouw - arbeiders | IK107: PC 209 - Staalbouw - bedienden | IL107: PC 126 - Houtverwerking - arbeiders | IM107: PC 126 - Houtverwerking - bedienden | IN107: PC 115.0003 - beglazing - arbeiders
B108: =Standaardindexen!C31 -> 2018-01-01 | C108: =IFERROR(IF(Standaardindexen!D31/Standaardindexen!D$31=0,NA(),Standaardindexen!D31/Standaardindexen!D$31),NA()) -> 1 | D108: =IFERROR(IF(Standaardindexen!E31/Standaardindexen!E$31=0,NA(),Standaardindexen!E31/Standaardindexen!E$31),NA()) -> 1 | E108: =IFERROR(IF(Standaardindexen!F31/Standaardindexen!F$31=0,NA(),Standaardindexen!F31/Standaardindexen!F$31),NA()) -> 1 | F108: =IFERROR(IF(Standaardindexen!G31/Standaardindexen!G$31=0,NA(),Standaardindexen!G31/Standaardindexen!G$31),NA()) -> 1 | G108: =IFERROR(IF(Standaardindexen!H31/Standaardindexen!H$31=0,NA(),Standaardindexen!H31/Standaardindexen!H$31),NA()) -> 1 | H108: =IFERROR(IF(Standaardindexen!I31/Standaardindexen!I$31=0,NA(),Standaardindexen!I31/Standaardindexen!I$31),NA()) -> 1 | I108: 1 | J108: 1 | K108: 1 | L108: 1 | M108: =IFERROR(IF('Materiaalindexen o.w.'!D34/'Materiaalindexen o.w.'!D$34=0,NA(),'Materiaalindexen o.w.'!D34/'Materiaalindexen o.w.'!D$34),NA()) -> 1 | N108: =IFERROR(IF('Materiaalindexen o.w.'!E34/'Materiaalindexen o.w.'!E$34=0,NA(),'Materiaalindexen o.w.'!E34/'Materiaalindexen o.w.'!E$34),NA()) -> 1 | O108: =IFERROR(IF('Materiaalindexen o.w.'!F34/'Materiaalindexen o.w.'!F$34=0,NA(),'Materiaalindexen o.w.'!F34/'Materiaalindexen o.w.'!F$34),NA()) -> 1 | P108: =IFERROR(IF('Materiaalindexen o.w.'!G34/'Materiaalindexen o.w.'!G$34=0,NA(),'Materiaalindexen o.w.'!G34/'Materiaalindexen o.w.'!G$34),NA()) -> 1 | Q108: =IFERROR(IF('Materiaalindexen o.w.'!H34/'Materiaalindexen o.w.'!H$34=0,NA(),'Materiaalindexen o.w.'!H34/'Materiaalindexen o.w.'!H$34),NA()) -> 1 | R108: =IFERROR(IF('Materiaalindexen o.w.'!I34/'Materiaalindexen o.w.'!I$34=0,NA(),'Materiaalindexen o.w.'!I34/'Materiaalindexen o.w.'!I$34),NA()) -> 1 | S108: =IFERROR(IF('Materiaalindexen o.w.'!J34/'Materiaalindexen o.w.'!J$34=0,NA(),'Materiaalindexen o.w.'!J34/'Materiaalindexen o.w.'!J$34),NA()) -> 1 | T108: =IFERROR(IF('Materiaalindexen o.w.'!K34/'Materiaalindexen o.w.'!K$34=0,NA(),'Materiaalindexen o.w.'!K34/'Materiaalindexen o.w.'!K$34),NA()) -> 1 | U108: =IFERROR(IF('Materiaalindexen o.w.'!L34/'Materiaalindexen o.w.'!L$34=0,NA(),'Materiaalindexen o.w.'!L34/'Materiaalindexen o.w.'!L$34),NA()) -> 1 | V108: =IFERROR(IF('Materiaalindexen o.w.'!M34/'Materiaalindexen o.w.'!M$34=0,NA(),'Materiaalindexen o.w.'!M34/'Materiaalindexen o.w.'!M$34),NA()) -> 1 | W108: =IFERROR(IF('Materiaalindexen o.w.'!N34/'Materiaalindexen o.w.'!N$34=0,NA(),'Materiaalindexen o.w.'!N34/'Materiaalindexen o.w.'!N$34),NA()) -> 1 | X108: =IFERROR(IF('Materiaalindexen o.w.'!O34/'Materiaalindexen o.w.'!O$34=0,NA(),'Materiaalindexen o.w.'!O34/'Materiaalindexen o.w.'!O$34),NA()) -> 1 | Y108: =IFERROR(IF('Materiaalindexen o.w.'!P34/'Materiaalindexen o.w.'!P$34=0,NA(),'Materiaalindexen o.w.'!P34/'Materiaalindexen o.w.'!P$34),NA()) -> 1 | Z108: =IFERROR(IF('Materiaalindexen o.w.'!Q34/'Materiaalindexen o.w.'!Q$34=0,NA(),'Materiaalindexen o.w.'!Q34/'Materiaalindexen o.w.'!Q$34),NA()) -> 1 | AA108: =IFERROR(IF('Materiaalindexen o.w.'!R34/'Materiaalindexen o.w.'!R$34=0,NA(),'Materiaalindexen o.w.'!R34/'Materiaalindexen o.w.'!R$34),NA()) -> 1 | AB108: =IFERROR(IF('Materiaalindexen o.w.'!S34/'Materiaalindexen o.w.'!S$34=0,NA(),'Materiaalindexen o.w.'!S34/'Materiaalindexen o.w.'!S$34),NA()) -> 1 | AC108: =IFERROR(IF('Materiaalindexen o.w.'!T34/'Materiaalindexen o.w.'!T$34=0,NA(),'Materiaalindexen o.w.'!T34/'Materiaalindexen o.w.'!T$34),NA()) -> 1 | AD108: =IFERROR(IF('Materiaalindexen o.w.'!U34/'Materiaalindexen o.w.'!U$34=0,NA(),'Materiaalindexen o.w.'!U34/'Materiaalindexen o.w.'!U$34),NA()) -> 1 | AE108: =IFERROR(IF('Materiaalindexen o.w.'!V34/'Materiaalindexen o.w.'!V$34=0,NA(),'Materiaalindexen o.w.'!V34/'Materiaalindexen o.w.'!V$34),NA()) -> 1 | AF108: =IFERROR(IF('Materiaalindexen o.w.'!W34/'Materiaalindexen o.w.'!W$34=0,NA(),'Materiaalindexen o.w.'!W34/'Materiaalindexen o.w.'!W$34),NA()) -> 1 | AG108: =IFERROR(IF('Materiaalindexen o.w.'!X34/'Materiaalindexen o.w.'!X$34=0,NA(),'Materiaalindexen o.w.'!X34/'Materiaalindexen o.w.'!X$34),NA()) -> 1 | AH108: =IFERROR(IF('Materiaalindexen o.w.'!Y34/'Materiaalindexen o.w.'!Y$34=0,NA(),'Materiaalindexen o.w.'!Y34/'Materiaalindexen o.w.'!Y$34),NA()) -> 1 | AI108: =IFERROR(IF('Materiaalindexen o.w.'!Z34/'Materiaalindexen o.w.'!Z$34=0,NA(),'Materiaalindexen o.w.'!Z34/'Materiaalindexen o.w.'!Z$34),NA()) -> 1 | AJ108: =IFERROR(IF('Materiaalindexen o.w.'!AA34/'Materiaalindexen o.w.'!AA$34=0,NA(),'Materiaalindexen o.w.'!AA34/'Materiaalindexen o.w.'!AA$34),NA()) -> 1 | AK108: =IFERROR(IF('Materiaalindexen o.w.'!AB34/'Materiaalindexen o.w.'!AB$34=0,NA(),'Materiaalindexen o.w.'!AB34/'Materiaalindexen o.w.'!AB$34),NA()) -> 1 | AL108: =IFERROR(IF('Materiaalindexen o.w.'!AC34/'Materiaalindexen o.w.'!AC$34=0,NA(),'Materiaalindexen o.w.'!AC34/'Materiaalindexen o.w.'!AC$34),NA()) -> 1 | AM108: =IFERROR(IF('Materiaalindexen o.w.'!AD34/'Materiaalindexen o.w.'!AD$34=0,NA(),'Materiaalindexen o.w.'!AD34/'Materiaalindexen o.w.'!AD$34),NA()) -> 1 | AN108: =IFERROR(IF('Materiaalindexen o.w.'!AE34/'Materiaalindexen o.w.'!AE$34=0,NA(),'Materiaalindexen o.w.'!AE34/'Materiaalindexen o.w.'!AE$34),NA()) -> 1 | AO108: =IFERROR(IF('Materiaalindexen o.w.'!AF34/'Materiaalindexen o.w.'!AF$34=0,NA(),'Materiaalindexen o.w.'!AF34/'Materiaalindexen o.w.'!AF$34),NA()) -> 1 | AP108: =IFERROR(IF('Materiaalindexen o.w.'!AG34/'Materiaalindexen o.w.'!AG$34=0,NA(),'Materiaalindexen o.w.'!AG34/'Materiaalindexen o.w.'!AG$34),NA()) -> 1 | AQ108: =IFERROR(IF('Materiaalindexen o.w.'!AH34/'Materiaalindexen o.w.'!AH$34=0,NA(),'Materiaalindexen o.w.'!AH34/'Materiaalindexen o.w.'!AH$34),NA()) -> 1 | AR108: =IFERROR(IF('Materiaalindexen o.w.'!AI34/'Materiaalindexen o.w.'!AI$34=0,NA(),'Materiaalindexen o.w.'!AI34/'Materiaalindexen o.w.'!AI$34),NA()) -> 1 | AS108: =IFERROR(IF('Materiaalindexen o.w.'!AJ34/'Materiaalindexen o.w.'!AJ$34=0,NA(),'Materiaalindexen o.w.'!AJ34/'Materiaalindexen o.w.'!AJ$34),NA()) -> 1 | AT108: =IFERROR(IF('Materiaalindexen o.w.'!AK34/'Materiaalindexen o.w.'!AK$34=0,NA(),'Materiaalindexen o.w.'!AK34/'Materiaalindexen o.w.'!AK$34),NA()) -> 1 | AU108: =IFERROR(IF('Materiaalindexen o.w.'!AL34/'Materiaalindexen o.w.'!AL$34=0,NA(),'Materiaalindexen o.w.'!AL34/'Materiaalindexen o.w.'!AL$34),NA()) -> 1 | AV108: =IFERROR(IF('Materiaalindexen o.w.'!AM34/'Materiaalindexen o.w.'!AM$34=0,NA(),'Materiaalindexen o.w.'!AM34/'Materiaalindexen o.w.'!AM$34),NA()) -> 1 | AW108: =IFERROR(IF('Materiaalindexen o.w.'!AN34/'Materiaalindexen o.w.'!AN$34=0,NA(),'Materiaalindexen o.w.'!AN34/'Materiaalindexen o.w.'!AN$34),NA()) -> 1 | AX108: =IFERROR(IF('Materiaalindexen o.w.'!AO34/'Materiaalindexen o.w.'!AO$34=0,NA(),'Materiaalindexen o.w.'!AO34/'Materiaalindexen o.w.'!AO$34),NA()) -> 1 | AY108: =IFERROR(IF('Materiaalindexen o.w.'!AP34/'Materiaalindexen o.w.'!AP$34=0,NA(),'Materiaalindexen o.w.'!AP34/'Materiaalindexen o.w.'!AP$34),NA()) -> 1 | AZ108: =IFERROR(IF('Materiaalindexen o.w.'!AQ34/'Materiaalindexen o.w.'!AQ$34=0,NA(),'Materiaalindexen o.w.'!AQ34/'Materiaalindexen o.w.'!AQ$34),NA()) -> 1 | BA108: =IFERROR(IF('Materiaalindexen o.w.'!AR34/'Materiaalindexen o.w.'!AR$34=0,NA(),'Materiaalindexen o.w.'!AR34/'Materiaalindexen o.w.'!AR$34),NA()) -> 1 | BB108: =IFERROR(IF('Materiaalindexen o.w.'!AS34/'Materiaalindexen o.w.'!AS$34=0,NA(),'Materiaalindexen o.w.'!AS34/'Materiaalindexen o.w.'!AS$34),NA()) ->  | BC108: =IFERROR(IF('Materiaalindexen o.w.'!AT34/'Materiaalindexen o.w.'!AT$34=0,NA(),'Materiaalindexen o.w.'!AT34/'Materiaalindexen o.w.'!AT$34),NA()) ->  | BD108: =IFERROR(IF('Materiaalindexen o.w.'!AU34/'Materiaalindexen o.w.'!AU$34=0,NA(),'Materiaalindexen o.w.'!AU34/'Materiaalindexen o.w.'!AU$34),NA()) ->  | BE108: =IFERROR(IF('Materiaalindexen o.w.'!AV34/'Materiaalindexen o.w.'!AV$34=0,NA(),'Materiaalindexen o.w.'!AV34/'Materiaalindexen o.w.'!AV$34),NA()) ->  | BF108: =IFERROR(IF('Materiaalindexen o.w.'!AW34/'Materiaalindexen o.w.'!AW$34=0,NA(),'Materiaalindexen o.w.'!AW34/'Materiaalindexen o.w.'!AW$34),NA()) ->  | BG108: =IFERROR(IF('Materiaalindexen o.w.'!AX34/'Materiaalindexen o.w.'!AX$34=0,NA(),'Materiaalindexen o.w.'!AX34/'Materiaalindexen o.w.'!AX$34),NA()) ->  | BH108: =IFERROR(IF('Materiaalindexen o.w.'!AY34/'Materiaalindexen o.w.'!AY$34=0,NA(),'Materiaalindexen o.w.'!AY34/'Materiaalindexen o.w.'!AY$34),NA()) ->  | BI108: =IFERROR(IF('Materiaalindexen o.w.'!AZ34/'Materiaalindexen o.w.'!AZ$34=0,NA(),'Materiaalindexen o.w.'!AZ34/'Materiaalindexen o.w.'!AZ$34),NA()) -> 1 | BJ108: =IFERROR(IF('Materiaalindexen o.w.'!BA34/'Materiaalindexen o.w.'!BA$34=0,NA(),'Materiaalindexen o.w.'!BA34/'Materiaalindexen o.w.'!BA$34),NA()) -> 1 | BK108: =IFERROR(IF('Materiaalindexen o.w.'!BB34/'Materiaalindexen o.w.'!BB$34=0,NA(),'Materiaalindexen o.w.'!BB34/'Materiaalindexen o.w.'!BB$34),NA()) -> 1 | BL108: =IFERROR(IF('Materiaalindexen o.w.'!BC34/'Materiaalindexen o.w.'!BC$34=0,NA(),'Materiaalindexen o.w.'!BC34/'Materiaalindexen o.w.'!BC$34),NA()) -> 1 | BM108: =IFERROR(IF('Materiaalindexen o.w.'!BD34/'Materiaalindexen o.w.'!BD$34=0,NA(),'Materiaalindexen o.w.'!BD34/'Materiaalindexen o.w.'!BD$34),NA()) -> 1 | BN108: =IFERROR(IF('Materiaalindexen o.w.'!BE34/'Materiaalindexen o.w.'!BE$34=0,NA(),'Materiaalindexen o.w.'!BE34/'Materiaalindexen o.w.'!BE$34),NA()) -> 1 | BO108: =IFERROR(IF('Materiaalindexen o.w.'!BF34/'Materiaalindexen o.w.'!BF$34=0,NA(),'Materiaalindexen o.w.'!BF34/'Materiaalindexen o.w.'!BF$34),NA()) -> 1 | BP108: =IFERROR(IF('Materiaalindexen o.w.'!BG34/'Materiaalindexen o.w.'!BG$34=0,NA(),'Materiaalindexen o.w.'!BG34/'Materiaalindexen o.w.'!BG$34),NA()) ->  | BQ108: =IFERROR(IF('Materiaalindexen o.w.'!BH34/'Materiaalindexen o.w.'!BH$34=0,NA(),'Materiaalindexen o.w.'!BH34/'Materiaalindexen o.w.'!BH$34),NA()) -> 1 | BR108: =IFERROR(IF('Materiaalindexen o.w.'!BI34/'Materiaalindexen o.w.'!BI$34=0,NA(),'Materiaalindexen o.w.'!BI34/'Materiaalindexen o.w.'!BI$34),NA()) -> 1 | BS108: =IFERROR(IF('Materiaalindexen o.w.'!BJ34/'Materiaalindexen o.w.'!BJ$34=0,NA(),'Materiaalindexen o.w.'!BJ34/'Materiaalindexen o.w.'!BJ$34),NA()) -> 1 | BT108: =IFERROR(IF('Materiaalindexen o.w.'!BK34/'Materiaalindexen o.w.'!BK$34=0,NA(),'Materiaalindexen o.w.'!BK34/'Materiaalindexen o.w.'!BK$34),NA()) -> 1 | BU108: =IFERROR(IF('Materiaalindexen o.w.'!BL34/'Materiaalindexen o.w.'!BL$34=0,NA(),'Materiaalindexen o.w.'!BL34/'Materiaalindexen o.w.'!BL$34),NA()) -> 1 | BV108: =IFERROR(IF('Materiaalindexen o.w.'!BM34/'Materiaalindexen o.w.'!BM$34=0,NA(),'Materiaalindexen o.w.'!BM34/'Materiaalindexen o.w.'!BM$34),NA()) -> 1 | BW108: =IFERROR(IF('Materiaalindexen o.w.'!BN34/'Materiaalindexen o.w.'!BN$34=0,NA(),'Materiaalindexen o.w.'!BN34/'Materiaalindexen o.w.'!BN$34),NA()) -> 1 | BX108: =IFERROR(IF('Materiaalindexen o.w.'!BO34/'Materiaalindexen o.w.'!BO$34=0,NA(),'Materiaalindexen o.w.'!BO34/'Materiaalindexen o.w.'!BO$34),NA()) -> 1 | BY108: =IFERROR(IF('Materiaalindexen o.w.'!BP34/'Materiaalindexen o.w.'!BP$34=0,NA(),'Materiaalindexen o.w.'!BP34/'Materiaalindexen o.w.'!BP$34),NA()) -> 1 | BZ108: =IFERROR(IF('Materiaalindexen o.w.'!BQ34/'Materiaalindexen o.w.'!BQ$34=0,NA(),'Materiaalindexen o.w.'!BQ34/'Materiaalindexen o.w.'!BQ$34),NA()) -> 1 | CA108: =IFERROR(IF('Materiaalindexen o.w.'!BR34/'Materiaalindexen o.w.'!BR$34=0,NA(),'Materiaalindexen o.w.'!BR34/'Materiaalindexen o.w.'!BR$34),NA()) -> 1 | CB108: =IFERROR(IF('Materiaalindexen o.w.'!BS34/'Materiaalindexen o.w.'!BS$34=0,NA(),'Materiaalindexen o.w.'!BS34/'Materiaalindexen o.w.'!BS$34),NA()) -> 1 | CC108: =IFERROR(IF('Materiaalindexen o.w.'!BT34/'Materiaalindexen o.w.'!BT$34=0,NA(),'Materiaalindexen o.w.'!BT34/'Materiaalindexen o.w.'!BT$34),NA()) -> 1 | CD108: =IFERROR(IF('Materiaalindexen o.w.'!BU34/'Materiaalindexen o.w.'!BU$34=0,NA(),'Materiaalindexen o.w.'!BU34/'Materiaalindexen o.w.'!BU$34),NA()) -> 1 | CE108: =IFERROR(IF('Materiaalindexen o.w.'!BV34/'Materiaalindexen o.w.'!BV$34=0,NA(),'Materiaalindexen o.w.'!BV34/'Materiaalindexen o.w.'!BV$34),NA()) -> 1 | CF108: =IFERROR(IF('Materiaalindexen o.w.'!BW34/'Materiaalindexen o.w.'!BW$34=0,NA(),'Materiaalindexen o.w.'!BW34/'Materiaalindexen o.w.'!BW$34),NA()) -> 1 | CG108: =IFERROR(IF('Materiaalindexen o.w.'!BX34/'Materiaalindexen o.w.'!BX$34=0,NA(),'Materiaalindexen o.w.'!BX34/'Materiaalindexen o.w.'!BX$34),NA()) -> 1 | CH108: =IFERROR(IF('Materiaalindexen o.w.'!BY34/'Materiaalindexen o.w.'!BY$34=0,NA(),'Materiaalindexen o.w.'!BY34/'Materiaalindexen o.w.'!BY$34),NA()) -> 1 | CI108: =IFERROR(IF('Materiaalindexen o.w.'!BZ34/'Materiaalindexen o.w.'!BZ$34=0,NA(),'Materiaalindexen o.w.'!BZ34/'Materiaalindexen o.w.'!BZ$34),NA()) -> 1 | CJ108: =IFERROR(IF('Materiaalindexen o.w.'!CA34/'Materiaalindexen o.w.'!CA$34=0,NA(),'Materiaalindexen o.w.'!CA34/'Materiaalindexen o.w.'!CA$34),NA()) -> 1 | CK108: =IFERROR(IF('Materiaalindexen o.w.'!CB34/'Materiaalindexen o.w.'!CB$34=0,NA(),'Materiaalindexen o.w.'!CB34/'Materiaalindexen o.w.'!CB$34),NA()) -> 1 | CL108: =IFERROR(IF('Materiaalindexen o.w.'!CC34/'Materiaalindexen o.w.'!CC$34=0,NA(),'Materiaalindexen o.w.'!CC34/'Materiaalindexen o.w.'!CC$34),NA()) -> 1 | CM108: =IFERROR(IF('Materiaalindexen o.w.'!CD34/'Materiaalindexen o.w.'!CD$34=0,NA(),'Materiaalindexen o.w.'!CD34/'Materiaalindexen o.w.'!CD$34),NA()) -> 1 | CN108: =IFERROR(IF('Materiaalindexen o.w.'!CE34/'Materiaalindexen o.w.'!CE$34=0,NA(),'Materiaalindexen o.w.'!CE34/'Materiaalindexen o.w.'!CE$34),NA()) -> 1 | CO108: =IFERROR(IF('Materiaalindexen o.w.'!CF34/'Materiaalindexen o.w.'!CF$34=0,NA(),'Materiaalindexen o.w.'!CF34/'Materiaalindexen o.w.'!CF$34),NA()) -> 1 | CP108: =IFERROR(IF('Materiaalindexen o.w.'!CG34/'Materiaalindexen o.w.'!CG$34=0,NA(),'Materiaalindexen o.w.'!CG34/'Materiaalindexen o.w.'!CG$34),NA()) -> 1 | CQ108: =IFERROR(IF('Materiaalindexen o.w.'!CH34/'Materiaalindexen o.w.'!CH$34=0,NA(),'Materiaalindexen o.w.'!CH34/'Materiaalindexen o.w.'!CH$34),NA()) -> 1 | CR108: =IFERROR(IF('Materiaalindexen o.w.'!CI34/'Materiaalindexen o.w.'!CI$34=0,NA(),'Materiaalindexen o.w.'!CI34/'Materiaalindexen o.w.'!CI$34),NA()) -> 1 | CS108: =IFERROR(IF('Materiaalindexen o.w.'!CJ34/'Materiaalindexen o.w.'!CJ$34=0,NA(),'Materiaalindexen o.w.'!CJ34/'Materiaalindexen o.w.'!CJ$34),NA()) -> 1 | CT108: =IFERROR(IF('Materiaalindexen o.w.'!CK34/'Materiaalindexen o.w.'!CK$34=0,NA(),'Materiaalindexen o.w.'!CK34/'Materiaalindexen o.w.'!CK$34),NA()) -> 1 | CU108: =IFERROR(IF('Materiaalindexen o.w.'!CL34/'Materiaalindexen o.w.'!CL$34=0,NA(),'Materiaalindexen o.w.'!CL34/'Materiaalindexen o.w.'!CL$34),NA()) -> 1 | CV108: =IFERROR(IF('Materiaalindexen o.w.'!CM34/'Materiaalindexen o.w.'!CM$34=0,NA(),'Materiaalindexen o.w.'!CM34/'Materiaalindexen o.w.'!CM$34),NA()) -> 1 | CW108: =IFERROR(IF('Materiaalindexen o.w.'!CN34/'Materiaalindexen o.w.'!CN$34=0,NA(),'Materiaalindexen o.w.'!CN34/'Materiaalindexen o.w.'!CN$34),NA()) -> 1 | CX108: =IFERROR(IF('Materiaalindexen o.w.'!CO34/'Materiaalindexen o.w.'!CO$34=0,NA(),'Materiaalindexen o.w.'!CO34/'Materiaalindexen o.w.'!CO$34),NA()) -> 1 | CY108: =IFERROR(IF('Materiaalindexen o.w.'!CP34/'Materiaalindexen o.w.'!CP$34=0,NA(),'Materiaalindexen o.w.'!CP34/'Materiaalindexen o.w.'!CP$34),NA()) -> 1 | CZ108: =IFERROR(IF('Materiaalindexen o.w.'!CQ34/'Materiaalindexen o.w.'!CQ$34=0,NA(),'Materiaalindexen o.w.'!CQ34/'Materiaalindexen o.w.'!CQ$34),NA()) -> 1 | DA108: =IFERROR(IF('Materiaalindexen o.w.'!CR34/'Materiaalindexen o.w.'!CR$34=0,NA(),'Materiaalindexen o.w.'!CR34/'Materiaalindexen o.w.'!CR$34),NA()) ->  | DB108: =IFERROR(IF('Materiaalindexen o.w.'!CS34/'Materiaalindexen o.w.'!CS$34=0,NA(),'Materiaalindexen o.w.'!CS34/'Materiaalindexen o.w.'!CS$34),NA()) ->  | DC108: =IFERROR(IF('Materiaalindexen o.w.'!CT34/'Materiaalindexen o.w.'!CT$34=0,NA(),'Materiaalindexen o.w.'!CT34/'Materiaalindexen o.w.'!CT$34),NA()) ->  | DD108: =IFERROR(IF('Materiaalindexen o.w.'!CU34/'Materiaalindexen o.w.'!CU$34=0,NA(),'Materiaalindexen o.w.'!CU34/'Materiaalindexen o.w.'!CU$34),NA()) ->  | DE108: =IFERROR(IF('Grymafer indexen'!D33/'Grymafer indexen'!D$33=0,NA(),'Grymafer indexen'!D33/'Grymafer indexen'!D$33),NA()) -> 1 | DF108: =IFERROR(IF('Grymafer indexen'!E33/'Grymafer indexen'!E$33=0,NA(),'Grymafer indexen'!E33/'Grymafer indexen'!E$33),NA()) -> 1 | DG108: =IFERROR(IF('Grymafer indexen'!F33/'Grymafer indexen'!F$33=0,NA(),'Grymafer indexen'!F33/'Grymafer indexen'!F$33),NA()) -> 1 | DH108: =IFERROR(IF('Grymafer indexen'!G33/'Grymafer indexen'!G$33=0,NA(),'Grymafer indexen'!G33/'Grymafer indexen'!G$33),NA()) -> 1 | DI108: =IFERROR(IF('Materiaalindexen o.w.'!#REF!/'Materiaalindexen o.w.'!#REF!=0,NA(),'Materiaalindexen o.w.'!#REF!/'Materiaalindexen o.w.'!#REF!),NA()) ->  | DJ108: =IFERROR(IF('Materiaalindexen o.w.'!#REF!/'Materiaalindexen o.w.'!#REF!=0,NA(),'Materiaalindexen o.w.'!#REF!/'Materiaalindexen o.w.'!#REF!),NA()) ->  | DK108: =IFERROR(IF('Materiaalindexen o.w.'!#REF!/'Materiaalindexen o.w.'!#REF!=0,NA(),'Materiaalindexen o.w.'!#REF!/'Materiaalindexen o.w.'!#REF!),NA()) ->  | DL108: =IFERROR(IF('Materiaalindexen o.w.'!#REF!/'Materiaalindexen o.w.'!#REF!=0,NA(),'Materiaalindexen o.w.'!#REF!/'Materiaalindexen o.w.'!#REF!),NA()) ->  | DM108: =IFERROR(IF('Materiaalindexen o.w.'!#REF!/'Materiaalindexen o.w.'!#REF!=0,NA(),'Materiaalindexen o.w.'!#REF!/'Materiaalindexen o.w.'!#REF!),NA()) ->  | DN108: =IFERROR(IF('Materiaalindexen o.w.'!#REF!/'Materiaalindexen o.w.'!#REF!=0,NA(),'Materiaalindexen o.w.'!#REF!/'Materiaalindexen o.w.'!#REF!),NA()) ->  | DO108: =IFERROR(IF('Materiaalindexen o.w.'!#REF!/'Materiaalindexen o.w.'!#REF!=0,NA(),'Materiaalindexen o.w.'!#REF!/'Materiaalindexen o.w.'!#REF!),NA()) ->  | DP108: =IFERROR(IF('Materiaalindexen o.w.'!#REF!/'Materiaalindexen o.w.'!#REF!=0,NA(),'Materiaalindexen o.w.'!#REF!/'Materiaalindexen o.w.'!#REF!),NA()) ->  | DS108: =Standaardindexen!C31 -> 2018-01-01 | DT108: =IFERROR(IF('Indexen goederen & diensten'!D34/'Indexen goederen & diensten'!D$34=0,NA(),'Indexen goederen & diensten'!D34/'Indexen goederen & diensten'!D$34),NA()) -> 1 | DU108: =IFERROR(IF('Indexen goederen & diensten'!E34/'Indexen goederen & diensten'!E$34=0,NA(),'Indexen goederen & diensten'!E34/'Indexen goederen & diensten'!E$34),NA()) -> 1 | DV108: =IFERROR(IF('Indexen goederen & diensten'!F34/'Indexen goederen & diensten'!F$34=0,NA(),'Indexen goederen & diensten'!F34/'Indexen goederen & diensten'!F$34),NA()) -> 1 | DW108: =IFERROR(IF('Indexen goederen & diensten'!G34/'Indexen goederen & diensten'!G$34=0,NA(),'Indexen goederen & diensten'!G34/'Indexen goederen & diensten'!G$34),NA()) -> 1 | DX108: =IFERROR(IF('Indexen goederen & diensten'!H34/'Indexen goederen & diensten'!H$34=0,NA(),'Indexen goederen & diensten'!H34/'Indexen goederen & diensten'!H$34),NA()) -> 1 | DY108: =IFERROR(IF('Indexen goederen & diensten'!I34/'Indexen goederen & diensten'!I$34=0,NA(),'Indexen goederen & diensten'!I34/'Indexen goederen & diensten'!I$34),NA()) -> 1 | DZ108: =IFERROR(IF('Indexen goederen & diensten'!J34/'Indexen goederen & diensten'!J$34=0,NA(),'Indexen goederen & diensten'!J34/'Indexen goederen & diensten'!J$34),NA()) -> 1 | EA108: =IFERROR(IF('Indexen goederen & diensten'!K34/'Indexen goederen & diensten'!K$34=0,NA(),'Indexen goederen & diensten'!K34/'Indexen goederen & diensten'!K$34),NA()) -> 1 | EB108: =IFERROR(IF('Indexen goederen & diensten'!L34/'Indexen goederen & diensten'!L$34=0,NA(),'Indexen goederen & diensten'!L34/'Indexen goederen & diensten'!L$34),NA()) -> 1 | EC108: =IFERROR(IF('Indexen goederen & diensten'!M34/'Indexen goederen & diensten'!M$34=0,NA(),'Indexen goederen & diensten'!M34/'Indexen goederen & diensten'!M$34),NA()) -> 1 | ED108: =IFERROR(IF('Indexen goederen & diensten'!N34/'Indexen goederen & diensten'!N$34=0,NA(),'Indexen goederen & diensten'!N34/'Indexen goederen & diensten'!N$34),NA()) -> 1 | EE108: =IFERROR(IF('Indexen goederen & diensten'!O34/'Indexen goederen & diensten'!O$34=0,NA(),'Indexen goederen & diensten'!O34/'Indexen goederen & diensten'!O$34),NA()) -> 1 | EF108: =IFERROR(IF('Indexen goederen & diensten'!P34/'Indexen goederen & diensten'!P$34=0,NA(),'Indexen goederen & diensten'!P34/'Indexen goederen & diensten'!P$34),NA()) -> 1 | EG108: =IFERROR(IF('Indexen goederen & diensten'!Q34/'Indexen goederen & diensten'!Q$34=0,NA(),'Indexen goederen & diensten'!Q34/'Indexen goederen & diensten'!Q$34),NA()) -> 1 | EH108: =IFERROR(IF('Indexen goederen & diensten'!R34/'Indexen goederen & diensten'!R$34=0,NA(),'Indexen goederen & diensten'!R34/'Indexen goederen & diensten'!R$34),NA()) -> 1 | EI108: =IFERROR(IF('Indexen goederen & diensten'!S34/'Indexen goederen & diensten'!S$34=0,NA(),'Indexen goederen & diensten'!S34/'Indexen goederen & diensten'!S$34),NA()) -> 1 | EJ108: =IFERROR(IF('Indexen goederen & diensten'!T34/'Indexen goederen & diensten'!T$34=0,NA(),'Indexen goederen & diensten'!T34/'Indexen goederen & diensten'!T$34),NA()) -> 1 | EK108: =IFERROR(IF('Indexen goederen & diensten'!U34/'Indexen goederen & diensten'!U$34=0,NA(),'Indexen goederen & diensten'!U34/'Indexen goederen & diensten'!U$34),NA()) -> 1 | EL108: =IFERROR(IF('Indexen goederen & diensten'!V34/'Indexen goederen & diensten'!V$34=0,NA(),'Indexen goederen & diensten'!V34/'Indexen goederen & diensten'!V$34),NA()) -> 1 | EM108: =IFERROR(IF('Indexen goederen & diensten'!W34/'Indexen goederen & diensten'!W$34=0,NA(),'Indexen goederen & diensten'!W34/'Indexen goederen & diensten'!W$34),NA()) -> 1 | EN108: =IFERROR(IF('Indexen goederen & diensten'!X34/'Indexen goederen & diensten'!X$34=0,NA(),'Indexen goederen & diensten'!X34/'Indexen goederen & diensten'!X$34),NA()) -> 1 | EO108: =IFERROR(IF('Indexen goederen & diensten'!Y34/'Indexen goederen & diensten'!Y$34=0,NA(),'Indexen goederen & diensten'!Y34/'Indexen goederen & diensten'!Y$34),NA()) -> 1 | EP108: =IFERROR(IF('Indexen goederen & diensten'!Z34/'Indexen goederen & diensten'!Z$34=0,NA(),'Indexen goederen & diensten'!Z34/'Indexen goederen & diensten'!Z$34),NA()) -> 1 | EQ108: =IFERROR(IF('Indexen goederen & diensten'!AA34/'Indexen goederen & diensten'!AA$34=0,NA(),'Indexen goederen & diensten'!AA34/'Indexen goederen & diensten'!AA$34),NA()) -> 1 | ER108: =IFERROR(IF('Indexen goederen & diensten'!AB34/'Indexen goederen & diensten'!AB$34=0,NA(),'Indexen goederen & diensten'!AB34/'Indexen goederen & diensten'!AB$34),NA()) -> 1 | ES108: =IFERROR(IF('Indexen goederen & diensten'!AC34/'Indexen goederen & diensten'!AC$34=0,NA(),'Indexen goederen & diensten'!AC34/'Indexen goederen & diensten'!AC$34),NA()) -> 1 | ET108: =IFERROR(IF('Indexen goederen & diensten'!AD34/'Indexen goederen & diensten'!AD$34=0,NA(),'Indexen goederen & diensten'!AD34/'Indexen goederen & diensten'!AD$34),NA()) -> 1 | EU108: =IFERROR(IF('Indexen goederen & diensten'!AE34/'Indexen goederen & diensten'!AE$34=0,NA(),'Indexen goederen & diensten'!AE34/'Indexen goederen & diensten'!AE$34),NA()) -> 1 | EV108: =IFERROR(IF('Indexen goederen & diensten'!AF34/'Indexen goederen & diensten'!AF$34=0,NA(),'Indexen goederen & diensten'!AF34/'Indexen goederen & diensten'!AF$34),NA()) -> 1 | EW108: =IFERROR(IF('Indexen goederen & diensten'!AG34/'Indexen goederen & diensten'!AG$34=0,NA(),'Indexen goederen & diensten'!AG34/'Indexen goederen & diensten'!AG$34),NA()) -> 1 | EX108: =IFERROR(IF('Indexen goederen & diensten'!AH34/'Indexen goederen & diensten'!AH$34=0,NA(),'Indexen goederen & diensten'!AH34/'Indexen goederen & diensten'!AH$34),NA()) -> 1 | EY108: =IFERROR(IF('Indexen goederen & diensten'!AI34/'Indexen goederen & diensten'!AI$34=0,NA(),'Indexen goederen & diensten'!AI34/'Indexen goederen & diensten'!AI$34),NA()) -> 1 | EZ108: =IFERROR(IF('Indexen goederen & diensten'!AJ34/'Indexen goederen & diensten'!AJ$34=0,NA(),'Indexen goederen & diensten'!AJ34/'Indexen goederen & diensten'!AJ$34),NA()) -> 1 | FA108: =IFERROR(IF('Indexen goederen & diensten'!AK34/'Indexen goederen & diensten'!AK$34=0,NA(),'Indexen goederen & diensten'!AK34/'Indexen goederen & diensten'!AK$34),NA()) -> 1 | FB108: =IFERROR(IF('Indexen goederen & diensten'!AL34/'Indexen goederen & diensten'!AL$34=0,NA(),'Indexen goederen & diensten'!AL34/'Indexen goederen & diensten'!AL$34),NA()) -> 1 | FC108: =IFERROR(IF('Indexen goederen & diensten'!AM34/'Indexen goederen & diensten'!AM$34=0,NA(),'Indexen goederen & diensten'!AM34/'Indexen goederen & diensten'!AM$34),NA()) -> 1 | FD108: =IFERROR(IF('Indexen goederen & diensten'!AN34/'Indexen goederen & diensten'!AN$34=0,NA(),'Indexen goederen & diensten'!AN34/'Indexen goederen & diensten'!AN$34),NA()) -> 1 | FE108: =IFERROR(IF('Indexen goederen & diensten'!AO34/'Indexen goederen & diensten'!AO$34=0,NA(),'Indexen goederen & diensten'!AO34/'Indexen goederen & diensten'!AO$34),NA()) -> 1 | FF108: =IFERROR(IF('Indexen goederen & diensten'!AP34/'Indexen goederen & diensten'!AP$34=0,NA(),'Indexen goederen & diensten'!AP34/'Indexen goederen & diensten'!AP$34),NA()) -> 1 | FG108: =IFERROR(IF('Indexen goederen & diensten'!AQ34/'Indexen goederen & diensten'!AQ$34=0,NA(),'Indexen goederen & diensten'!AQ34/'Indexen goederen & diensten'!AQ$34),NA()) -> 1 | FH108: =IFERROR(IF('Indexen goederen & diensten'!AR34/'Indexen goederen & diensten'!AR$34=0,NA(),'Indexen goederen & diensten'!AR34/'Indexen goederen & diensten'!AR$34),NA()) -> 1 | FI108: =IFERROR(IF('Indexen goederen & diensten'!AS34/'Indexen goederen & diensten'!AS$34=0,NA(),'Indexen goederen & diensten'!AS34/'Indexen goederen & diensten'!AS$34),NA()) -> 1 | FJ108: =IFERROR(IF('Indexen goederen & diensten'!AT34/'Indexen goederen & diensten'!AT$34=0,NA(),'Indexen goederen & diensten'!AT34/'Indexen goederen & diensten'!AT$34),NA()) -> 1 | FK108: =IFERROR(IF('Indexen goederen & diensten'!AU34/'Indexen goederen & diensten'!AU$34=0,NA(),'Indexen goederen & diensten'!AU34/'Indexen goederen & diensten'!AU$34),NA()) -> 1 | FL108: =IFERROR(IF('Indexen goederen & diensten'!AV34/'Indexen goederen & diensten'!AV$34=0,NA(),'Indexen goederen & diensten'!AV34/'Indexen goederen & diensten'!AV$34),NA()) -> 1 | FM108: =IFERROR(IF('Indexen goederen & diensten'!AW34/'Indexen goederen & diensten'!AW$34=0,NA(),'Indexen goederen & diensten'!AW34/'Indexen goederen & diensten'!AW$34),NA()) -> 1 | FN108: =IFERROR(IF('Indexen goederen & diensten'!AX34/'Indexen goederen & diensten'!AX$34=0,NA(),'Indexen goederen & diensten'!AX34/'Indexen goederen & diensten'!AX$34),NA()) -> 1 | FO108: =IFERROR(IF('Indexen goederen & diensten'!AY34/'Indexen goederen & diensten'!AY$34=0,NA(),'Indexen goederen & diensten'!AY34/'Indexen goederen & diensten'!AY$34),NA()) -> 1 | FP108: =IFERROR(IF('Indexen goederen & diensten'!AZ34/'Indexen goederen & diensten'!AZ$34=0,NA(),'Indexen goederen & diensten'!AZ34/'Indexen goederen & diensten'!AZ$34),NA()) -> 1 | FQ108: =IFERROR(IF('Indexen goederen & diensten'!BA34/'Indexen goederen & diensten'!BA$34=0,NA(),'Indexen goederen & diensten'!BA34/'Indexen goederen & diensten'!BA$34),NA()) -> 1 | FR108: =IFERROR(IF('Indexen goederen & diensten'!BB34/'Indexen goederen & diensten'!BB$34=0,NA(),'Indexen goederen & diensten'!BB34/'Indexen goederen & diensten'!BB$34),NA()) -> 1 | FS108: =IFERROR(IF('Indexen goederen & diensten'!BC34/'Indexen goederen & diensten'!BC$34=0,NA(),'Indexen goederen & diensten'!BC34/'Indexen goederen & diensten'!BC$34),NA()) -> 1 | FT108: =IFERROR(IF('Indexen goederen & diensten'!BD34/'Indexen goederen & diensten'!BD$34=0,NA(),'Indexen goederen & diensten'!BD34/'Indexen goederen & diensten'!BD$34),NA()) -> 1 | FU108: =IFERROR(IF('Indexen goederen & diensten'!BE34/'Indexen goederen & diensten'!BE$34=0,NA(),'Indexen goederen & diensten'!BE34/'Indexen goederen & diensten'!BE$34),NA()) -> 1 | FV108: =IFERROR(IF('Indexen goederen & diensten'!BF34/'Indexen goederen & diensten'!BF$34=0,NA(),'Indexen goederen & diensten'!BF34/'Indexen goederen & diensten'!BF$34),NA()) -> 1 | FW108: =IFERROR(IF('Indexen goederen & diensten'!BG34/'Indexen goederen & diensten'!BG$34=0,NA(),'Indexen goederen & diensten'!BG34/'Indexen goederen & diensten'!BG$34),NA()) -> 1 | FX108: =IFERROR(IF('Indexen goederen & diensten'!BH34/'Indexen goederen & diensten'!BH$34=0,NA(),'Indexen goederen & diensten'!BH34/'Indexen goederen & diensten'!BH$34),NA()) -> 1 | FY108: =IFERROR(IF('Indexen goederen & diensten'!BI34/'Indexen goederen & diensten'!BI$34=0,NA(),'Indexen goederen & diensten'!BI34/'Indexen goederen & diensten'!BI$34),NA()) -> 1 | FZ108: =IFERROR(IF('Indexen goederen & diensten'!BJ34/'Indexen goederen & diensten'!BJ$34=0,NA(),'Indexen goederen & diensten'!BJ34/'Indexen goederen & diensten'!BJ$34),NA()) -> 1 | GA108: =IFERROR(IF('Indexen goederen & diensten'!BK34/'Indexen goederen & diensten'!BK$34=0,NA(),'Indexen goederen & diensten'!BK34/'Indexen goederen & diensten'!BK$34),NA()) -> 1 | GB108: =IFERROR(IF('Indexen goederen & diensten'!BL34/'Indexen goederen & diensten'!BL$34=0,NA(),'Indexen goederen & diensten'!BL34/'Indexen goederen & diensten'!BL$34),NA()) -> 1 | GC108: =IFERROR(IF('Indexen goederen & diensten'!BM34/'Indexen goederen & diensten'!BM$34=0,NA(),'Indexen goederen & diensten'!BM34/'Indexen goederen & diensten'!BM$34),NA()) -> 1 | GD108: =IFERROR(IF('Indexen goederen & diensten'!BN34/'Indexen goederen & diensten'!BN$34=0,NA(),'Indexen goederen & diensten'!BN34/'Indexen goederen & diensten'!BN$34),NA()) -> 1 | GE108: =IFERROR(IF('Indexen goederen & diensten'!BO34/'Indexen goederen & diensten'!BO$34=0,NA(),'Indexen goederen & diensten'!BO34/'Indexen goederen & diensten'!BO$34),NA()) -> 1 | GF108: =IFERROR(IF('Indexen goederen & diensten'!BP34/'Indexen goederen & diensten'!BP$34=0,NA(),'Indexen goederen & diensten'!BP34/'Indexen goederen & diensten'!BP$34),NA()) -> 1 | GG108: =IFERROR(IF('Indexen goederen & diensten'!BQ34/'Indexen goederen & diensten'!BQ$34=0,NA(),'Indexen goederen & diensten'!BQ34/'Indexen goederen & diensten'!BQ$34),NA()) -> 1 | GH108: =IFERROR(IF('Indexen goederen & diensten'!BR34/'Indexen goederen & diensten'!BR$34=0,NA(),'Indexen goederen & diensten'!BR34/'Indexen goederen & diensten'!BR$34),NA()) -> 1 | GI108: =IFERROR(IF('Indexen goederen & diensten'!BS34/'Indexen goederen & diensten'!BS$34=0,NA(),'Indexen goederen & diensten'!BS34/'Indexen goederen & diensten'!BS$34),NA()) -> 1 | GJ108: =IFERROR(IF('Indexen goederen & diensten'!BT34/'Indexen goederen & diensten'!BT$34=0,NA(),'Indexen goederen & diensten'!BT34/'Indexen goederen & diensten'!BT$34),NA()) -> 1 | GK108: =IFERROR(IF('Indexen goederen & diensten'!BU34/'Indexen goederen & diensten'!BU$34=0,NA(),'Indexen goederen & diensten'!BU34/'Indexen goederen & diensten'!BU$34),NA()) -> 1 | GL108: =IFERROR(IF('Indexen goederen & diensten'!BV34/'Indexen goederen & diensten'!BV$34=0,NA(),'Indexen goederen & diensten'!BV34/'Indexen goederen & diensten'!BV$34),NA()) -> 1 | GM108: =IFERROR(IF('Indexen goederen & diensten'!BW34/'Indexen goederen & diensten'!BW$34=0,NA(),'Indexen goederen & diensten'!BW34/'Indexen goederen & diensten'!BW$34),NA()) -> 1 | GN108: =IFERROR(IF('Indexen goederen & diensten'!BX34/'Indexen goederen & diensten'!BX$34=0,NA(),'Indexen goederen & diensten'!BX34/'Indexen goederen & diensten'!BX$34),NA()) -> 1 | GO108: =IFERROR(IF('Indexen goederen & diensten'!BY34/'Indexen goederen & diensten'!BY$34=0,NA(),'Indexen goederen & diensten'!BY34/'Indexen goederen & diensten'!BY$34),NA()) -> 1 | GP108: =IFERROR(IF('Indexen goederen & diensten'!BZ34/'Indexen goederen & diensten'!BZ$34=0,NA(),'Indexen goederen & diensten'!BZ34/'Indexen goederen & diensten'!BZ$34),NA()) -> 1 | GQ108: =IFERROR(IF('Indexen goederen & diensten'!CA34/'Indexen goederen & diensten'!CA$34=0,NA(),'Indexen goederen & diensten'!CA34/'Indexen goederen & diensten'!CA$34),NA()) -> 1 | GR108: =IFERROR(IF('Indexen goederen & diensten'!CB34/'Indexen goederen & diensten'!CB$34=0,NA(),'Indexen goederen & diensten'!CB34/'Indexen goederen & diensten'!CB$34),NA()) -> 1 | GS108: =IFERROR(IF('Indexen goederen & diensten'!CC34/'Indexen goederen & diensten'!CC$34=0,NA(),'Indexen goederen & diensten'!CC34/'Indexen goederen & diensten'!CC$34),NA()) -> 1 | GT108: =IFERROR(IF('Indexen goederen & diensten'!CD34/'Indexen goederen & diensten'!CD$34=0,NA(),'Indexen goederen & diensten'!CD34/'Indexen goederen & diensten'!CD$34),NA()) -> 1 | GU108: =IFERROR(IF('Indexen goederen & diensten'!CE34/'Indexen goederen & diensten'!CE$34=0,NA(),'Indexen goederen & diensten'!CE34/'Indexen goederen & diensten'!CE$34),NA()) -> 1 | GV108: =IFERROR(IF('Indexen goederen & diensten'!CF34/'Indexen goederen & diensten'!CF$34=0,NA(),'Indexen goederen & diensten'!CF34/'Indexen goederen & diensten'!CF$34),NA()) -> 1 | GW108: =IFERROR(IF('Indexen goederen & diensten'!CG34/'Indexen goederen & diensten'!CG$34=0,NA(),'Indexen goederen & diensten'!CG34/'Indexen goederen & diensten'!CG$34),NA()) -> 1 | GX108: =IFERROR(IF('Indexen goederen & diensten'!CH34/'Indexen goederen & diensten'!CH$34=0,NA(),'Indexen goederen & diensten'!CH34/'Indexen goederen & diensten'!CH$34),NA()) -> 1 | GY108: =IFERROR(IF('Indexen goederen & diensten'!CI34/'Indexen goederen & diensten'!CI$34=0,NA(),'Indexen goederen & diensten'!CI34/'Indexen goederen & diensten'!CI$34),NA()) -> 1 | GZ108: =IFERROR(IF('Indexen goederen & diensten'!CJ34/'Indexen goederen & diensten'!CJ$34=0,NA(),'Indexen goederen & diensten'!CJ34/'Indexen goederen & diensten'!CJ$34),NA()) -> 1 | HA108: =IFERROR(IF('Indexen goederen & diensten'!CK34/'Indexen goederen & diensten'!CK$34=0,NA(),'Indexen goederen & diensten'!CK34/'Indexen goederen & diensten'!CK$34),NA()) -> 1 | HB108: =IFERROR(IF('Indexen goederen & diensten'!CL34/'Indexen goederen & diensten'!CL$34=0,NA(),'Indexen goederen & diensten'!CL34/'Indexen goederen & diensten'!CL$34),NA()) -> 1 | HC108: =IFERROR(IF('Indexen goederen & diensten'!CM34/'Indexen goederen & diensten'!CM$34=0,NA(),'Indexen goederen & diensten'!CM34/'Indexen goederen & diensten'!CM$34),NA()) -> 1 | HD108: =IFERROR(IF('Indexen goederen & diensten'!CN34/'Indexen goederen & diensten'!CN$34=0,NA(),'Indexen goederen & diensten'!CN34/'Indexen goederen & diensten'!CN$34),NA()) -> 1 | HF108: =Tableau21[[#This Row],[datum]] -> 2018-01-01 | HG108: =IFERROR(IF(Standaardindexen!J31/Standaardindexen!J$31=0,NA(),Standaardindexen!J31/Standaardindexen!J$31),NA()) -> 1 | HH108: =IFERROR(IF(Standaardindexen!K31/Standaardindexen!K$31=0,NA(),Standaardindexen!K31/Standaardindexen!K$31),NA()) -> 1 | HI108: =IFERROR(IF(Standaardindexen!L31/Standaardindexen!L$31=0,NA(),Standaardindexen!L31/Standaardindexen!L$31),NA()) -> 1 | HJ108: =IFERROR(IF(Standaardindexen!M31/Standaardindexen!M$31=0,NA(),Standaardindexen!M31/Standaardindexen!M$31),NA()) -> 1 | HK108: =IFERROR(IF(Standaardindexen!N31/Standaardindexen!N$31=0,NA(),Standaardindexen!N31/Standaardindexen!N$31),NA()) -> 1 | HL108: =IFERROR(IF(Standaardindexen!O31/Standaardindexen!O$31=0,NA(),Standaardindexen!O31/Standaardindexen!O$31),NA()) -> 1 | HM108: =IFERROR(IF(Standaardindexen!P31/Standaardindexen!P$31=0,NA(),Standaardindexen!P31/Standaardindexen!P$31),NA()) -> 1 | HN108: =IFERROR(IF(Standaardindexen!Q31/Standaardindexen!Q$31=0,NA(),Standaardindexen!Q31/Standaardindexen!Q$31),NA()) -> 1 | HO108: =IFERROR(IF(Standaardindexen!R31/Standaardindexen!R$31=0,NA(),Standaardindexen!R31/Standaardindexen!R$31),NA()) -> 1 | HP108: =IFERROR(IF(Standaardindexen!S31/Standaardindexen!S$31=0,NA(),Standaardindexen!S31/Standaardindexen!S$31),NA()) -> 1 | HQ108: =IFERROR(IF(Standaardindexen!T31/Standaardindexen!T$31=0,NA(),Standaardindexen!T31/Standaardindexen!T$31),NA()) -> 1 | HR108: =IFERROR(IF(Standaardindexen!U31/Standaardindexen!U$31=0,NA(),Standaardindexen!U31/Standaardindexen!U$31),NA()) -> 1 | HS108: =IFERROR(IF(Standaardindexen!V31/Standaardindexen!V$31=0,NA(),Standaardindexen!V31/Standaardindexen!V$31),NA()) -> 1 | HT108: =IFERROR(IF(Standaardindexen!W31/Standaardindexen!W$31=0,NA(),Standaardindexen!W31/Standaardindexen!W$31),NA()) -> 1 | HU108: =IFERROR(IF(Standaardindexen!X31/Standaardindexen!X$31=0,NA(),Standaardindexen!X31/Standaardindexen!X$31),NA()) -> 1 | HV108: =IFERROR(IF(Standaardindexen!Y31/Standaardindexen!Y$31=0,NA(),Standaardindexen!Y31/Standaardindexen!Y$31),NA()) -> 1 | HW108: =IFERROR(IF(Standaardindexen!Z31/Standaardindexen!Z$31=0,NA(),Standaardindexen!Z31/Standaardindexen!Z$31),NA()) -> 1 | HX108: =IFERROR(IF(Standaardindexen!AA31/Standaardindexen!AA$31=0,NA(),Standaardindexen!AA31/Standaardindexen!AA$31),NA()) -> 1 | HY108: =IFERROR(IF(Standaardindexen!AB31/Standaardindexen!AB$31=0,NA(),Standaardindexen!AB31/Standaardindexen!AB$31),NA()) -> 1 | HZ108: =IFERROR(IF(Standaardindexen!AC31/Standaardindexen!AC$31=0,NA(),Standaardindexen!AC31/Standaardindexen!AC$31),NA()) -> 1 | IA108: =Tableau21[[#This Row],[prijsevolutie - volgens prijsherzieningsformule -index i 2021]] -> 1 | IB108: =Tableau21[[#This Row],[prijsevolutie - volgens prijsherzieningsformule -index i]] -> 1 | IC108: =Tableau21[[#This Row],[prijsherzieningsformule - index i 2021]] -> 1 | ID108: =Tableau21[[#This Row],[prijsherzieningsformule - index i]] -> 1 | IE108: =IFERROR(IF('Indexeringen Lonen per PC'!BZ33/'Indexeringen Lonen per PC'!BZ$33=0,NA(),'Indexeringen Lonen per PC'!BZ33/'Indexeringen Lonen per PC'!BZ$33),NA()) -> 1 | IF108: =IFERROR(IF('Indexeringen Lonen per PC'!CA33/'Indexeringen Lonen per PC'!CA$33=0,NA(),'Indexeringen Lonen per PC'!CA33/'Indexeringen Lonen per PC'!CA$33),NA()) -> 1 | IG108: =IFERROR(IF('Indexeringen Lonen per PC'!CB33/'Indexeringen Lonen per PC'!CB$33=0,NA(),'Indexeringen Lonen per PC'!CB33/'Indexeringen Lonen per PC'!CB$33),NA()) -> 1 | IH108: =IFERROR(IF('Indexeringen Lonen per PC'!CC33/'Indexeringen Lonen per PC'!CC$33=0,NA(),'Indexeringen Lonen per PC'!CC33/'Indexeringen Lonen per PC'!CC$33),NA()) -> 1 | II108: =IFERROR(IF('Indexeringen Lonen per PC'!CD33/'Indexeringen Lonen per PC'!CD$33=0,NA(),'Indexeringen Lonen per PC'!CD33/'Indexeringen Lonen per PC'!CD$33),NA()) -> 1 | IJ108: =IFERROR(IF('Indexeringen Lonen per PC'!CE33/'Indexeringen Lonen per PC'!CE$33=0,NA(),'Indexeringen Lonen per PC'!CE33/'Indexeringen Lonen per PC'!CE$33),NA()) -> 1 | IK108: =IFERROR(IF('Indexeringen Lonen per PC'!CF33/'Indexeringen Lonen per PC'!CF$33=0,NA(),'Indexeringen Lonen per PC'!CF33/'Indexeringen Lonen per PC'!CF$33),NA()) -> 1 | IL108: =IFERROR(IF('Indexeringen Lonen per PC'!CG33/'Indexeringen Lonen per PC'!CG$33=0,NA(),'Indexeringen Lonen per PC'!CG33/'Indexeringen Lonen per PC'!CG$33),NA()) -> 1 | IM108: =IFERROR(IF('Indexeringen Lonen per PC'!CH33/'Indexeringen Lonen per PC'!CH$33=0,NA(),'Indexeringen Lonen per PC'!CH33/'Indexeringen Lonen per PC'!CH$33),NA()) -> 1 | IN108: =IFERROR(IF('Indexeringen Lonen per PC'!CI33/'Indexeringen Lonen per PC'!CI$33=0,NA(),'Indexeringen Lonen per PC'!CI33/'Indexeringen Lonen per PC'!CI$33),NA()) -> 1
B109: =Standaardindexen!C32 -> 2018-02-01 | C109: =IFERROR(IF(Standaardindexen!D32/Standaardindexen!D$31=0,NA(),Standaardindexen!D32/Standaardindexen!D$31),NA()) -> 1.001776875 | D109: =IFERROR(IF(Standaardindexen!E32/Standaardindexen!E$31=0,NA(),Standaardindexen!E32/Standaardindexen!E$31),NA()) -> 1.009613397 | E109: =IFERROR(IF(Standaardindexen!F32/Standaardindexen!F$31=0,NA(),Standaardindexen!F32/Standaardindexen!F$31),NA()) -> 0.9962311558 | F109: =IFERROR(IF(Standaardindexen!G32/Standaardindexen!G$31=0,NA(),Standaardindexen!G32/Standaardindexen!G$31),NA()) -> 1 | G109: =IFERROR(IF(Standaardindexen!H32/Standaardindexen!H$31=0,NA(),Standaardindexen!H32/Standaardindexen!H$31),NA()) -> 0.9940675767 | H109: =IFERROR(IF(Standaardindexen!I32/Standaardindexen!I$31=0,NA(),Standaardindexen!I32/Standaardindexen!I$31),NA()) -> 1.006684661 | I109: 1 | J109: 1 | K109: 1 | L109: 1 | M109: =IFERROR(IF('Materiaalindexen o.w.'!D35/'Materiaalindexen o.w.'!D$34=0,NA(),'Materiaalindexen o.w.'!D35/'Materiaalindexen o.w.'!D$34),NA()) -> 1 | N109: =IFERROR(IF('Materiaalindexen o.w.'!E35/'Materiaalindexen o.w.'!E$34=0,NA(),'Materiaalindexen o.w.'!E35/'Materiaalindexen o.w.'!E$34),NA()) -> 1 | O109: =IFERROR(IF('Materiaalindexen o.w.'!F35/'Materiaalindexen o.w.'!F$34=0,NA(),'Materiaalindexen o.w.'!F35/'Materiaalindexen o.w.'!F$34),NA()) -> 1 | P109: =IFERROR(IF('Materiaalindexen o.w.'!G35/'Materiaalindexen o.w.'!G$34=0,NA(),'Materiaalindexen o.w.'!G35/'Materiaalindexen o.w.'!G$34),NA()) -> 1 | Q109: =IFERROR(IF('Materiaalindexen o.w.'!H35/'Materiaalindexen o.w.'!H$34=0,NA(),'Materiaalindexen o.w.'!H35/'Materiaalindexen o.w.'!H$34),NA()) -> 1 | R109: =IFERROR(IF('Materiaalindexen o.w.'!I35/'Materiaalindexen o.w.'!I$34=0,NA(),'Materiaalindexen o.w.'!I35/'Materiaalindexen o.w.'!I$34),NA()) -> 1 | S109: =IFERROR(IF('Materiaalindexen o.w.'!J35/'Materiaalindexen o.w.'!J$34=0,NA(),'Materiaalindexen o.w.'!J35/'Materiaalindexen o.w.'!J$34),NA()) -> 1 | T109: =IFERROR(IF('Materiaalindexen o.w.'!K35/'Materiaalindexen o.w.'!K$34=0,NA(),'Materiaalindexen o.w.'!K35/'Materiaalindexen o.w.'!K$34),NA()) -> 1 | U109: =IFERROR(IF('Materiaalindexen o.w.'!L35/'Materiaalindexen o.w.'!L$34=0,NA(),'Materiaalindexen o.w.'!L35/'Materiaalindexen o.w.'!L$34),NA()) -> 1 | V109: =IFERROR(IF('Materiaalindexen o.w.'!M35/'Materiaalindexen o.w.'!M$34=0,NA(),'Materiaalindexen o.w.'!M35/'Materiaalindexen o.w.'!M$34),NA()) -> 1 | W109: =IFERROR(IF('Materiaalindexen o.w.'!N35/'Materiaalindexen o.w.'!N$34=0,NA(),'Materiaalindexen o.w.'!N35/'Materiaalindexen o.w.'!N$34),NA()) -> 1 | X109: =IFERROR(IF('Materiaalindexen o.w.'!O35/'Materiaalindexen o.w.'!O$34=0,NA(),'Materiaalindexen o.w.'!O35/'Materiaalindexen o.w.'!O$34),NA()) -> 1 | Y109: =IFERROR(IF('Materiaalindexen o.w.'!P35/'Materiaalindexen o.w.'!P$34=0,NA(),'Materiaalindexen o.w.'!P35/'Materiaalindexen o.w.'!P$34),NA()) -> 1 | Z109: =IFERROR(IF('Materiaalindexen o.w.'!Q35/'Materiaalindexen o.w.'!Q$34=0,NA(),'Materiaalindexen o.w.'!Q35/'Materiaalindexen o.w.'!Q$34),NA()) -> 1 | AA109: =IFERROR(IF('Materiaalindexen o.w.'!R35/'Materiaalindexen o.w.'!R$34=0,NA(),'Materiaalindexen o.w.'!R35/'Materiaalindexen o.w.'!R$34),NA()) -> 1 | AB109: =IFERROR(IF('Materiaalindexen o.w.'!S35/'Materiaalindexen o.w.'!S$34=0,NA(),'Materiaalindexen o.w.'!S35/'Materiaalindexen o.w.'!S$34),NA()) -> 1 | AC109: =IFERROR(IF('Materiaalindexen o.w.'!T35/'Materiaalindexen o.w.'!T$34=0,NA(),'Materiaalindexen o.w.'!T35/'Materiaalindexen o.w.'!T$34),NA()) -> 1 | AD109: =IFERROR(IF('Materiaalindexen o.w.'!U35/'Materiaalindexen o.w.'!U$34=0,NA(),'Materiaalindexen o.w.'!U35/'Materiaalindexen o.w.'!U$34),NA()) -> 1 | AE109: =IFERROR(IF('Materiaalindexen o.w.'!V35/'Materiaalindexen o.w.'!V$34=0,NA(),'Materiaalindexen o.w.'!V35/'Materiaalindexen o.w.'!V$34),NA()) -> 1 | AF109: =IFERROR(IF('Materiaalindexen o.w.'!W35/'Materiaalindexen o.w.'!W$34=0,NA(),'Materiaalindexen o.w.'!W35/'Materiaalindexen o.w.'!W$34),NA()) -> 1 | AG109: =IFERROR(IF('Materiaalindexen o.w.'!X35/'Materiaalindexen o.w.'!X$34=0,NA(),'Materiaalindexen o.w.'!X35/'Materiaalindexen o.w.'!X$34),NA()) -> 1 | AH109: =IFERROR(IF('Materiaalindexen o.w.'!Y35/'Materiaalindexen o.w.'!Y$34=0,NA(),'Materiaalindexen o.w.'!Y35/'Materiaalindexen o.w.'!Y$34),NA()) -> 1 | AI109: =IFERROR(IF('Materiaalindexen o.w.'!Z35/'Materiaalindexen o.w.'!Z$34=0,NA(),'Materiaalindexen o.w.'!Z35/'Materiaalindexen o.w.'!Z$34),NA()) -> 1 | AJ109: =IFERROR(IF('Materiaalindexen o.w.'!AA35/'Materiaalindexen o.w.'!AA$34=0,NA(),'Materiaalindexen o.w.'!AA35/'Materiaalindexen o.w.'!AA$34),NA()) -> 1 | AK109: =IFERROR(IF('Materiaalindexen o.w.'!AB35/'Materiaalindexen o.w.'!AB$34=0,NA(),'Materiaalindexen o.w.'!AB35/'Materiaalindexen o.w.'!AB$34),NA()) -> 1 | AL109: =IFERROR(IF('Materiaalindexen o.w.'!AC35/'Materiaalindexen o.w.'!AC$34=0,NA(),'Materiaalindexen o.w.'!AC35/'Materiaalindexen o.w.'!AC$34),NA()) -> 1.004971377 | AM109: =IFERROR(IF('Materiaalindexen o.w.'!AD35/'Materiaalindexen o.w.'!AD$34=0,NA(),'Materiaalindexen o.w.'!AD35/'Materiaalindexen o.w.'!AD$34),NA()) -> 1.007749582 | AN109: =IFERROR(IF('Materiaalindexen o.w.'!AE35/'Materiaalindexen o.w.'!AE$34=0,NA(),'Materiaalindexen o.w.'!AE35/'Materiaalindexen o.w.'!AE$34),NA()) -> 1.002040816 | AO109: =IFERROR(IF('Materiaalindexen o.w.'!AF35/'Materiaalindexen o.w.'!AF$34=0,NA(),'Materiaalindexen o.w.'!AF35/'Materiaalindexen o.w.'!AF$34),NA()) -> 1.004828002 | AP109: =IFERROR(IF('Materiaalindexen o.w.'!AG35/'Materiaalindexen o.w.'!AG$34=0,NA(),'Materiaalindexen o.w.'!AG35/'Materiaalindexen o.w.'!AG$34),NA()) -> 1.002040469 | AQ109: =IFERROR(IF('Materiaalindexen o.w.'!AH35/'Materiaalindexen o.w.'!AH$34=0,NA(),'Materiaalindexen o.w.'!AH35/'Materiaalindexen o.w.'!AH$34),NA()) -> 1 | AR109: =IFERROR(IF('Materiaalindexen o.w.'!AI35/'Materiaalindexen o.w.'!AI$34=0,NA(),'Materiaalindexen o.w.'!AI35/'Materiaalindexen o.w.'!AI$34),NA()) -> 1.004828002 | AS109: =IFERROR(IF('Materiaalindexen o.w.'!AJ35/'Materiaalindexen o.w.'!AJ$34=0,NA(),'Materiaalindexen o.w.'!AJ35/'Materiaalindexen o.w.'!AJ$34),NA()) -> 0.9957585644 | AT109: =IFERROR(IF('Materiaalindexen o.w.'!AK35/'Materiaalindexen o.w.'!AK$34=0,NA(),'Materiaalindexen o.w.'!AK35/'Materiaalindexen o.w.'!AK$34),NA()) -> 1.007907543 | AU109: =IFERROR(IF('Materiaalindexen o.w.'!AL35/'Materiaalindexen o.w.'!AL$34=0,NA(),'Materiaalindexen o.w.'!AL35/'Materiaalindexen o.w.'!AL$34),NA()) -> 1.002210508 | AV109: =IFERROR(IF('Materiaalindexen o.w.'!AM35/'Materiaalindexen o.w.'!AM$34=0,NA(),'Materiaalindexen o.w.'!AM35/'Materiaalindexen o.w.'!AM$34),NA()) -> 1.018975625 | AW109: =IFERROR(IF('Materiaalindexen o.w.'!AN35/'Materiaalindexen o.w.'!AN$34=0,NA(),'Materiaalindexen o.w.'!AN35/'Materiaalindexen o.w.'!AN$34),NA()) -> 1.019227811 | AX109: =IFERROR(IF('Materiaalindexen o.w.'!AO35/'Materiaalindexen o.w.'!AO$34=0,NA(),'Materiaalindexen o.w.'!AO35/'Materiaalindexen o.w.'!AO$34),NA()) -> 1.019248537 | AY109: =IFERROR(IF('Materiaalindexen o.w.'!AP35/'Materiaalindexen o.w.'!AP$34=0,NA(),'Materiaalindexen o.w.'!AP35/'Materiaalindexen o.w.'!AP$34),NA()) -> 0.996911937 | AZ109: =IFERROR(IF('Materiaalindexen o.w.'!AQ35/'Materiaalindexen o.w.'!AQ$34=0,NA(),'Materiaalindexen o.w.'!AQ35/'Materiaalindexen o.w.'!AQ$34),NA()) -> 1.014732143 | BA109: =IFERROR(IF('Materiaalindexen o.w.'!AR35/'Materiaalindexen o.w.'!AR$34=0,NA(),'Materiaalindexen o.w.'!AR35/'Materiaalindexen o.w.'!AR$34),NA()) -> 0.9730109643 | BB109: =IFERROR(IF('Materiaalindexen o.w.'!AS35/'Materiaalindexen o.w.'!AS$34=0,NA(),'Materiaalindexen o.w.'!AS35/'Materiaalindexen o.w.'!AS$34),NA()) ->  | BC109: =IFERROR(IF('Materiaalindexen o.w.'!AT35/'Materiaalindexen o.w.'!AT$34=0,NA(),'Materiaalindexen o.w.'!AT35/'Materiaalindexen o.w.'!AT$34),NA()) ->  | BD109: =IFERROR(IF('Materiaalindexen o.w.'!AU35/'Materiaalindexen o.w.'!AU$34=0,NA(),'Materiaalindexen o.w.'!AU35/'Materiaalindexen o.w.'!AU$34),NA()) ->  | BE109: =IFERROR(IF('Materiaalindexen o.w.'!AV35/'Materiaalindexen o.w.'!AV$34=0,NA(),'Materiaalindexen o.w.'!AV35/'Materiaalindexen o.w.'!AV$34),NA()) ->  | BF109: =IFERROR(IF('Materiaalindexen o.w.'!AW35/'Materiaalindexen o.w.'!AW$34=0,NA(),'Materiaalindexen o.w.'!AW35/'Materiaalindexen o.w.'!AW$34),NA()) ->  | BG109: =IFERROR(IF('Materiaalindexen o.w.'!AX35/'Materiaalindexen o.w.'!AX$34=0,NA(),'Materiaalindexen o.w.'!AX35/'Materiaalindexen o.w.'!AX$34),NA()) ->  | BH109: =IFERROR(IF('Materiaalindexen o.w.'!AY35/'Materiaalindexen o.w.'!AY$34=0,NA(),'Materiaalindexen o.w.'!AY35/'Materiaalindexen o.w.'!AY$34),NA()) ->  | BI109: =IFERROR(IF('Materiaalindexen o.w.'!AZ35/'Materiaalindexen o.w.'!AZ$34=0,NA(),'Materiaalindexen o.w.'!AZ35/'Materiaalindexen o.w.'!AZ$34),NA()) -> 0.9843406352 | BJ109: =IFERROR(IF('Materiaalindexen o.w.'!BA35/'Materiaalindexen o.w.'!BA$34=0,NA(),'Materiaalindexen o.w.'!BA35/'Materiaalindexen o.w.'!BA$34),NA()) -> 0.9767904509 | BK109: =IFERROR(IF('Materiaalindexen o.w.'!BB35/'Materiaalindexen o.w.'!BB$34=0,NA(),'Materiaalindexen o.w.'!BB35/'Materiaalindexen o.w.'!BB$34),NA()) -> 0.9767904509 | BL109: =IFERROR(IF('Materiaalindexen o.w.'!BC35/'Materiaalindexen o.w.'!BC$34=0,NA(),'Materiaalindexen o.w.'!BC35/'Materiaalindexen o.w.'!BC$34),NA()) -> 1.016480379 | BM109: =IFERROR(IF('Materiaalindexen o.w.'!BD35/'Materiaalindexen o.w.'!BD$34=0,NA(),'Materiaalindexen o.w.'!BD35/'Materiaalindexen o.w.'!BD$34),NA()) -> 1.015994154 | BN109: =IFERROR(IF('Materiaalindexen o.w.'!BE35/'Materiaalindexen o.w.'!BE$34=0,NA(),'Materiaalindexen o.w.'!BE35/'Materiaalindexen o.w.'!BE$34),NA()) -> 1 | BO109: =IFERROR(IF('Materiaalindexen o.w.'!BF35/'Materiaalindexen o.w.'!BF$34=0,NA(),'Materiaalindexen o.w.'!BF35/'Materiaalindexen o.w.'!BF$34),NA()) -> 0.9747391543 | BP109: =IFERROR(IF('Materiaalindexen o.w.'!BG35/'Materiaalindexen o.w.'!BG$34=0,NA(),'Materiaalindexen o.w.'!BG35/'Materiaalindexen o.w.'!BG$34),NA()) ->  | BQ109: =IFERROR(IF('Materiaalindexen o.w.'!BH35/'Materiaalindexen o.w.'!BH$34=0,NA(),'Materiaalindexen o.w.'!BH35/'Materiaalindexen o.w.'!BH$34),NA()) -> 1.041583594 | BR109: =IFERROR(IF('Materiaalindexen o.w.'!BI35/'Materiaalindexen o.w.'!BI$34=0,NA(),'Materiaalindexen o.w.'!BI35/'Materiaalindexen o.w.'!BI$34),NA()) -> 0.975638549 | BS109: =IFERROR(IF('Materiaalindexen o.w.'!BJ35/'Materiaalindexen o.w.'!BJ$34=0,NA(),'Materiaalindexen o.w.'!BJ35/'Materiaalindexen o.w.'!BJ$34),NA()) -> 1.016707053 | BT109: =IFERROR(IF('Materiaalindexen o.w.'!BK35/'Materiaalindexen o.w.'!BK$34=0,NA(),'Materiaalindexen o.w.'!BK35/'Materiaalindexen o.w.'!BK$34),NA()) -> 1.00453841 | BU109: =IFERROR(IF('Materiaalindexen o.w.'!BL35/'Materiaalindexen o.w.'!BL$34=0,NA(),'Materiaalindexen o.w.'!BL35/'Materiaalindexen o.w.'!BL$34),NA()) -> 1.013582966 | BV109: =IFERROR(IF('Materiaalindexen o.w.'!BM35/'Materiaalindexen o.w.'!BM$34=0,NA(),'Materiaalindexen o.w.'!BM35/'Materiaalindexen o.w.'!BM$34),NA()) -> 1 | BW109: =IFERROR(IF('Materiaalindexen o.w.'!BN35/'Materiaalindexen o.w.'!BN$34=0,NA(),'Materiaalindexen o.w.'!BN35/'Materiaalindexen o.w.'!BN$34),NA()) -> 1 | BX109: =IFERROR(IF('Materiaalindexen o.w.'!BO35/'Materiaalindexen o.w.'!BO$34=0,NA(),'Materiaalindexen o.w.'!BO35/'Materiaalindexen o.w.'!BO$34),NA()) -> 1 | BY109: =IFERROR(IF('Materiaalindexen o.w.'!BP35/'Materiaalindexen o.w.'!BP$34=0,NA(),'Materiaalindexen o.w.'!BP35/'Materiaalindexen o.w.'!BP$34),NA()) -> 1 | BZ109: =IFERROR(IF('Materiaalindexen o.w.'!BQ35/'Materiaalindexen o.w.'!BQ$34=0,NA(),'Materiaalindexen o.w.'!BQ35/'Materiaalindexen o.w.'!BQ$34),NA()) -> 1.007306677 | CA109: =IFERROR(IF('Materiaalindexen o.w.'!BR35/'Materiaalindexen o.w.'!BR$34=0,NA(),'Materiaalindexen o.w.'!BR35/'Materiaalindexen o.w.'!BR$34),NA()) -> 1.007323027 | CB109: =IFERROR(IF('Materiaalindexen o.w.'!BS35/'Materiaalindexen o.w.'!BS$34=0,NA(),'Materiaalindexen o.w.'!BS35/'Materiaalindexen o.w.'!BS$34),NA()) -> 1.007131214 | CC109: =IFERROR(IF('Materiaalindexen o.w.'!BT35/'Materiaalindexen o.w.'!BT$34=0,NA(),'Materiaalindexen o.w.'!BT35/'Materiaalindexen o.w.'!BT$34),NA()) -> 1.007122507 | CD109: =IFERROR(IF('Materiaalindexen o.w.'!BU35/'Materiaalindexen o.w.'!BU$34=0,NA(),'Materiaalindexen o.w.'!BU35/'Materiaalindexen o.w.'!BU$34),NA()) -> 1 | CE109: =IFERROR(IF('Materiaalindexen o.w.'!BV35/'Materiaalindexen o.w.'!BV$34=0,NA(),'Materiaalindexen o.w.'!BV35/'Materiaalindexen o.w.'!BV$34),NA()) -> 1 | CF109: =IFERROR(IF('Materiaalindexen o.w.'!BW35/'Materiaalindexen o.w.'!BW$34=0,NA(),'Materiaalindexen o.w.'!BW35/'Materiaalindexen o.w.'!BW$34),NA()) -> 1 | CG109: =IFERROR(IF('Materiaalindexen o.w.'!BX35/'Materiaalindexen o.w.'!BX$34=0,NA(),'Materiaalindexen o.w.'!BX35/'Materiaalindexen o.w.'!BX$34),NA()) -> 1 | CH109: =IFERROR(IF('Materiaalindexen o.w.'!BY35/'Materiaalindexen o.w.'!BY$34=0,NA(),'Materiaalindexen o.w.'!BY35/'Materiaalindexen o.w.'!BY$34),NA()) -> 1 | CI109: =IFERROR(IF('Materiaalindexen o.w.'!BZ35/'Materiaalindexen o.w.'!BZ$34=0,NA(),'Materiaalindexen o.w.'!BZ35/'Materiaalindexen o.w.'!BZ$34),NA()) -> 1 | CJ109: =IFERROR(IF('Materiaalindexen o.w.'!CA35/'Materiaalindexen o.w.'!CA$34=0,NA(),'Materiaalindexen o.w.'!CA35/'Materiaalindexen o.w.'!CA$34),NA()) -> 1 | CK109: =IFERROR(IF('Materiaalindexen o.w.'!CB35/'Materiaalindexen o.w.'!CB$34=0,NA(),'Materiaalindexen o.w.'!CB35/'Materiaalindexen o.w.'!CB$34),NA()) -> 0.990913811 | CL109: =IFERROR(IF('Materiaalindexen o.w.'!CC35/'Materiaalindexen o.w.'!CC$34=0,NA(),'Materiaalindexen o.w.'!CC35/'Materiaalindexen o.w.'!CC$34),NA()) -> 0.9907852044 | CM109: =IFERROR(IF('Materiaalindexen o.w.'!CD35/'Materiaalindexen o.w.'!CD$34=0,NA(),'Materiaalindexen o.w.'!CD35/'Materiaalindexen o.w.'!CD$34),NA()) -> 0.9907840083 | CN109: =IFERROR(IF('Materiaalindexen o.w.'!CE35/'Materiaalindexen o.w.'!CE$34=0,NA(),'Materiaalindexen o.w.'!CE35/'Materiaalindexen o.w.'!CE$34),NA()) -> 0.9573241061 | CO109: =IFERROR(IF('Materiaalindexen o.w.'!CF35/'Materiaalindexen o.w.'!CF$34=0,NA(),'Materiaalindexen o.w.'!CF35/'Materiaalindexen o.w.'!CF$34),NA()) -> 0.9573241061 | CP109: =IFERROR(IF('Materiaalindexen o.w.'!CG35/'Materiaalindexen o.w.'!CG$34=0,NA(),'Materiaalindexen o.w.'!CG35/'Materiaalindexen o.w.'!CG$34),NA()) -> 0.9877888184 | CQ109: =IFERROR(IF('Materiaalindexen o.w.'!CH35/'Materiaalindexen o.w.'!CH$34=0,NA(),'Materiaalindexen o.w.'!CH35/'Materiaalindexen o.w.'!CH$34),NA()) -> 0.9876720527 | CR109: =IFERROR(IF('Materiaalindexen o.w.'!CI35/'Materiaalindexen o.w.'!CI$34=0,NA(),'Materiaalindexen o.w.'!CI35/'Materiaalindexen o.w.'!CI$34),NA()) -> 0.9869167535 | CS109: =IFERROR(IF('Materiaalindexen o.w.'!CJ35/'Materiaalindexen o.w.'!CJ$34=0,NA(),'Materiaalindexen o.w.'!CJ35/'Materiaalindexen o.w.'!CJ$34),NA()) -> 0.9175285426 | CT109: =IFERROR(IF('Materiaalindexen o.w.'!CK35/'Materiaalindexen o.w.'!CK$34=0,NA(),'Materiaalindexen o.w.'!CK35/'Materiaalindexen o.w.'!CK$34),NA()) -> 1.000684838 | CU109: =IFERROR(IF('Materiaalindexen o.w.'!CL35/'Materiaalindexen o.w.'!CL$34=0,NA(),'Materiaalindexen o.w.'!CL35/'Materiaalindexen o.w.'!CL$34),NA()) -> 1.00074184 | CV109: =IFERROR(IF('Materiaalindexen o.w.'!CM35/'Materiaalindexen o.w.'!CM$34=0,NA(),'Materiaalindexen o.w.'!CM35/'Materiaalindexen o.w.'!CM$34),NA()) -> 1.012052371 | CW109: =IFERROR(IF('Materiaalindexen o.w.'!CN35/'Materiaalindexen o.w.'!CN$34=0,NA(),'Materiaalindexen o.w.'!CN35/'Materiaalindexen o.w.'!CN$34),NA()) -> 1.011290505 | CX109: =IFERROR(IF('Materiaalindexen o.w.'!CO35/'Materiaalindexen o.w.'!CO$34=0,NA(),'Materiaalindexen o.w.'!CO35/'Materiaalindexen o.w.'!CO$34),NA()) -> 1.001995787 | CY109: =IFERROR(IF('Materiaalindexen o.w.'!CP35/'Materiaalindexen o.w.'!CP$34=0,NA(),'Materiaalindexen o.w.'!CP35/'Materiaalindexen o.w.'!CP$34),NA()) -> 1.009946796 | CZ109: =IFERROR(IF('Materiaalindexen o.w.'!CQ35/'Materiaalindexen o.w.'!CQ$34=0,NA(),'Materiaalindexen o.w.'!CQ35/'Materiaalindexen o.w.'!CQ$34),NA()) -> 1.009083202 | DA109: =IFERROR(IF('Materiaalindexen o.w.'!CR35/'Materiaalindexen o.w.'!CR$34=0,NA(),'Materiaalindexen o.w.'!CR35/'Materiaalindexen o.w.'!CR$34),NA()) ->  | DB109: =IFERROR(IF('Materiaalindexen o.w.'!CS35/'Materiaalindexen o.w.'!CS$34=0,NA(),'Materiaalindexen o.w.'!CS35/'Materiaalindexen o.w.'!CS$34),NA()) ->  | DC109: =IFERROR(IF('Materiaalindexen o.w.'!CT35/'Materiaalindexen o.w.'!CT$34=0,NA(),'Materiaalindexen o.w.'!CT35/'Materiaalindexen o.w.'!CT$34),NA()) ->  | DD109: =IFERROR(IF('Materiaalindexen o.w.'!CU35/'Materiaalindexen o.w.'!CU$34=0,NA(),'Materiaalindexen o.w.'!CU35/'Materiaalindexen o.w.'!CU$34),NA()) ->  | DE109: =IFERROR(IF('Grymafer indexen'!D34/'Grymafer indexen'!D$33=0,NA(),'Grymafer indexen'!D34/'Grymafer indexen'!D$33),NA()) -> 0.9938366718 | DF109: =IFERROR(IF('Grymafer indexen'!E34/'Grymafer indexen'!E$33=0,NA(),'Grymafer indexen'!E34/'Grymafer indexen'!E$33),NA()) -> 0.9961038961 | DG109: =IFERROR(IF('Grymafer indexen'!F34/'Grymafer indexen'!F$33=0,NA(),'Grymafer indexen'!F34/'Grymafer indexen'!F$33),NA()) -> 1.001112347 | DH109: =IFERROR(IF('Grymafer indexen'!G34/'Grymafer indexen'!G$33=0,NA(),'Grymafer indexen'!G34/'Grymafer indexen'!G$33),NA()) -> 0.9961290323 | DI109: =IFERROR(IF('Materiaalindexen o.w.'!#REF!/'Materiaalindexen o.w.'!#REF!=0,NA(),'Materiaalindexen o.w.'!#REF!/'Materiaalindexen o.w.'!#REF!),NA()) ->  | DJ109: =IFERROR(IF('Materiaalindexen o.w.'!#REF!/'Materiaalindexen o.w.'!#REF!=0,NA(),'Materiaalindexen o.w.'!#REF!/'Materiaalindexen o.w.'!#REF!),NA()) ->  | DK109: =IFERROR(IF('Materiaalindexen o.w.'!#REF!/'Materiaalindexen o.w.'!#REF!=0,NA(),'Materiaalindexen o.w.'!#REF!/'Materiaalindexen o.w.'!#REF!),NA()) ->  | DL109: =IFERROR(IF('Materiaalindexen o.w.'!#REF!/'Materiaalindexen o.w.'!#REF!=0,NA(),'Materiaalindexen o.w.'!#REF!/'Materiaalindexen o.w.'!#REF!),NA()) ->  | DM109: =IFERROR(IF('Materiaalindexen o.w.'!#REF!/'Materiaalindexen o.w.'!#REF!=0,NA(),'Materiaalindexen o.w.'!#REF!/'Materiaalindexen o.w.'!#REF!),NA()) ->  | DN109: =IFERROR(IF('Materiaalindexen o.w.'!#REF!/'Materiaalindexen o.w.'!#REF!=0,NA(),'Materiaalindexen o.w.'!#REF!/'Materiaalindexen o.w.'!#REF!),NA()) ->  | DO109: =IFERROR(IF('Materiaalindexen o.w.'!#REF!/'Materiaalindexen o.w.'!#REF!=0,NA(),'Materiaalindexen o.w.'!#REF!/'Materiaalindexen o.w.'!#REF!),NA()) ->  | DP109: =IFERROR(IF('Materiaalindexen o.w.'!#REF!/'Materiaalindexen o.w.'!#REF!=0,NA(),'Materiaalindexen o.w.'!#REF!/'Materiaalindexen o.w.'!#REF!),NA()) ->  | DS109: =Standaardindexen!C32 -> 2018-02-01 | DT109: =IFERROR(IF('Indexen goederen & diensten'!D35/'Indexen goederen & diensten'!D$34=0,NA(),'Indexen goederen & diensten'!D35/'Indexen goederen & diensten'!D$34),NA()) -> 1 | DU109: =IFERROR(IF('Indexen goederen & diensten'!E35/'Indexen goederen & diensten'!E$34=0,NA(),'Indexen goederen & diensten'!E35/'Indexen goederen & diensten'!E$34),NA()) -> 1 | DV109: =IFERROR(IF('Indexen goederen & diensten'!F35/'Indexen goederen & diensten'!F$34=0,NA(),'Indexen goederen & diensten'!F35/'Indexen goederen & diensten'!F$34),NA()) -> 1 | DW109: =IFERROR(IF('Indexen goederen & diensten'!G35/'Indexen goederen & diensten'!G$34=0,NA(),'Indexen goederen & diensten'!G35/'Indexen goederen & diensten'!G$34),NA()) -> 1 | DX109: =IFERROR(IF('Indexen goederen & diensten'!H35/'Indexen goederen & diensten'!H$34=0,NA(),'Indexen goederen & diensten'!H35/'Indexen goederen & diensten'!H$34),NA()) -> 1 | DY109: =IFERROR(IF('Indexen goederen & diensten'!I35/'Indexen goederen & diensten'!I$34=0,NA(),'Indexen goederen & diensten'!I35/'Indexen goederen & diensten'!I$34),NA()) -> 1 | DZ109: =IFERROR(IF('Indexen goederen & diensten'!J35/'Indexen goederen & diensten'!J$34=0,NA(),'Indexen goederen & diensten'!J35/'Indexen goederen & diensten'!J$34),NA()) -> 1 | EA109: =IFERROR(IF('Indexen goederen & diensten'!K35/'Indexen goederen & diensten'!K$34=0,NA(),'Indexen goederen & diensten'!K35/'Indexen goederen & diensten'!K$34),NA()) -> 1 | EB109: =IFERROR(IF('Indexen goederen & diensten'!L35/'Indexen goederen & diensten'!L$34=0,NA(),'Indexen goederen & diensten'!L35/'Indexen goederen & diensten'!L$34),NA()) -> 1 | EC109: =IFERROR(IF('Indexen goederen & diensten'!M35/'Indexen goederen & diensten'!M$34=0,NA(),'Indexen goederen & diensten'!M35/'Indexen goederen & diensten'!M$34),NA()) -> 1 | ED109: =IFERROR(IF('Indexen goederen & diensten'!N35/'Indexen goederen & diensten'!N$34=0,NA(),'Indexen goederen & diensten'!N35/'Indexen goederen & diensten'!N$34),NA()) -> 1 | EE109: =IFERROR(IF('Indexen goederen & diensten'!O35/'Indexen goederen & diensten'!O$34=0,NA(),'Indexen goederen & diensten'!O35/'Indexen goederen & diensten'!O$34),NA()) -> 1 | EF109: =IFERROR(IF('Indexen goederen & diensten'!P35/'Indexen goederen & diensten'!P$34=0,NA(),'Indexen goederen & diensten'!P35/'Indexen goederen & diensten'!P$34),NA()) -> 0.9850498339 | EG109: =IFERROR(IF('Indexen goederen & diensten'!Q35/'Indexen goederen & diensten'!Q$34=0,NA(),'Indexen goederen & diensten'!Q35/'Indexen goederen & diensten'!Q$34),NA()) -> 1.008952551 | EH109: =IFERROR(IF('Indexen goederen & diensten'!R35/'Indexen goederen & diensten'!R$34=0,NA(),'Indexen goederen & diensten'!R35/'Indexen goederen & diensten'!R$34),NA()) -> 1.013220019 | EI109: =IFERROR(IF('Indexen goederen & diensten'!S35/'Indexen goederen & diensten'!S$34=0,NA(),'Indexen goederen & diensten'!S35/'Indexen goederen & diensten'!S$34),NA()) -> 1.026785714 | EJ109: =IFERROR(IF('Indexen goederen & diensten'!T35/'Indexen goederen & diensten'!T$34=0,NA(),'Indexen goederen & diensten'!T35/'Indexen goederen & diensten'!T$34),NA()) -> 1.001749781 | EK109: =IFERROR(IF('Indexen goederen & diensten'!U35/'Indexen goederen & diensten'!U$34=0,NA(),'Indexen goederen & diensten'!U35/'Indexen goederen & diensten'!U$34),NA()) -> 1.00262697 | EL109: =IFERROR(IF('Indexen goederen & diensten'!V35/'Indexen goederen & diensten'!V$34=0,NA(),'Indexen goederen & diensten'!V35/'Indexen goederen & diensten'!V$34),NA()) -> 1 | EM109: =IFERROR(IF('Indexen goederen & diensten'!W35/'Indexen goederen & diensten'!W$34=0,NA(),'Indexen goederen & diensten'!W35/'Indexen goederen & diensten'!W$34),NA()) -> 1.008006405 | EN109: =IFERROR(IF('Indexen goederen & diensten'!X35/'Indexen goederen & diensten'!X$34=0,NA(),'Indexen goederen & diensten'!X35/'Indexen goederen & diensten'!X$34),NA()) -> 1 | EO109: =IFERROR(IF('Indexen goederen & diensten'!Y35/'Indexen goederen & diensten'!Y$34=0,NA(),'Indexen goederen & diensten'!Y35/'Indexen goederen & diensten'!Y$34),NA()) -> 1.004321521 | EP109: =IFERROR(IF('Indexen goederen & diensten'!Z35/'Indexen goederen & diensten'!Z$34=0,NA(),'Indexen goederen & diensten'!Z35/'Indexen goederen & diensten'!Z$34),NA()) -> 0.9836909871 | EQ109: =IFERROR(IF('Indexen goederen & diensten'!AA35/'Indexen goederen & diensten'!AA$34=0,NA(),'Indexen goederen & diensten'!AA35/'Indexen goederen & diensten'!AA$34),NA()) -> 0.8878416588 | ER109: =IFERROR(IF('Indexen goederen & diensten'!AB35/'Indexen goederen & diensten'!AB$34=0,NA(),'Indexen goederen & diensten'!AB35/'Indexen goederen & diensten'!AB$34),NA()) -> 1.015177066 | ES109: =IFERROR(IF('Indexen goederen & diensten'!AC35/'Indexen goederen & diensten'!AC$34=0,NA(),'Indexen goederen & diensten'!AC35/'Indexen goederen & diensten'!AC$34),NA()) -> 1.018581081 | ET109: =IFERROR(IF('Indexen goederen & diensten'!AD35/'Indexen goederen & diensten'!AD$34=0,NA(),'Indexen goederen & diensten'!AD35/'Indexen goederen & diensten'!AD$34),NA()) -> 1.014370245 | EU109: =IFERROR(IF('Indexen goederen & diensten'!AE35/'Indexen goederen & diensten'!AE$34=0,NA(),'Indexen goederen & diensten'!AE35/'Indexen goederen & diensten'!AE$34),NA()) -> 1.01177394 | EV109: =IFERROR(IF('Indexen goederen & diensten'!AF35/'Indexen goederen & diensten'!AF$34=0,NA(),'Indexen goederen & diensten'!AF35/'Indexen goederen & diensten'!AF$34),NA()) -> 1.000868056 | EW109: =IFERROR(IF('Indexen goederen & diensten'!AG35/'Indexen goederen & diensten'!AG$34=0,NA(),'Indexen goederen & diensten'!AG35/'Indexen goederen & diensten'!AG$34),NA()) -> 1.003581021 | EX109: =IFERROR(IF('Indexen goederen & diensten'!AH35/'Indexen goederen & diensten'!AH$34=0,NA(),'Indexen goederen & diensten'!AH35/'Indexen goederen & diensten'!AH$34),NA()) -> 0.9704301075 | EY109: =IFERROR(IF('Indexen goederen & diensten'!AI35/'Indexen goederen & diensten'!AI$34=0,NA(),'Indexen goederen & diensten'!AI35/'Indexen goederen & diensten'!AI$34),NA()) -> 0.9982486865 | EZ109: =IFERROR(IF('Indexen goederen & diensten'!AJ35/'Indexen goederen & diensten'!AJ$34=0,NA(),'Indexen goederen & diensten'!AJ35/'Indexen goederen & diensten'!AJ$34),NA()) -> 1 | FA109: =IFERROR(IF('Indexen goederen & diensten'!AK35/'Indexen goederen & diensten'!AK$34=0,NA(),'Indexen goederen & diensten'!AK35/'Indexen goederen & diensten'!AK$34),NA()) -> 0.9548989114 | FB109: =IFERROR(IF('Indexen goederen & diensten'!AL35/'Indexen goederen & diensten'!AL$34=0,NA(),'Indexen goederen & diensten'!AL35/'Indexen goederen & diensten'!AL$34),NA()) -> 1.00483611 | FC109: =IFERROR(IF('Indexen goederen & diensten'!AM35/'Indexen goederen & diensten'!AM$34=0,NA(),'Indexen goederen & diensten'!AM35/'Indexen goederen & diensten'!AM$34),NA()) -> 1.018404908 | FD109: =IFERROR(IF('Indexen goederen & diensten'!AN35/'Indexen goederen & diensten'!AN$34=0,NA(),'Indexen goederen & diensten'!AN35/'Indexen goederen & diensten'!AN$34),NA()) -> 0.986770428 | FE109: =IFERROR(IF('Indexen goederen & diensten'!AO35/'Indexen goederen & diensten'!AO$34=0,NA(),'Indexen goederen & diensten'!AO35/'Indexen goederen & diensten'!AO$34),NA()) -> 1.001771479 | FF109: =IFERROR(IF('Indexen goederen & diensten'!AP35/'Indexen goederen & diensten'!AP$34=0,NA(),'Indexen goederen & diensten'!AP35/'Indexen goederen & diensten'!AP$34),NA()) -> 0.9982222222 | FG109: =IFERROR(IF('Indexen goederen & diensten'!AQ35/'Indexen goederen & diensten'!AQ$34=0,NA(),'Indexen goederen & diensten'!AQ35/'Indexen goederen & diensten'!AQ$34),NA()) -> 1.00177305 | FH109: =IFERROR(IF('Indexen goederen & diensten'!AR35/'Indexen goederen & diensten'!AR$34=0,NA(),'Indexen goederen & diensten'!AR35/'Indexen goederen & diensten'!AR$34),NA()) -> 1.01182266 | FI109: =IFERROR(IF('Indexen goederen & diensten'!AS35/'Indexen goederen & diensten'!AS$34=0,NA(),'Indexen goederen & diensten'!AS35/'Indexen goederen & diensten'!AS$34),NA()) -> 0.9984152139 | FJ109: =IFERROR(IF('Indexen goederen & diensten'!AT35/'Indexen goederen & diensten'!AT$34=0,NA(),'Indexen goederen & diensten'!AT35/'Indexen goederen & diensten'!AT$34),NA()) -> 1.008704062 | FK109: =IFERROR(IF('Indexen goederen & diensten'!AU35/'Indexen goederen & diensten'!AU$34=0,NA(),'Indexen goederen & diensten'!AU35/'Indexen goederen & diensten'!AU$34),NA()) -> 1.011385199 | FL109: =IFERROR(IF('Indexen goederen & diensten'!AV35/'Indexen goederen & diensten'!AV$34=0,NA(),'Indexen goederen & diensten'!AV35/'Indexen goederen & diensten'!AV$34),NA()) -> 1.023162135 | FM109: =IFERROR(IF('Indexen goederen & diensten'!AW35/'Indexen goederen & diensten'!AW$34=0,NA(),'Indexen goederen & diensten'!AW35/'Indexen goederen & diensten'!AW$34),NA()) -> 1.084269663 | FN109: =IFERROR(IF('Indexen goederen & diensten'!AX35/'Indexen goederen & diensten'!AX$34=0,NA(),'Indexen goederen & diensten'!AX35/'Indexen goederen & diensten'!AX$34),NA()) -> 1.01453958 | FO109: =IFERROR(IF('Indexen goederen & diensten'!AY35/'Indexen goederen & diensten'!AY$34=0,NA(),'Indexen goederen & diensten'!AY35/'Indexen goederen & diensten'!AY$34),NA()) -> 1.01453958 | FP109: =IFERROR(IF('Indexen goederen & diensten'!AZ35/'Indexen goederen & diensten'!AZ$34=0,NA(),'Indexen goederen & diensten'!AZ35/'Indexen goederen & diensten'!AZ$34),NA()) -> 0.9911242604 | FQ109: =IFERROR(IF('Indexen goederen & diensten'!BA35/'Indexen goederen & diensten'!BA$34=0,NA(),'Indexen goederen & diensten'!BA35/'Indexen goederen & diensten'!BA$34),NA()) -> 0.976386037 | FR109: =IFERROR(IF('Indexen goederen & diensten'!BB35/'Indexen goederen & diensten'!BB$34=0,NA(),'Indexen goederen & diensten'!BB35/'Indexen goederen & diensten'!BB$34),NA()) -> 1.01605288 | FS109: =IFERROR(IF('Indexen goederen & diensten'!BC35/'Indexen goederen & diensten'!BC$34=0,NA(),'Indexen goederen & diensten'!BC35/'Indexen goederen & diensten'!BC$34),NA()) -> 1.018248175 | FT109: =IFERROR(IF('Indexen goederen & diensten'!BD35/'Indexen goederen & diensten'!BD$34=0,NA(),'Indexen goederen & diensten'!BD35/'Indexen goederen & diensten'!BD$34),NA()) -> 1.018518519 | FU109: =IFERROR(IF('Indexen goederen & diensten'!BE35/'Indexen goederen & diensten'!BE$34=0,NA(),'Indexen goederen & diensten'!BE35/'Indexen goederen & diensten'!BE$34),NA()) -> 0.9930693069 | FV109: =IFERROR(IF('Indexen goederen & diensten'!BF35/'Indexen goederen & diensten'!BF$34=0,NA(),'Indexen goederen & diensten'!BF35/'Indexen goederen & diensten'!BF$34),NA()) -> 1 | FW109: =IFERROR(IF('Indexen goederen & diensten'!BG35/'Indexen goederen & diensten'!BG$34=0,NA(),'Indexen goederen & diensten'!BG35/'Indexen goederen & diensten'!BG$34),NA()) -> 1.012 | FX109: =IFERROR(IF('Indexen goederen & diensten'!BH35/'Indexen goederen & diensten'!BH$34=0,NA(),'Indexen goederen & diensten'!BH35/'Indexen goederen & diensten'!BH$34),NA()) -> 0.9918433931 | FY109: =IFERROR(IF('Indexen goederen & diensten'!BI35/'Indexen goederen & diensten'!BI$34=0,NA(),'Indexen goederen & diensten'!BI35/'Indexen goederen & diensten'!BI$34),NA()) -> 1.00859375 | FZ109: =IFERROR(IF('Indexen goederen & diensten'!BJ35/'Indexen goederen & diensten'!BJ$34=0,NA(),'Indexen goederen & diensten'!BJ35/'Indexen goederen & diensten'!BJ$34),NA()) -> 0.9933649289 | GA109: =IFERROR(IF('Indexen goederen & diensten'!BK35/'Indexen goederen & diensten'!BK$34=0,NA(),'Indexen goederen & diensten'!BK35/'Indexen goederen & diensten'!BK$34),NA()) -> 0.9924242424 | GB109: =IFERROR(IF('Indexen goederen & diensten'!BL35/'Indexen goederen & diensten'!BL$34=0,NA(),'Indexen goederen & diensten'!BL35/'Indexen goederen & diensten'!BL$34),NA()) -> 0.9828767123 | GC109: =IFERROR(IF('Indexen goederen & diensten'!BM35/'Indexen goederen & diensten'!BM$34=0,NA(),'Indexen goederen & diensten'!BM35/'Indexen goederen & diensten'!BM$34),NA()) -> 0.999122807 | GD109: =IFERROR(IF('Indexen goederen & diensten'!BN35/'Indexen goederen & diensten'!BN$34=0,NA(),'Indexen goederen & diensten'!BN35/'Indexen goederen & diensten'!BN$34),NA()) -> 1 | GE109: =IFERROR(IF('Indexen goederen & diensten'!BO35/'Indexen goederen & diensten'!BO$34=0,NA(),'Indexen goederen & diensten'!BO35/'Indexen goederen & diensten'!BO$34),NA()) -> 1 | GF109: =IFERROR(IF('Indexen goederen & diensten'!BP35/'Indexen goederen & diensten'!BP$34=0,NA(),'Indexen goederen & diensten'!BP35/'Indexen goederen & diensten'!BP$34),NA()) -> 1.021052632 | GG109: =IFERROR(IF('Indexen goederen & diensten'!BQ35/'Indexen goederen & diensten'!BQ$34=0,NA(),'Indexen goederen & diensten'!BQ35/'Indexen goederen & diensten'!BQ$34),NA()) -> 1.008093525 | GH109: =IFERROR(IF('Indexen goederen & diensten'!BR35/'Indexen goederen & diensten'!BR$34=0,NA(),'Indexen goederen & diensten'!BR35/'Indexen goederen & diensten'!BR$34),NA()) -> 1.011009174 | GI109: =IFERROR(IF('Indexen goederen & diensten'!BS35/'Indexen goederen & diensten'!BS$34=0,NA(),'Indexen goederen & diensten'!BS35/'Indexen goederen & diensten'!BS$34),NA()) -> 1.00174216 | GJ109: =IFERROR(IF('Indexen goederen & diensten'!BT35/'Indexen goederen & diensten'!BT$34=0,NA(),'Indexen goederen & diensten'!BT35/'Indexen goederen & diensten'!BT$34),NA()) -> 1.008183306 | GK109: =IFERROR(IF('Indexen goederen & diensten'!BU35/'Indexen goederen & diensten'!BU$34=0,NA(),'Indexen goederen & diensten'!BU35/'Indexen goederen & diensten'!BU$34),NA()) -> 1.010507881 | GL109: =IFERROR(IF('Indexen goederen & diensten'!BV35/'Indexen goederen & diensten'!BV$34=0,NA(),'Indexen goederen & diensten'!BV35/'Indexen goederen & diensten'!BV$34),NA()) -> 1.025568182 | GM109: =IFERROR(IF('Indexen goederen & diensten'!BW35/'Indexen goederen & diensten'!BW$34=0,NA(),'Indexen goederen & diensten'!BW35/'Indexen goederen & diensten'!BW$34),NA()) -> 1 | GN109: =IFERROR(IF('Indexen goederen & diensten'!BX35/'Indexen goederen & diensten'!BX$34=0,NA(),'Indexen goederen & diensten'!BX35/'Indexen goederen & diensten'!BX$34),NA()) -> 1.025217391 | GO109: =IFERROR(IF('Indexen goederen & diensten'!BY35/'Indexen goederen & diensten'!BY$34=0,NA(),'Indexen goederen & diensten'!BY35/'Indexen goederen & diensten'!BY$34),NA()) -> 1.043413174 | GP109: =IFERROR(IF('Indexen goederen & diensten'!BZ35/'Indexen goederen & diensten'!BZ$34=0,NA(),'Indexen goederen & diensten'!BZ35/'Indexen goederen & diensten'!BZ$34),NA()) -> 1.020462633 | GQ109: =IFERROR(IF('Indexen goederen & diensten'!CA35/'Indexen goederen & diensten'!CA$34=0,NA(),'Indexen goederen & diensten'!CA35/'Indexen goederen & diensten'!CA$34),NA()) -> 1.048212801 | GR109: =IFERROR(IF('Indexen goederen & diensten'!CB35/'Indexen goederen & diensten'!CB$34=0,NA(),'Indexen goederen & diensten'!CB35/'Indexen goederen & diensten'!CB$34),NA()) -> 1 | GS109: =IFERROR(IF('Indexen goederen & diensten'!CC35/'Indexen goederen & diensten'!CC$34=0,NA(),'Indexen goederen & diensten'!CC35/'Indexen goederen & diensten'!CC$34),NA()) -> 1.001771479 | GT109: =IFERROR(IF('Indexen goederen & diensten'!CD35/'Indexen goederen & diensten'!CD$34=0,NA(),'Indexen goederen & diensten'!CD35/'Indexen goederen & diensten'!CD$34),NA()) -> 1.010110294 | GU109: =IFERROR(IF('Indexen goederen & diensten'!CE35/'Indexen goederen & diensten'!CE$34=0,NA(),'Indexen goederen & diensten'!CE35/'Indexen goederen & diensten'!CE$34),NA()) -> 1.00199005 | GV109: =IFERROR(IF('Indexen goederen & diensten'!CF35/'Indexen goederen & diensten'!CF$34=0,NA(),'Indexen goederen & diensten'!CF35/'Indexen goederen & diensten'!CF$34),NA()) -> 1.001755926 | GW109: =IFERROR(IF('Indexen goederen & diensten'!CG35/'Indexen goederen & diensten'!CG$34=0,NA(),'Indexen goederen & diensten'!CG35/'Indexen goederen & diensten'!CG$34),NA()) -> 1 | GX109: =IFERROR(IF('Indexen goederen & diensten'!CH35/'Indexen goederen & diensten'!CH$34=0,NA(),'Indexen goederen & diensten'!CH35/'Indexen goederen & diensten'!CH$34),NA()) -> 1.000888889 | GY109: =IFERROR(IF('Indexen goederen & diensten'!CI35/'Indexen goederen & diensten'!CI$34=0,NA(),'Indexen goederen & diensten'!CI35/'Indexen goederen & diensten'!CI$34),NA()) -> 1.00292113 | GZ109: =IFERROR(IF('Indexen goederen & diensten'!CJ35/'Indexen goederen & diensten'!CJ$34=0,NA(),'Indexen goederen & diensten'!CJ35/'Indexen goederen & diensten'!CJ$34),NA()) -> 1.003157895 | HA109: =IFERROR(IF('Indexen goederen & diensten'!CK35/'Indexen goederen & diensten'!CK$34=0,NA(),'Indexen goederen & diensten'!CK35/'Indexen goederen & diensten'!CK$34),NA()) -> 0.9918276374 | HB109: =IFERROR(IF('Indexen goederen & diensten'!CL35/'Indexen goederen & diensten'!CL$34=0,NA(),'Indexen goederen & diensten'!CL35/'Indexen goederen & diensten'!CL$34),NA()) -> 0.9887955182 | HC109: =IFERROR(IF('Indexen goederen & diensten'!CM35/'Indexen goederen & diensten'!CM$34=0,NA(),'Indexen goederen & diensten'!CM35/'Indexen goederen & diensten'!CM$34),NA()) -> 1.002923977 | HD109: =IFERROR(IF('Indexen goederen & diensten'!CN35/'Indexen goederen & diensten'!CN$34=0,NA(),'Indexen goederen & diensten'!CN35/'Indexen goederen & diensten'!CN$34),NA()) -> 1.00090009 | HF109: =Tableau21[[#This Row],[datum]] -> 2018-02-01 | HG109: =IFERROR(IF(Standaardindexen!J32/Standaardindexen!J$31=0,NA(),Standaardindexen!J32/Standaardindexen!J$31),NA()) -> 1.000353994 | HH109: =IFERROR(IF(Standaardindexen!K32/Standaardindexen!K$31=0,NA(),Standaardindexen!K32/Standaardindexen!K$31),NA()) -> 1.00031295 | HI109: =IFERROR(IF(Standaardindexen!L32/Standaardindexen!L$31=0,NA(),Standaardindexen!L32/Standaardindexen!L$31),NA()) -> 1.000344299 | HJ109: =IFERROR(IF(Standaardindexen!M32/Standaardindexen!M$31=0,NA(),Standaardindexen!M32/Standaardindexen!M$31),NA()) -> 1.000354359 | HK109: =IFERROR(IF(Standaardindexen!N32/Standaardindexen!N$31=0,NA(),Standaardindexen!N32/Standaardindexen!N$31),NA()) -> 1.000313264 | HL109: =IFERROR(IF(Standaardindexen!O32/Standaardindexen!O$31=0,NA(),Standaardindexen!O32/Standaardindexen!O$31),NA()) -> 1.000344644 | HM109: =IFERROR(IF(Standaardindexen!P32/Standaardindexen!P$31=0,NA(),Standaardindexen!P32/Standaardindexen!P$31),NA()) -> 1.000361973 | HN109: =IFERROR(IF(Standaardindexen!Q32/Standaardindexen!Q$31=0,NA(),Standaardindexen!Q32/Standaardindexen!Q$31),NA()) -> 1.000319806 | HO109: =IFERROR(IF(Standaardindexen!R32/Standaardindexen!R$31=0,NA(),Standaardindexen!R32/Standaardindexen!R$31),NA()) -> 1.000351842 | HP109: =IFERROR(IF(Standaardindexen!S32/Standaardindexen!S$31=0,NA(),Standaardindexen!S32/Standaardindexen!S$31),NA()) -> 1.000367955 | HQ109: =IFERROR(IF(Standaardindexen!T32/Standaardindexen!T$31=0,NA(),Standaardindexen!T32/Standaardindexen!T$31),NA()) -> 1.000357433 | HR109: =IFERROR(IF(Standaardindexen!U32/Standaardindexen!U$31=0,NA(),Standaardindexen!U32/Standaardindexen!U$31),NA()) -> 1.000357491 | HS109: =IFERROR(IF(Standaardindexen!V32/Standaardindexen!V$31=0,NA(),Standaardindexen!V32/Standaardindexen!V$31),NA()) -> 1.000795355 | HT109: =IFERROR(IF(Standaardindexen!W32/Standaardindexen!W$31=0,NA(),Standaardindexen!W32/Standaardindexen!W$31),NA()) -> 1.000747737 | HU109: =IFERROR(IF(Standaardindexen!X32/Standaardindexen!X$31=0,NA(),Standaardindexen!X32/Standaardindexen!X$31),NA()) -> 0.9960738123 | HV109: =IFERROR(IF(Standaardindexen!Y32/Standaardindexen!Y$31=0,NA(),Standaardindexen!Y32/Standaardindexen!Y$31),NA()) -> 0.9968739717 | HW109: =IFERROR(IF(Standaardindexen!Z32/Standaardindexen!Z$31=0,NA(),Standaardindexen!Z32/Standaardindexen!Z$31),NA()) -> 0.995246718 | HX109: =IFERROR(IF(Standaardindexen!AA32/Standaardindexen!AA$31=0,NA(),Standaardindexen!AA32/Standaardindexen!AA$31),NA()) -> 0.9961118311 | HY109: =IFERROR(IF(Standaardindexen!AB32/Standaardindexen!AB$31=0,NA(),Standaardindexen!AB32/Standaardindexen!AB$31),NA()) -> 0.9951576345 | HZ109: =IFERROR(IF(Standaardindexen!AC32/Standaardindexen!AC$31=0,NA(),Standaardindexen!AC32/Standaardindexen!AC$31),NA()) -> 0.9935228745 | IA109: =Tableau21[[#This Row],[prijsevolutie - volgens prijsherzieningsformule -index i 2021]] -> 1 | IB109: =Tableau21[[#This Row],[prijsevolutie - volgens prijsherzieningsformule -index i]] -> 1 | IC109: =Tableau21[[#This Row],[prijsherzieningsformule - index i 2021]] -> 1 | ID109: =Tableau21[[#This Row],[prijsherzieningsformule - index i]] -> 1 | IE109: =IFERROR(IF('Indexeringen Lonen per PC'!BZ34/'Indexeringen Lonen per PC'!BZ$33=0,NA(),'Indexeringen Lonen per PC'!BZ34/'Indexeringen Lonen per PC'!BZ$33),NA()) -> 1 | IF109: =IFERROR(IF('Indexeringen Lonen per PC'!CA34/'Indexeringen Lonen per PC'!CA$33=0,NA(),'Indexeringen Lonen per PC'!CA34/'Indexeringen Lonen per PC'!CA$33),NA()) -> 1 | IG109: =IFERROR(IF('Indexeringen Lonen per PC'!CB34/'Indexeringen Lonen per PC'!CB$33=0,NA(),'Indexeringen Lonen per PC'!CB34/'Indexeringen Lonen per PC'!CB$33),NA()) -> 1 | IH109: =IFERROR(IF('Indexeringen Lonen per PC'!CC34/'Indexeringen Lonen per PC'!CC$33=0,NA(),'Indexeringen Lonen per PC'!CC34/'Indexeringen Lonen per PC'!CC$33),NA()) -> 1 | II109: =IFERROR(IF('Indexeringen Lonen per PC'!CD34/'Indexeringen Lonen per PC'!CD$33=0,NA(),'Indexeringen Lonen per PC'!CD34/'Indexeringen Lonen per PC'!CD$33),NA()) -> 1 | IJ109: =IFERROR(IF('Indexeringen Lonen per PC'!CE34/'Indexeringen Lonen per PC'!CE$33=0,NA(),'Indexeringen Lonen per PC'!CE34/'Indexeringen Lonen per PC'!CE$33),NA()) -> 1 | IK109: =IFERROR(IF('Indexeringen Lonen per PC'!CF34/'Indexeringen Lonen per PC'!CF$33=0,NA(),'Indexeringen Lonen per PC'!CF34/'Indexeringen Lonen per PC'!CF$33),NA()) -> 1 | IL109: =IFERROR(IF('Indexeringen Lonen per PC'!CG34/'Indexeringen Lonen per PC'!CG$33=0,NA(),'Indexeringen Lonen per PC'!CG34/'Indexeringen Lonen per PC'!CG$33),NA()) -> 1 | IM109: =IFERROR(IF('Indexeringen Lonen per PC'!CH34/'Indexeringen Lonen per PC'!CH$33=0,NA(),'Indexeringen Lonen per PC'!CH34/'Indexeringen Lonen per PC'!CH$33),NA()) -> 1 | IN109: =IFERROR(IF('Indexeringen Lonen per PC'!CI34/'Indexeringen Lonen per PC'!CI$33=0,NA(),'Indexeringen Lonen per PC'!CI34/'Indexeringen Lonen per PC'!CI$33),NA()) -> 1
B110: =Standaardindexen!C33 -> 2018-03-01 | C110: =IFERROR(IF(Standaardindexen!D33/Standaardindexen!D$31=0,NA(),Standaardindexen!D33/Standaardindexen!D$31),NA()) -> 0.9902271862 | D110: =IFERROR(IF(Standaardindexen!E33/Standaardindexen!E$31=0,NA(),Standaardindexen!E33/Standaardindexen!E$31),NA()) -> 1.010853835 | E110: =IFERROR(IF(Standaardindexen!F33/Standaardindexen!F$31=0,NA(),Standaardindexen!F33/Standaardindexen!F$31),NA()) -> 0.9915201005 | F110: =IFERROR(IF(Standaardindexen!G33/Standaardindexen!G$31=0,NA(),Standaardindexen!G33/Standaardindexen!G$31),NA()) -> 0.992338339 | G110: =IFERROR(IF(Standaardindexen!H33/Standaardindexen!H$31=0,NA(),Standaardindexen!H33/Standaardindexen!H$31),NA()) -> 0.9829163855 | H110: =IFERROR(IF(Standaardindexen!I33/Standaardindexen!I$31=0,NA(),Standaardindexen!I33/Standaardindexen!I$31),NA()) -> 1.014556608 | I110: =IF(Standaardindexen!E32=0,NA(),IF(Standaardindexen!J33=0,NA(),IFERROR(ROUND(((StandaardPrijsherzieningformule!$E$26*(Standaardindexen!E32/Standaardindexen!E31)+StandaardPrijsherzieningformule!$E$20*(Standaardindexen!J33/Standaardindexen!J32)+StandaardPrijsherzieningformule!$E$32)*I109),5),NA()))) -> 1.00385 | J110: =IF(Standaardindexen!D32=0,NA(),IF(Standaardindexen!J33=0,NA(),IFERROR(ROUND((((StandaardPrijsherzieningformule!$E$26*(Standaardindexen!D32/Standaardindexen!D31)+StandaardPrijsherzieningformule!$E$20*(Standaardindexen!J33/Standaardindexen!J32)+StandaardPrijsherzieningformule!$E$32))*J109),5),NA()))) -> 1.00071 | K110: =IF(Standaardindexen!E32=0,NA(),IF(Standaardindexen!J33=0,NA(),IFERROR(ROUND(((StandaardPrijsherzieningformule!$E$26*(Standaardindexen!D32/Standaardindexen!D31)+StandaardPrijsherzieningformule!$E$20*(Standaardindexen!J33/Standaardindexen!J32)+StandaardPrijsherzieningformule!$E$32)),5),NA()))) -> 1.00071 | L110: =IF(Standaardindexen!D32=0,NA(),IF(Standaardindexen!J33=0,NA(),IFERROR(ROUND((((StandaardPrijsherzieningformule!$E$26*(Standaardindexen!D32/Standaardindexen!D31)+StandaardPrijsherzieningformule!$E$20*(Standaardindexen!J33/Standaardindexen!J32)+StandaardPrijsherzieningformule!$E$32))),5),NA()))) -> 1.00071 | M110: =IFERROR(IF('Materiaalindexen o.w.'!D36/'Materiaalindexen o.w.'!D$34=0,NA(),'Materiaalindexen o.w.'!D36/'Materiaalindexen o.w.'!D$34),NA()) -> 1 | N110: =IFERROR(IF('Materiaalindexen o.w.'!E36/'Materiaalindexen o.w.'!E$34=0,NA(),'Materiaalindexen o.w.'!E36/'Materiaalindexen o.w.'!E$34),NA()) -> 1 | O110: =IFERROR(IF('Materiaalindexen o.w.'!F36/'Materiaalindexen o.w.'!F$34=0,NA(),'Materiaalindexen o.w.'!F36/'Materiaalindexen o.w.'!F$34),NA()) -> 1 | P110: =IFERROR(IF('Materiaalindexen o.w.'!G36/'Materiaalindexen o.w.'!G$34=0,NA(),'Materiaalindexen o.w.'!G36/'Materiaalindexen o.w.'!G$34),NA()) -> 1 | Q110: =IFERROR(IF('Materiaalindexen o.w.'!H36/'Materiaalindexen o.w.'!H$34=0,NA(),'Materiaalindexen o.w.'!H36/'Materiaalindexen o.w.'!H$34),NA()) -> 1 | R110: =IFERROR(IF('Materiaalindexen o.w.'!I36/'Materiaalindexen o.w.'!I$34=0,NA(),'Materiaalindexen o.w.'!I36/'Materiaalindexen o.w.'!I$34),NA()) -> 1 | S110: =IFERROR(IF('Materiaalindexen o.w.'!J36/'Materiaalindexen o.w.'!J$34=0,NA(),'Materiaalindexen o.w.'!J36/'Materiaalindexen o.w.'!J$34),NA()) -> 1 | T110: =IFERROR(IF('Materiaalindexen o.w.'!K36/'Materiaalindexen o.w.'!K$34=0,NA(),'Materiaalindexen o.w.'!K36/'Materiaalindexen o.w.'!K$34),NA()) -> 1 | U110: =IFERROR(IF('Materiaalindexen o.w.'!L36/'Materiaalindexen o.w.'!L$34=0,NA(),'Materiaalindexen o.w.'!L36/'Materiaalindexen o.w.'!L$34),NA()) -> 1 | V110: =IFERROR(IF('Materiaalindexen o.w.'!M36/'Materiaalindexen o.w.'!M$34=0,NA(),'Materiaalindexen o.w.'!M36/'Materiaalindexen o.w.'!M$34),NA()) -> 1 | W110: =IFERROR(IF('Materiaalindexen o.w.'!N36/'Materiaalindexen o.w.'!N$34=0,NA(),'Materiaalindexen o.w.'!N36/'Materiaalindexen o.w.'!N$34),NA()) -> 1 | X110: =IFERROR(IF('Materiaalindexen o.w.'!O36/'Materiaalindexen o.w.'!O$34=0,NA(),'Materiaalindexen o.w.'!O36/'Materiaalindexen o.w.'!O$34),NA()) -> 1 | Y110: =IFERROR(IF('Materiaalindexen o.w.'!P36/'Materiaalindexen o.w.'!P$34=0,NA(),'Materiaalindexen o.w.'!P36/'Materiaalindexen o.w.'!P$34),NA()) -> 1 | Z110: =IFERROR(IF('Materiaalindexen o.w.'!Q36/'Materiaalindexen o.w.'!Q$34=0,NA(),'Materiaalindexen o.w.'!Q36/'Materiaalindexen o.w.'!Q$34),NA()) -> 1 | AA110: =IFERROR(IF('Materiaalindexen o.w.'!R36/'Materiaalindexen o.w.'!R$34=0,NA(),'Materiaalindexen o.w.'!R36/'Materiaalindexen o.w.'!R$34),NA()) -> 1 | AB110: =IFERROR(IF('Materiaalindexen o.w.'!S36/'Materiaalindexen o.w.'!S$34=0,NA(),'Materiaalindexen o.w.'!S36/'Materiaalindexen o.w.'!S$34),NA()) -> 1 | AC110: =IFERROR(IF('Materiaalindexen o.w.'!T36/'Materiaalindexen o.w.'!T$34=0,NA(),'Materiaalindexen o.w.'!T36/'Materiaalindexen o.w.'!T$34),NA()) -> 1 | AD110: =IFERROR(IF('Materiaalindexen o.w.'!U36/'Materiaalindexen o.w.'!U$34=0,NA(),'Materiaalindexen o.w.'!U36/'Materiaalindexen o.w.'!U$34),NA()) -> 1 | AE110: =IFERROR(IF('Materiaalindexen o.w.'!V36/'Materiaalindexen o.w.'!V$34=0,NA(),'Materiaalindexen o.w.'!V36/'Materiaalindexen o.w.'!V$34),NA()) -> 1 | AF110: =IFERROR(IF('Materiaalindexen o.w.'!W36/'Materiaalindexen o.w.'!W$34=0,NA(),'Materiaalindexen o.w.'!W36/'Materiaalindexen o.w.'!W$34),NA()) -> 1 | AG110: =IFERROR(IF('Materiaalindexen o.w.'!X36/'Materiaalindexen o.w.'!X$34=0,NA(),'Materiaalindexen o.w.'!X36/'Materiaalindexen o.w.'!X$34),NA()) -> 1.052212931 | AH110: =IFERROR(IF('Materiaalindexen o.w.'!Y36/'Materiaalindexen o.w.'!Y$34=0,NA(),'Materiaalindexen o.w.'!Y36/'Materiaalindexen o.w.'!Y$34),NA()) -> 1.061061947 | AI110: =IFERROR(IF('Materiaalindexen o.w.'!Z36/'Materiaalindexen o.w.'!Z$34=0,NA(),'Materiaalindexen o.w.'!Z36/'Materiaalindexen o.w.'!Z$34),NA()) -> 1.060232393 | AJ110: =IFERROR(IF('Materiaalindexen o.w.'!AA36/'Materiaalindexen o.w.'!AA$34=0,NA(),'Materiaalindexen o.w.'!AA36/'Materiaalindexen o.w.'!AA$34),NA()) -> 1.06848965 | AK110: =IFERROR(IF('Materiaalindexen o.w.'!AB36/'Materiaalindexen o.w.'!AB$34=0,NA(),'Materiaalindexen o.w.'!AB36/'Materiaalindexen o.w.'!AB$34),NA()) -> 1.040326633 | AL110: =IFERROR(IF('Materiaalindexen o.w.'!AC36/'Materiaalindexen o.w.'!AC$34=0,NA(),'Materiaalindexen o.w.'!AC36/'Materiaalindexen o.w.'!AC$34),NA()) -> 1.009942754 | AM110: =IFERROR(IF('Materiaalindexen o.w.'!AD36/'Materiaalindexen o.w.'!AD$34=0,NA(),'Materiaalindexen o.w.'!AD36/'Materiaalindexen o.w.'!AD$34),NA()) -> 1.010788634 | AN110: =IFERROR(IF('Materiaalindexen o.w.'!AE36/'Materiaalindexen o.w.'!AE$34=0,NA(),'Materiaalindexen o.w.'!AE36/'Materiaalindexen o.w.'!AE$34),NA()) -> 1.006122449 | AO110: =IFERROR(IF('Materiaalindexen o.w.'!AF36/'Materiaalindexen o.w.'!AF$34=0,NA(),'Materiaalindexen o.w.'!AF36/'Materiaalindexen o.w.'!AF$34),NA()) -> 1.009656005 | AP110: =IFERROR(IF('Materiaalindexen o.w.'!AG36/'Materiaalindexen o.w.'!AG$34=0,NA(),'Materiaalindexen o.w.'!AG36/'Materiaalindexen o.w.'!AG$34),NA()) -> 1.006291447 | AQ110: =IFERROR(IF('Materiaalindexen o.w.'!AH36/'Materiaalindexen o.w.'!AH$34=0,NA(),'Materiaalindexen o.w.'!AH36/'Materiaalindexen o.w.'!AH$34),NA()) -> 1.008127588 | AR110: =IFERROR(IF('Materiaalindexen o.w.'!AI36/'Materiaalindexen o.w.'!AI$34=0,NA(),'Materiaalindexen o.w.'!AI36/'Materiaalindexen o.w.'!AI$34),NA()) -> 1.009656005 | AS110: =IFERROR(IF('Materiaalindexen o.w.'!AJ36/'Materiaalindexen o.w.'!AJ$34=0,NA(),'Materiaalindexen o.w.'!AJ36/'Materiaalindexen o.w.'!AJ$34),NA()) -> 0.9981511691 | AT110: =IFERROR(IF('Materiaalindexen o.w.'!AK36/'Materiaalindexen o.w.'!AK$34=0,NA(),'Materiaalindexen o.w.'!AK36/'Materiaalindexen o.w.'!AK$34),NA()) -> 1.011100973 | AU110: =IFERROR(IF('Materiaalindexen o.w.'!AL36/'Materiaalindexen o.w.'!AL$34=0,NA(),'Materiaalindexen o.w.'!AL36/'Materiaalindexen o.w.'!AL$34),NA()) -> 1.006461486 | AV110: =IFERROR(IF('Materiaalindexen o.w.'!AM36/'Materiaalindexen o.w.'!AM$34=0,NA(),'Materiaalindexen o.w.'!AM36/'Materiaalindexen o.w.'!AM$34),NA()) -> 1.029311941 | AW110: =IFERROR(IF('Materiaalindexen o.w.'!AN36/'Materiaalindexen o.w.'!AN$34=0,NA(),'Materiaalindexen o.w.'!AN36/'Materiaalindexen o.w.'!AN$34),NA()) -> 1.029226273 | AX110: =IFERROR(IF('Materiaalindexen o.w.'!AO36/'Materiaalindexen o.w.'!AO$34=0,NA(),'Materiaalindexen o.w.'!AO36/'Materiaalindexen o.w.'!AO$34),NA()) -> 1.029257776 | AY110: =IFERROR(IF('Materiaalindexen o.w.'!AP36/'Materiaalindexen o.w.'!AP$34=0,NA(),'Materiaalindexen o.w.'!AP36/'Materiaalindexen o.w.'!AP$34),NA()) -> 0.9986156959 | AZ110: =IFERROR(IF('Materiaalindexen o.w.'!AQ36/'Materiaalindexen o.w.'!AQ$34=0,NA(),'Materiaalindexen o.w.'!AQ36/'Materiaalindexen o.w.'!AQ$34),NA()) -> 1.014732143 | BA110: =IFERROR(IF('Materiaalindexen o.w.'!AR36/'Materiaalindexen o.w.'!AR$34=0,NA(),'Materiaalindexen o.w.'!AR36/'Materiaalindexen o.w.'!AR$34),NA()) -> 1.008574642 | BB110: =IFERROR(IF('Materiaalindexen o.w.'!AS36/'Materiaalindexen o.w.'!AS$34=0,NA(),'Materiaalindexen o.w.'!AS36/'Materiaalindexen o.w.'!AS$34),NA()) ->  | BC110: =IFERROR(IF('Materiaalindexen o.w.'!AT36/'Materiaalindexen o.w.'!AT$34=0,NA(),'Materiaalindexen o.w.'!AT36/'Materiaalindexen o.w.'!AT$34),NA()) ->  | BD110: =IFERROR(IF('Materiaalindexen o.w.'!AU36/'Materiaalindexen o.w.'!AU$34=0,NA(),'Materiaalindexen o.w.'!AU36/'Materiaalindexen o.w.'!AU$34),NA()) ->  | BE110: =IFERROR(IF('Materiaalindexen o.w.'!AV36/'Materiaalindexen o.w.'!AV$34=0,NA(),'Materiaalindexen o.w.'!AV36/'Materiaalindexen o.w.'!AV$34),NA()) ->  | BF110: =IFERROR(IF('Materiaalindexen o.w.'!AW36/'Materiaalindexen o.w.'!AW$34=0,NA(),'Materiaalindexen o.w.'!AW36/'Materiaalindexen o.w.'!AW$34),NA()) ->  | BG110: =IFERROR(IF('Materiaalindexen o.w.'!AX36/'Materiaalindexen o.w.'!AX$34=0,NA(),'Materiaalindexen o.w.'!AX36/'Materiaalindexen o.w.'!AX$34),NA()) ->  | BH110: =IFERROR(IF('Materiaalindexen o.w.'!AY36/'Materiaalindexen o.w.'!AY$34=0,NA(),'Materiaalindexen o.w.'!AY36/'Materiaalindexen o.w.'!AY$34),NA()) ->  | BI110: =IFERROR(IF('Materiaalindexen o.w.'!AZ36/'Materiaalindexen o.w.'!AZ$34=0,NA(),'Materiaalindexen o.w.'!AZ36/'Materiaalindexen o.w.'!AZ$34),NA()) -> 0.9168646081 | BJ110: =IFERROR(IF('Materiaalindexen o.w.'!BA36/'Materiaalindexen o.w.'!BA$34=0,NA(),'Materiaalindexen o.w.'!BA36/'Materiaalindexen o.w.'!BA$34),NA()) -> 0.949071618 | BK110: =IFERROR(IF('Materiaalindexen o.w.'!BB36/'Materiaalindexen o.w.'!BB$34=0,NA(),'Materiaalindexen o.w.'!BB36/'Materiaalindexen o.w.'!BB$34),NA()) -> 0.949071618 | BL110: =IFERROR(IF('Materiaalindexen o.w.'!BC36/'Materiaalindexen o.w.'!BC$34=0,NA(),'Materiaalindexen o.w.'!BC36/'Materiaalindexen o.w.'!BC$34),NA()) -> 0.9415844008 | BM110: =IFERROR(IF('Materiaalindexen o.w.'!BD36/'Materiaalindexen o.w.'!BD$34=0,NA(),'Materiaalindexen o.w.'!BD36/'Materiaalindexen o.w.'!BD$34),NA()) -> 0.9411382642 | BN110: =IFERROR(IF('Materiaalindexen o.w.'!BE36/'Materiaalindexen o.w.'!BE$34=0,NA(),'Materiaalindexen o.w.'!BE36/'Materiaalindexen o.w.'!BE$34),NA()) -> 1 | BO110: =IFERROR(IF('Materiaalindexen o.w.'!BF36/'Materiaalindexen o.w.'!BF$34=0,NA(),'Materiaalindexen o.w.'!BF36/'Materiaalindexen o.w.'!BF$34),NA()) -> 0.9272926963 | BP110: =IFERROR(IF('Materiaalindexen o.w.'!BG36/'Materiaalindexen o.w.'!BG$34=0,NA(),'Materiaalindexen o.w.'!BG36/'Materiaalindexen o.w.'!BG$34),NA()) ->  | BQ110: =IFERROR(IF('Materiaalindexen o.w.'!BH36/'Materiaalindexen o.w.'!BH$34=0,NA(),'Materiaalindexen o.w.'!BH36/'Materiaalindexen o.w.'!BH$34),NA()) -> 1.029336371 | BR110: =IFERROR(IF('Materiaalindexen o.w.'!BI36/'Materiaalindexen o.w.'!BI$34=0,NA(),'Materiaalindexen o.w.'!BI36/'Materiaalindexen o.w.'!BI$34),NA()) -> 0.9864777849 | BS110: =IFERROR(IF('Materiaalindexen o.w.'!BJ36/'Materiaalindexen o.w.'!BJ$34=0,NA(),'Materiaalindexen o.w.'!BJ36/'Materiaalindexen o.w.'!BJ$34),NA()) -> 1.016707053 | BT110: =IFERROR(IF('Materiaalindexen o.w.'!BK36/'Materiaalindexen o.w.'!BK$34=0,NA(),'Materiaalindexen o.w.'!BK36/'Materiaalindexen o.w.'!BK$34),NA()) -> 0.9970112907 | BU110: =IFERROR(IF('Materiaalindexen o.w.'!BL36/'Materiaalindexen o.w.'!BL$34=0,NA(),'Materiaalindexen o.w.'!BL36/'Materiaalindexen o.w.'!BL$34),NA()) -> 1.013582966 | BV110: =IFERROR(IF('Materiaalindexen o.w.'!BM36/'Materiaalindexen o.w.'!BM$34=0,NA(),'Materiaalindexen o.w.'!BM36/'Materiaalindexen o.w.'!BM$34),NA()) -> 1 | BW110: =IFERROR(IF('Materiaalindexen o.w.'!BN36/'Materiaalindexen o.w.'!BN$34=0,NA(),'Materiaalindexen o.w.'!BN36/'Materiaalindexen o.w.'!BN$34),NA()) -> 1 | BX110: =IFERROR(IF('Materiaalindexen o.w.'!BO36/'Materiaalindexen o.w.'!BO$34=0,NA(),'Materiaalindexen o.w.'!BO36/'Materiaalindexen o.w.'!BO$34),NA()) -> 1 | BY110: =IFERROR(IF('Materiaalindexen o.w.'!BP36/'Materiaalindexen o.w.'!BP$34=0,NA(),'Materiaalindexen o.w.'!BP36/'Materiaalindexen o.w.'!BP$34),NA()) -> 1 | BZ110: =IFERROR(IF('Materiaalindexen o.w.'!BQ36/'Materiaalindexen o.w.'!BQ$34=0,NA(),'Materiaalindexen o.w.'!BQ36/'Materiaalindexen o.w.'!BQ$34),NA()) -> 0.9835599756 | CA110: =IFERROR(IF('Materiaalindexen o.w.'!BR36/'Materiaalindexen o.w.'!BR$34=0,NA(),'Materiaalindexen o.w.'!BR36/'Materiaalindexen o.w.'!BR$34),NA()) -> 0.9835231896 | CB110: =IFERROR(IF('Materiaalindexen o.w.'!BS36/'Materiaalindexen o.w.'!BS$34=0,NA(),'Materiaalindexen o.w.'!BS36/'Materiaalindexen o.w.'!BS$34),NA()) -> 0.9834963325 | CC110: =IFERROR(IF('Materiaalindexen o.w.'!BT36/'Materiaalindexen o.w.'!BT$34=0,NA(),'Materiaalindexen o.w.'!BT36/'Materiaalindexen o.w.'!BT$34),NA()) -> 0.9833129833 | CD110: =IFERROR(IF('Materiaalindexen o.w.'!BU36/'Materiaalindexen o.w.'!BU$34=0,NA(),'Materiaalindexen o.w.'!BU36/'Materiaalindexen o.w.'!BU$34),NA()) -> 1 | CE110: =IFERROR(IF('Materiaalindexen o.w.'!BV36/'Materiaalindexen o.w.'!BV$34=0,NA(),'Materiaalindexen o.w.'!BV36/'Materiaalindexen o.w.'!BV$34),NA()) -> 1 | CF110: =IFERROR(IF('Materiaalindexen o.w.'!BW36/'Materiaalindexen o.w.'!BW$34=0,NA(),'Materiaalindexen o.w.'!BW36/'Materiaalindexen o.w.'!BW$34),NA()) -> 1 | CG110: =IFERROR(IF('Materiaalindexen o.w.'!BX36/'Materiaalindexen o.w.'!BX$34=0,NA(),'Materiaalindexen o.w.'!BX36/'Materiaalindexen o.w.'!BX$34),NA()) -> 1 | CH110: =IFERROR(IF('Materiaalindexen o.w.'!BY36/'Materiaalindexen o.w.'!BY$34=0,NA(),'Materiaalindexen o.w.'!BY36/'Materiaalindexen o.w.'!BY$34),NA()) -> 1 | CI110: =IFERROR(IF('Materiaalindexen o.w.'!BZ36/'Materiaalindexen o.w.'!BZ$34=0,NA(),'Materiaalindexen o.w.'!BZ36/'Materiaalindexen o.w.'!BZ$34),NA()) -> 1 | CJ110: =IFERROR(IF('Materiaalindexen o.w.'!CA36/'Materiaalindexen o.w.'!CA$34=0,NA(),'Materiaalindexen o.w.'!CA36/'Materiaalindexen o.w.'!CA$34),NA()) -> 1 | CK110: =IFERROR(IF('Materiaalindexen o.w.'!CB36/'Materiaalindexen o.w.'!CB$34=0,NA(),'Materiaalindexen o.w.'!CB36/'Materiaalindexen o.w.'!CB$34),NA()) -> 1.00142783 | CL110: =IFERROR(IF('Materiaalindexen o.w.'!CC36/'Materiaalindexen o.w.'!CC$34=0,NA(),'Materiaalindexen o.w.'!CC36/'Materiaalindexen o.w.'!CC$34),NA()) -> 1.001297859 | CM110: =IFERROR(IF('Materiaalindexen o.w.'!CD36/'Materiaalindexen o.w.'!CD$34=0,NA(),'Materiaalindexen o.w.'!CD36/'Materiaalindexen o.w.'!CD$34),NA()) -> 1.001298027 | CN110: =IFERROR(IF('Materiaalindexen o.w.'!CE36/'Materiaalindexen o.w.'!CE$34=0,NA(),'Materiaalindexen o.w.'!CE36/'Materiaalindexen o.w.'!CE$34),NA()) -> 0.9597750865 | CO110: =IFERROR(IF('Materiaalindexen o.w.'!CF36/'Materiaalindexen o.w.'!CF$34=0,NA(),'Materiaalindexen o.w.'!CF36/'Materiaalindexen o.w.'!CF$34),NA()) -> 0.9597750865 | CP110: =IFERROR(IF('Materiaalindexen o.w.'!CG36/'Materiaalindexen o.w.'!CG$34=0,NA(),'Materiaalindexen o.w.'!CG36/'Materiaalindexen o.w.'!CG$34),NA()) -> 0.9709086556 | CQ110: =IFERROR(IF('Materiaalindexen o.w.'!CH36/'Materiaalindexen o.w.'!CH$34=0,NA(),'Materiaalindexen o.w.'!CH36/'Materiaalindexen o.w.'!CH$34),NA()) -> 0.9707959306 | CR110: =IFERROR(IF('Materiaalindexen o.w.'!CI36/'Materiaalindexen o.w.'!CI$34=0,NA(),'Materiaalindexen o.w.'!CI36/'Materiaalindexen o.w.'!CI$34),NA()) -> 0.9782331828 | CS110: =IFERROR(IF('Materiaalindexen o.w.'!CJ36/'Materiaalindexen o.w.'!CJ$34=0,NA(),'Materiaalindexen o.w.'!CJ36/'Materiaalindexen o.w.'!CJ$34),NA()) -> 0.914036266 | CT110: =IFERROR(IF('Materiaalindexen o.w.'!CK36/'Materiaalindexen o.w.'!CK$34=0,NA(),'Materiaalindexen o.w.'!CK36/'Materiaalindexen o.w.'!CK$34),NA()) -> 0.9769894535 | CU110: =IFERROR(IF('Materiaalindexen o.w.'!CL36/'Materiaalindexen o.w.'!CL$34=0,NA(),'Materiaalindexen o.w.'!CL36/'Materiaalindexen o.w.'!CL$34),NA()) -> 0.9697329377 | CV110: =IFERROR(IF('Materiaalindexen o.w.'!CM36/'Materiaalindexen o.w.'!CM$34=0,NA(),'Materiaalindexen o.w.'!CM36/'Materiaalindexen o.w.'!CM$34),NA()) -> 1.023150958 | CW110: =IFERROR(IF('Materiaalindexen o.w.'!CN36/'Materiaalindexen o.w.'!CN$34=0,NA(),'Materiaalindexen o.w.'!CN36/'Materiaalindexen o.w.'!CN$34),NA()) -> 1.010613074 | CX110: =IFERROR(IF('Materiaalindexen o.w.'!CO36/'Materiaalindexen o.w.'!CO$34=0,NA(),'Materiaalindexen o.w.'!CO36/'Materiaalindexen o.w.'!CO$34),NA()) -> 0.9878035259 | CY110: =IFERROR(IF('Materiaalindexen o.w.'!CP36/'Materiaalindexen o.w.'!CP$34=0,NA(),'Materiaalindexen o.w.'!CP36/'Materiaalindexen o.w.'!CP$34),NA()) -> 1.003816794 | CZ110: =IFERROR(IF('Materiaalindexen o.w.'!CQ36/'Materiaalindexen o.w.'!CQ$34=0,NA(),'Materiaalindexen o.w.'!CQ36/'Materiaalindexen o.w.'!CQ$34),NA()) -> 1 | DA110: =IFERROR(IF('Materiaalindexen o.w.'!CR36/'Materiaalindexen o.w.'!CR$34=0,NA(),'Materiaalindexen o.w.'!CR36/'Materiaalindexen o.w.'!CR$34),NA()) ->  | DB110: =IFERROR(IF('Materiaalindexen o.w.'!CS36/'Materiaalindexen o.w.'!CS$34=0,NA(),'Materiaalindexen o.w.'!CS36/'Materiaalindexen o.w.'!CS$34),NA()) ->  | DC110: =IFERROR(IF('Materiaalindexen o.w.'!CT36/'Materiaalindexen o.w.'!CT$34=0,NA(),'Materiaalindexen o.w.'!CT36/'Materiaalindexen o.w.'!CT$34),NA()) ->  | DD110: =IFERROR(IF('Materiaalindexen o.w.'!CU36/'Materiaalindexen o.w.'!CU$34=0,NA(),'Materiaalindexen o.w.'!CU36/'Materiaalindexen o.w.'!CU$34),NA()) ->  | DE110: =IFERROR(IF('Grymafer indexen'!D35/'Grymafer indexen'!D$33=0,NA(),'Grymafer indexen'!D35/'Grymafer indexen'!D$33),NA()) -> 0.998459168 | DF110: =IFERROR(IF('Grymafer indexen'!E35/'Grymafer indexen'!E$33=0,NA(),'Grymafer indexen'!E35/'Grymafer indexen'!E$33),NA()) -> 1 | DG110: =IFERROR(IF('Grymafer indexen'!F35/'Grymafer indexen'!F$33=0,NA(),'Grymafer indexen'!F35/'Grymafer indexen'!F$33),NA()) -> 0.9988876529 | DH110: =IFERROR(IF('Grymafer indexen'!G35/'Grymafer indexen'!G$33=0,NA(),'Grymafer indexen'!G35/'Grymafer indexen'!G$33),NA()) -> 0.9948387097 | DI110: =IFERROR(IF('Materiaalindexen o.w.'!#REF!/'Materiaalindexen o.w.'!#REF!=0,NA(),'Materiaalindexen o.w.'!#REF!/'Materiaalindexen o.w.'!#REF!),NA()) ->  | DJ110: =IFERROR(IF('Materiaalindexen o.w.'!#REF!/'Materiaalindexen o.w.'!#REF!=0,NA(),'Materiaalindexen o.w.'!#REF!/'Materiaalindexen o.w.'!#REF!),NA()) ->  | DK110: =IFERROR(IF('Materiaalindexen o.w.'!#REF!/'Materiaalindexen o.w.'!#REF!=0,NA(),'Materiaalindexen o.w.'!#REF!/'Materiaalindexen o.w.'!#REF!),NA()) ->  | DL110: =IFERROR(IF('Materiaalindexen o.w.'!#REF!/'Materiaalindexen o.w.'!#REF!=0,NA(),'Materiaalindexen o.w.'!#REF!/'Materiaalindexen o.w.'!#REF!),NA()) ->  | DM110: =IFERROR(IF('Materiaalindexen o.w.'!#REF!/'Materiaalindexen o.w.'!#REF!=0,NA(),'Materiaalindexen o.w.'!#REF!/'Materiaalindexen o.w.'!#REF!),NA()) ->  | DN110: =IFERROR(IF('Materiaalindexen o.w.'!#REF!/'Materiaalindexen o.w.'!#REF!=0,NA(),'Materiaalindexen o.w.'!#REF!/'Materiaalindexen o.w.'!#REF!),NA()) ->  | DO110: =IFERROR(IF('Materiaalindexen o.w.'!#REF!/'Materiaalindexen o.w.'!#REF!=0,NA(),'Materiaalindexen o.w.'!#REF!/'Materiaalindexen o.w.'!#REF!),NA()) ->  | DP110: =IFERROR(IF('Materiaalindexen o.w.'!#REF!/'Materiaalindexen o.w.'!#REF!=0,NA(),'Materiaalindexen o.w.'!#REF!/'Materiaalindexen o.w.'!#REF!),NA()) ->  | DS110: =Standaardindexen!C33 -> 2018-03-01 | DT110: =IFERROR(IF('Indexen goederen & diensten'!D36/'Indexen goederen & diensten'!D$34=0,NA(),'Indexen goederen & diensten'!D36/'Indexen goederen & diensten'!D$34),NA()) -> 1 | DU110: =IFERROR(IF('Indexen goederen & diensten'!E36/'Indexen goederen & diensten'!E$34=0,NA(),'Indexen goederen & diensten'!E36/'Indexen goederen & diensten'!E$34),NA()) -> 1 | DV110: =IFERROR(IF('Indexen goederen & diensten'!F36/'Indexen goederen & diensten'!F$34=0,NA(),'Indexen goederen & diensten'!F36/'Indexen goederen & diensten'!F$34),NA()) -> 1 | DW110: =IFERROR(IF('Indexen goederen & diensten'!G36/'Indexen goederen & diensten'!G$34=0,NA(),'Indexen goederen & diensten'!G36/'Indexen goederen & diensten'!G$34),NA()) -> 1 | DX110: =IFERROR(IF('Indexen goederen & diensten'!H36/'Indexen goederen & diensten'!H$34=0,NA(),'Indexen goederen & diensten'!H36/'Indexen goederen & diensten'!H$34),NA()) -> 1 | DY110: =IFERROR(IF('Indexen goederen & diensten'!I36/'Indexen goederen & diensten'!I$34=0,NA(),'Indexen goederen & diensten'!I36/'Indexen goederen & diensten'!I$34),NA()) -> 1 | DZ110: =IFERROR(IF('Indexen goederen & diensten'!J36/'Indexen goederen & diensten'!J$34=0,NA(),'Indexen goederen & diensten'!J36/'Indexen goederen & diensten'!J$34),NA()) -> 1 | EA110: =IFERROR(IF('Indexen goederen & diensten'!K36/'Indexen goederen & diensten'!K$34=0,NA(),'Indexen goederen & diensten'!K36/'Indexen goederen & diensten'!K$34),NA()) -> 1 | EB110: =IFERROR(IF('Indexen goederen & diensten'!L36/'Indexen goederen & diensten'!L$34=0,NA(),'Indexen goederen & diensten'!L36/'Indexen goederen & diensten'!L$34),NA()) -> 1 | EC110: =IFERROR(IF('Indexen goederen & diensten'!M36/'Indexen goederen & diensten'!M$34=0,NA(),'Indexen goederen & diensten'!M36/'Indexen goederen & diensten'!M$34),NA()) -> 1 | ED110: =IFERROR(IF('Indexen goederen & diensten'!N36/'Indexen goederen & diensten'!N$34=0,NA(),'Indexen goederen & diensten'!N36/'Indexen goederen & diensten'!N$34),NA()) -> 1 | EE110: =IFERROR(IF('Indexen goederen & diensten'!O36/'Indexen goederen & diensten'!O$34=0,NA(),'Indexen goederen & diensten'!O36/'Indexen goederen & diensten'!O$34),NA()) -> 1 | EF110: =IFERROR(IF('Indexen goederen & diensten'!P36/'Indexen goederen & diensten'!P$34=0,NA(),'Indexen goederen & diensten'!P36/'Indexen goederen & diensten'!P$34),NA()) -> 0.9792358804 | EG110: =IFERROR(IF('Indexen goederen & diensten'!Q36/'Indexen goederen & diensten'!Q$34=0,NA(),'Indexen goederen & diensten'!Q36/'Indexen goederen & diensten'!Q$34),NA()) -> 1.007162041 | EH110: =IFERROR(IF('Indexen goederen & diensten'!R36/'Indexen goederen & diensten'!R$34=0,NA(),'Indexen goederen & diensten'!R36/'Indexen goederen & diensten'!R$34),NA()) -> 1.013220019 | EI110: =IFERROR(IF('Indexen goederen & diensten'!S36/'Indexen goederen & diensten'!S$34=0,NA(),'Indexen goederen & diensten'!S36/'Indexen goederen & diensten'!S$34),NA()) -> 1.017857143 | EJ110: =IFERROR(IF('Indexen goederen & diensten'!T36/'Indexen goederen & diensten'!T$34=0,NA(),'Indexen goederen & diensten'!T36/'Indexen goederen & diensten'!T$34),NA()) -> 1.001749781 | EK110: =IFERROR(IF('Indexen goederen & diensten'!U36/'Indexen goederen & diensten'!U$34=0,NA(),'Indexen goederen & diensten'!U36/'Indexen goederen & diensten'!U$34),NA()) -> 1.00262697 | EL110: =IFERROR(IF('Indexen goederen & diensten'!V36/'Indexen goederen & diensten'!V$34=0,NA(),'Indexen goederen & diensten'!V36/'Indexen goederen & diensten'!V$34),NA()) -> 1 | EM110: =IFERROR(IF('Indexen goederen & diensten'!W36/'Indexen goederen & diensten'!W$34=0,NA(),'Indexen goederen & diensten'!W36/'Indexen goederen & diensten'!W$34),NA()) -> 1.008006405 | EN110: =IFERROR(IF('Indexen goederen & diensten'!X36/'Indexen goederen & diensten'!X$34=0,NA(),'Indexen goederen & diensten'!X36/'Indexen goederen & diensten'!X$34),NA()) -> 1 | EO110: =IFERROR(IF('Indexen goederen & diensten'!Y36/'Indexen goederen & diensten'!Y$34=0,NA(),'Indexen goederen & diensten'!Y36/'Indexen goederen & diensten'!Y$34),NA()) -> 1.007778738 | EP110: =IFERROR(IF('Indexen goederen & diensten'!Z36/'Indexen goederen & diensten'!Z$34=0,NA(),'Indexen goederen & diensten'!Z36/'Indexen goederen & diensten'!Z$34),NA()) -> 0.9768240343 | EQ110: =IFERROR(IF('Indexen goederen & diensten'!AA36/'Indexen goederen & diensten'!AA$34=0,NA(),'Indexen goederen & diensten'!AA36/'Indexen goederen & diensten'!AA$34),NA()) -> 0.8878416588 | ER110: =IFERROR(IF('Indexen goederen & diensten'!AB36/'Indexen goederen & diensten'!AB$34=0,NA(),'Indexen goederen & diensten'!AB36/'Indexen goederen & diensten'!AB$34),NA()) -> 1.017706577 | ES110: =IFERROR(IF('Indexen goederen & diensten'!AC36/'Indexen goederen & diensten'!AC$34=0,NA(),'Indexen goederen & diensten'!AC36/'Indexen goederen & diensten'!AC$34),NA()) -> 1.017736486 | ET110: =IFERROR(IF('Indexen goederen & diensten'!AD36/'Indexen goederen & diensten'!AD$34=0,NA(),'Indexen goederen & diensten'!AD36/'Indexen goederen & diensten'!AD$34),NA()) -> 1.018596788 | EU110: =IFERROR(IF('Indexen goederen & diensten'!AE36/'Indexen goederen & diensten'!AE$34=0,NA(),'Indexen goederen & diensten'!AE36/'Indexen goederen & diensten'!AE$34),NA()) -> 1.01177394 | EV110: =IFERROR(IF('Indexen goederen & diensten'!AF36/'Indexen goederen & diensten'!AF$34=0,NA(),'Indexen goederen & diensten'!AF36/'Indexen goederen & diensten'!AF$34),NA()) -> 1.000868056 | EW110: =IFERROR(IF('Indexen goederen & diensten'!AG36/'Indexen goederen & diensten'!AG$34=0,NA(),'Indexen goederen & diensten'!AG36/'Indexen goederen & diensten'!AG$34),NA()) -> 1.005371531 | EX110: =IFERROR(IF('Indexen goederen & diensten'!AH36/'Indexen goederen & diensten'!AH$34=0,NA(),'Indexen goederen & diensten'!AH36/'Indexen goederen & diensten'!AH$34),NA()) -> 0.976702509 | EY110: =IFERROR(IF('Indexen goederen & diensten'!AI36/'Indexen goederen & diensten'!AI$34=0,NA(),'Indexen goederen & diensten'!AI36/'Indexen goederen & diensten'!AI$34),NA()) -> 0.9894921191 | EZ110: =IFERROR(IF('Indexen goederen & diensten'!AJ36/'Indexen goederen & diensten'!AJ$34=0,NA(),'Indexen goederen & diensten'!AJ36/'Indexen goederen & diensten'!AJ$34),NA()) -> 0.9879414298 | FA110: =IFERROR(IF('Indexen goederen & diensten'!AK36/'Indexen goederen & diensten'!AK$34=0,NA(),'Indexen goederen & diensten'!AK36/'Indexen goederen & diensten'!AK$34),NA()) -> 0.9517884914 | FB110: =IFERROR(IF('Indexen goederen & diensten'!AL36/'Indexen goederen & diensten'!AL$34=0,NA(),'Indexen goederen & diensten'!AL36/'Indexen goederen & diensten'!AL$34),NA()) -> 1.00483611 | FC110: =IFERROR(IF('Indexen goederen & diensten'!AM36/'Indexen goederen & diensten'!AM$34=0,NA(),'Indexen goederen & diensten'!AM36/'Indexen goederen & diensten'!AM$34),NA()) -> 1.01051709 | FD110: =IFERROR(IF('Indexen goederen & diensten'!AN36/'Indexen goederen & diensten'!AN$34=0,NA(),'Indexen goederen & diensten'!AN36/'Indexen goederen & diensten'!AN$34),NA()) -> 0.9953307393 | FE110: =IFERROR(IF('Indexen goederen & diensten'!AO36/'Indexen goederen & diensten'!AO$34=0,NA(),'Indexen goederen & diensten'!AO36/'Indexen goederen & diensten'!AO$34),NA()) -> 1.013286094 | FF110: =IFERROR(IF('Indexen goederen & diensten'!AP36/'Indexen goederen & diensten'!AP$34=0,NA(),'Indexen goederen & diensten'!AP36/'Indexen goederen & diensten'!AP$34),NA()) -> 0.9982222222 | FG110: =IFERROR(IF('Indexen goederen & diensten'!AQ36/'Indexen goederen & diensten'!AQ$34=0,NA(),'Indexen goederen & diensten'!AQ36/'Indexen goederen & diensten'!AQ$34),NA()) -> 1.015070922 | FH110: =IFERROR(IF('Indexen goederen & diensten'!AR36/'Indexen goederen & diensten'!AR$34=0,NA(),'Indexen goederen & diensten'!AR36/'Indexen goederen & diensten'!AR$34),NA()) -> 1.02955665 | FI110: =IFERROR(IF('Indexen goederen & diensten'!AS36/'Indexen goederen & diensten'!AS$34=0,NA(),'Indexen goederen & diensten'!AS36/'Indexen goederen & diensten'!AS$34),NA()) -> 1.006339144 | FJ110: =IFERROR(IF('Indexen goederen & diensten'!AT36/'Indexen goederen & diensten'!AT$34=0,NA(),'Indexen goederen & diensten'!AT36/'Indexen goederen & diensten'!AT$34),NA()) -> 1.03384913 | FK110: =IFERROR(IF('Indexen goederen & diensten'!AU36/'Indexen goederen & diensten'!AU$34=0,NA(),'Indexen goederen & diensten'!AU36/'Indexen goederen & diensten'!AU$34),NA()) -> 1.014231499 | FL110: =IFERROR(IF('Indexen goederen & diensten'!AV36/'Indexen goederen & diensten'!AV$34=0,NA(),'Indexen goederen & diensten'!AV36/'Indexen goederen & diensten'!AV$34),NA()) -> 1.026183283 | FM110: =IFERROR(IF('Indexen goederen & diensten'!AW36/'Indexen goederen & diensten'!AW$34=0,NA(),'Indexen goederen & diensten'!AW36/'Indexen goederen & diensten'!AW$34),NA()) -> 1.109550562 | FN110: =IFERROR(IF('Indexen goederen & diensten'!AX36/'Indexen goederen & diensten'!AX$34=0,NA(),'Indexen goederen & diensten'!AX36/'Indexen goederen & diensten'!AX$34),NA()) -> 1.01453958 | FO110: =IFERROR(IF('Indexen goederen & diensten'!AY36/'Indexen goederen & diensten'!AY$34=0,NA(),'Indexen goederen & diensten'!AY36/'Indexen goederen & diensten'!AY$34),NA()) -> 1.01453958 | FP110: =IFERROR(IF('Indexen goederen & diensten'!AZ36/'Indexen goederen & diensten'!AZ$34=0,NA(),'Indexen goederen & diensten'!AZ36/'Indexen goederen & diensten'!AZ$34),NA()) -> 0.9921104536 | FQ110: =IFERROR(IF('Indexen goederen & diensten'!BA36/'Indexen goederen & diensten'!BA$34=0,NA(),'Indexen goederen & diensten'!BA36/'Indexen goederen & diensten'!BA$34),NA()) -> 0.9835728953 | FR110: =IFERROR(IF('Indexen goederen & diensten'!BB36/'Indexen goederen & diensten'!BB$34=0,NA(),'Indexen goederen & diensten'!BB36/'Indexen goederen & diensten'!BB$34),NA()) -> 1.020774315 | FS110: =IFERROR(IF('Indexen goederen & diensten'!BC36/'Indexen goederen & diensten'!BC$34=0,NA(),'Indexen goederen & diensten'!BC36/'Indexen goederen & diensten'!BC$34),NA()) -> 1.025547445 | FT110: =IFERROR(IF('Indexen goederen & diensten'!BD36/'Indexen goederen & diensten'!BD$34=0,NA(),'Indexen goederen & diensten'!BD36/'Indexen goederen & diensten'!BD$34),NA()) -> 1.018518519 | FU110: =IFERROR(IF('Indexen goederen & diensten'!BE36/'Indexen goederen & diensten'!BE$34=0,NA(),'Indexen goederen & diensten'!BE36/'Indexen goederen & diensten'!BE$34),NA()) -> 1.002970297 | FV110: =IFERROR(IF('Indexen goederen & diensten'!BF36/'Indexen goederen & diensten'!BF$34=0,NA(),'Indexen goederen & diensten'!BF36/'Indexen goederen & diensten'!BF$34),NA()) -> 1 | FW110: =IFERROR(IF('Indexen goederen & diensten'!BG36/'Indexen goederen & diensten'!BG$34=0,NA(),'Indexen goederen & diensten'!BG36/'Indexen goederen & diensten'!BG$34),NA()) -> 1.012 | FX110: =IFERROR(IF('Indexen goederen & diensten'!BH36/'Indexen goederen & diensten'!BH$34=0,NA(),'Indexen goederen & diensten'!BH36/'Indexen goederen & diensten'!BH$34),NA()) -> 0.9828711256 | FY110: =IFERROR(IF('Indexen goederen & diensten'!BI36/'Indexen goederen & diensten'!BI$34=0,NA(),'Indexen goederen & diensten'!BI36/'Indexen goederen & diensten'!BI$34),NA()) -> 1.01796875 | FZ110: =IFERROR(IF('Indexen goederen & diensten'!BJ36/'Indexen goederen & diensten'!BJ$34=0,NA(),'Indexen goederen & diensten'!BJ36/'Indexen goederen & diensten'!BJ$34),NA()) -> 1.012322275 | GA110: =IFERROR(IF('Indexen goederen & diensten'!BK36/'Indexen goederen & diensten'!BK$34=0,NA(),'Indexen goederen & diensten'!BK36/'Indexen goederen & diensten'!BK$34),NA()) -> 1.013257576 | GB110: =IFERROR(IF('Indexen goederen & diensten'!BL36/'Indexen goederen & diensten'!BL$34=0,NA(),'Indexen goederen & diensten'!BL36/'Indexen goederen & diensten'!BL$34),NA()) -> 0.9589041096 | GC110: =IFERROR(IF('Indexen goederen & diensten'!BM36/'Indexen goederen & diensten'!BM$34=0,NA(),'Indexen goederen & diensten'!BM36/'Indexen goederen & diensten'!BM$34),NA()) -> 0.951754386 | GD110: =IFERROR(IF('Indexen goederen & diensten'!BN36/'Indexen goederen & diensten'!BN$34=0,NA(),'Indexen goederen & diensten'!BN36/'Indexen goederen & diensten'!BN$34),NA()) -> 1.019467213 | GE110: =IFERROR(IF('Indexen goederen & diensten'!BO36/'Indexen goederen & diensten'!BO$34=0,NA(),'Indexen goederen & diensten'!BO36/'Indexen goederen & diensten'!BO$34),NA()) -> 1.025800712 | GF110: =IFERROR(IF('Indexen goederen & diensten'!BP36/'Indexen goederen & diensten'!BP$34=0,NA(),'Indexen goederen & diensten'!BP36/'Indexen goederen & diensten'!BP$34),NA()) -> 1.025837321 | GG110: =IFERROR(IF('Indexen goederen & diensten'!BQ36/'Indexen goederen & diensten'!BQ$34=0,NA(),'Indexen goederen & diensten'!BQ36/'Indexen goederen & diensten'!BQ$34),NA()) -> 1.007194245 | GH110: =IFERROR(IF('Indexen goederen & diensten'!BR36/'Indexen goederen & diensten'!BR$34=0,NA(),'Indexen goederen & diensten'!BR36/'Indexen goederen & diensten'!BR$34),NA()) -> 1.011009174 | GI110: =IFERROR(IF('Indexen goederen & diensten'!BS36/'Indexen goederen & diensten'!BS$34=0,NA(),'Indexen goederen & diensten'!BS36/'Indexen goederen & diensten'!BS$34),NA()) -> 1.00174216 | GJ110: =IFERROR(IF('Indexen goederen & diensten'!BT36/'Indexen goederen & diensten'!BT$34=0,NA(),'Indexen goederen & diensten'!BT36/'Indexen goederen & diensten'!BT$34),NA()) -> 1.010638298 | GK110: =IFERROR(IF('Indexen goederen & diensten'!BU36/'Indexen goederen & diensten'!BU$34=0,NA(),'Indexen goederen & diensten'!BU36/'Indexen goederen & diensten'!BU$34),NA()) -> 1.010507881 | GL110: =IFERROR(IF('Indexen goederen & diensten'!BV36/'Indexen goederen & diensten'!BV$34=0,NA(),'Indexen goederen & diensten'!BV36/'Indexen goederen & diensten'!BV$34),NA()) -> 1.023674242 | GM110: =IFERROR(IF('Indexen goederen & diensten'!BW36/'Indexen goederen & diensten'!BW$34=0,NA(),'Indexen goederen & diensten'!BW36/'Indexen goederen & diensten'!BW$34),NA()) -> 1 | GN110: =IFERROR(IF('Indexen goederen & diensten'!BX36/'Indexen goederen & diensten'!BX$34=0,NA(),'Indexen goederen & diensten'!BX36/'Indexen goederen & diensten'!BX$34),NA()) -> 1.015652174 | GO110: =IFERROR(IF('Indexen goederen & diensten'!BY36/'Indexen goederen & diensten'!BY$34=0,NA(),'Indexen goederen & diensten'!BY36/'Indexen goederen & diensten'!BY$34),NA()) -> 1.002994012 | GP110: =IFERROR(IF('Indexen goederen & diensten'!BZ36/'Indexen goederen & diensten'!BZ$34=0,NA(),'Indexen goederen & diensten'!BZ36/'Indexen goederen & diensten'!BZ$34),NA()) -> 1.020462633 | GQ110: =IFERROR(IF('Indexen goederen & diensten'!CA36/'Indexen goederen & diensten'!CA$34=0,NA(),'Indexen goederen & diensten'!CA36/'Indexen goederen & diensten'!CA$34),NA()) -> 1.048212801 | GR110: =IFERROR(IF('Indexen goederen & diensten'!CB36/'Indexen goederen & diensten'!CB$34=0,NA(),'Indexen goederen & diensten'!CB36/'Indexen goederen & diensten'!CB$34),NA()) -> 1.004643963 | GS110: =IFERROR(IF('Indexen goederen & diensten'!CC36/'Indexen goederen & diensten'!CC$34=0,NA(),'Indexen goederen & diensten'!CC36/'Indexen goederen & diensten'!CC$34),NA()) -> 1.002657219 | GT110: =IFERROR(IF('Indexen goederen & diensten'!CD36/'Indexen goederen & diensten'!CD$34=0,NA(),'Indexen goederen & diensten'!CD36/'Indexen goederen & diensten'!CD$34),NA()) -> 1.010110294 | GU110: =IFERROR(IF('Indexen goederen & diensten'!CE36/'Indexen goederen & diensten'!CE$34=0,NA(),'Indexen goederen & diensten'!CE36/'Indexen goederen & diensten'!CE$34),NA()) -> 0.9990049751 | GV110: =IFERROR(IF('Indexen goederen & diensten'!CF36/'Indexen goederen & diensten'!CF$34=0,NA(),'Indexen goederen & diensten'!CF36/'Indexen goederen & diensten'!CF$34),NA()) -> 1.005267779 | GW110: =IFERROR(IF('Indexen goederen & diensten'!CG36/'Indexen goederen & diensten'!CG$34=0,NA(),'Indexen goederen & diensten'!CG36/'Indexen goederen & diensten'!CG$34),NA()) -> 1 | GX110: =IFERROR(IF('Indexen goederen & diensten'!CH36/'Indexen goederen & diensten'!CH$34=0,NA(),'Indexen goederen & diensten'!CH36/'Indexen goederen & diensten'!CH$34),NA()) -> 1.000888889 | GY110: =IFERROR(IF('Indexen goederen & diensten'!CI36/'Indexen goederen & diensten'!CI$34=0,NA(),'Indexen goederen & diensten'!CI36/'Indexen goederen & diensten'!CI$34),NA()) -> 1.003894839 | GZ110: =IFERROR(IF('Indexen goederen & diensten'!CJ36/'Indexen goederen & diensten'!CJ$34=0,NA(),'Indexen goederen & diensten'!CJ36/'Indexen goederen & diensten'!CJ$34),NA()) -> 0.9968421053 | HA110: =IFERROR(IF('Indexen goederen & diensten'!CK36/'Indexen goederen & diensten'!CK$34=0,NA(),'Indexen goederen & diensten'!CK36/'Indexen goederen & diensten'!CK$34),NA()) -> 0.9806835067 | HB110: =IFERROR(IF('Indexen goederen & diensten'!CL36/'Indexen goederen & diensten'!CL$34=0,NA(),'Indexen goederen & diensten'!CL36/'Indexen goederen & diensten'!CL$34),NA()) -> 0.9761904762 | HC110: =IFERROR(IF('Indexen goederen & diensten'!CM36/'Indexen goederen & diensten'!CM$34=0,NA(),'Indexen goederen & diensten'!CM36/'Indexen goederen & diensten'!CM$34),NA()) -> 0.9961013645 | HD110: =IFERROR(IF('Indexen goederen & diensten'!CN36/'Indexen goederen & diensten'!CN$34=0,NA(),'Indexen goederen & diensten'!CN36/'Indexen goederen & diensten'!CN$34),NA()) -> 1.00090009 | HF110: =Tableau21[[#This Row],[datum]] -> 2018-03-01 | HG110: =IFERROR(IF(Standaardindexen!J33/Standaardindexen!J$31=0,NA(),Standaardindexen!J33/Standaardindexen!J$31),NA()) -> 1.000353994 | HH110: =IFERROR(IF(Standaardindexen!K33/Standaardindexen!K$31=0,NA(),Standaardindexen!K33/Standaardindexen!K$31),NA()) -> 1.00031295 | HI110: =IFERROR(IF(Standaardindexen!L33/Standaardindexen!L$31=0,NA(),Standaardindexen!L33/Standaardindexen!L$31),NA()) -> 1.000344299 | HJ110: =IFERROR(IF(Standaardindexen!M33/Standaardindexen!M$31=0,NA(),Standaardindexen!M33/Standaardindexen!M$31),NA()) -> 1.000354359 | HK110: =IFERROR(IF(Standaardindexen!N33/Standaardindexen!N$31=0,NA(),Standaardindexen!N33/Standaardindexen!N$31),NA()) -> 1.000313264 | HL110: =IFERROR(IF(Standaardindexen!O33/Standaardindexen!O$31=0,NA(),Standaardindexen!O33/Standaardindexen!O$31),NA()) -> 1.000344644 | HM110: =IFERROR(IF(Standaardindexen!P33/Standaardindexen!P$31=0,NA(),Standaardindexen!P33/Standaardindexen!P$31),NA()) -> 1.000361973 | HN110: =IFERROR(IF(Standaardindexen!Q33/Standaardindexen!Q$31=0,NA(),Standaardindexen!Q33/Standaardindexen!Q$31),NA()) -> 1.000319806 | HO110: =IFERROR(IF(Standaardindexen!R33/Standaardindexen!R$31=0,NA(),Standaardindexen!R33/Standaardindexen!R$31),NA()) -> 1.000351842 | HP110: =IFERROR(IF(Standaardindexen!S33/Standaardindexen!S$31=0,NA(),Standaardindexen!S33/Standaardindexen!S$31),NA()) -> 1.000367955 | HQ110: =IFERROR(IF(Standaardindexen!T33/Standaardindexen!T$31=0,NA(),Standaardindexen!T33/Standaardindexen!T$31),NA()) -> 1.000357433 | HR110: =IFERROR(IF(Standaardindexen!U33/Standaardindexen!U$31=0,NA(),Standaardindexen!U33/Standaardindexen!U$31),NA()) -> 1.000357491 | HS110: =IFERROR(IF(Standaardindexen!V33/Standaardindexen!V$31=0,NA(),Standaardindexen!V33/Standaardindexen!V$31),NA()) -> 1.000795355 | HT110: =IFERROR(IF(Standaardindexen!W33/Standaardindexen!W$31=0,NA(),Standaardindexen!W33/Standaardindexen!W$31),NA()) -> 1.000747737 | HU110: =IFERROR(IF(Standaardindexen!X33/Standaardindexen!X$31=0,NA(),Standaardindexen!X33/Standaardindexen!X$31),NA()) -> 0.9886140558 | HV110: =IFERROR(IF(Standaardindexen!Y33/Standaardindexen!Y$31=0,NA(),Standaardindexen!Y33/Standaardindexen!Y$31),NA()) -> 0.9863441922 | HW110: =IFERROR(IF(Standaardindexen!Z33/Standaardindexen!Z$31=0,NA(),Standaardindexen!Z33/Standaardindexen!Z$31),NA()) -> 0.9907197827 | HX110: =IFERROR(IF(Standaardindexen!AA33/Standaardindexen!AA$31=0,NA(),Standaardindexen!AA33/Standaardindexen!AA$31),NA()) -> 0.9875948898 | HY110: =IFERROR(IF(Standaardindexen!AB33/Standaardindexen!AB$31=0,NA(),Standaardindexen!AB33/Standaardindexen!AB$31),NA()) -> 0.9900061817 | HZ110: =IFERROR(IF(Standaardindexen!AC33/Standaardindexen!AC$31=0,NA(),Standaardindexen!AC33/Standaardindexen!AC$31),NA()) -> 0.9843867185 | IA110: =Tableau21[[#This Row],[prijsevolutie - volgens prijsherzieningsformule -index i 2021]] -> 1.00385 | IB110: =Tableau21[[#This Row],[prijsevolutie - volgens prijsherzieningsformule -index i]] -> 1.00071 | IC110: =Tableau21[[#This Row],[prijsherzieningsformule - index i 2021]] -> 1.00071 | ID110: =Tableau21[[#This Row],[prijsherzieningsformule - index i]] -> 1.00071 | IE110: =IFERROR(IF('Indexeringen Lonen per PC'!BZ35/'Indexeringen Lonen per PC'!BZ$33=0,NA(),'Indexeringen Lonen per PC'!BZ35/'Indexeringen Lonen per PC'!BZ$33),NA()) -> 1 | IF110: =IFERROR(IF('Indexeringen Lonen per PC'!CA35/'Indexeringen Lonen per PC'!CA$33=0,NA(),'Indexeringen Lonen per PC'!CA35/'Indexeringen Lonen per PC'!CA$33),NA()) -> 1 | IG110: =IFERROR(IF('Indexeringen Lonen per PC'!CB35/'Indexeringen Lonen per PC'!CB$33=0,NA(),'Indexeringen Lonen per PC'!CB35/'Indexeringen Lonen per PC'!CB$33),NA()) -> 1 | IH110: =IFERROR(IF('Indexeringen Lonen per PC'!CC35/'Indexeringen Lonen per PC'!CC$33=0,NA(),'Indexeringen Lonen per PC'!CC35/'Indexeringen Lonen per PC'!CC$33),NA()) -> 1 | II110: =IFERROR(IF('Indexeringen Lonen per PC'!CD35/'Indexeringen Lonen per PC'!CD$33=0,NA(),'Indexeringen Lonen per PC'!CD35/'Indexeringen Lonen per PC'!CD$33),NA()) -> 1 | IJ110: =IFERROR(IF('Indexeringen Lonen per PC'!CE35/'Indexeringen Lonen per PC'!CE$33=0,NA(),'Indexeringen Lonen per PC'!CE35/'Indexeringen Lonen per PC'!CE$33),NA()) -> 1 | IK110: =IFERROR(IF('Indexeringen Lonen per PC'!CF35/'Indexeringen Lonen per PC'!CF$33=0,NA(),'Indexeringen Lonen per PC'!CF35/'Indexeringen Lonen per PC'!CF$33),NA()) -> 1 | IL110: =IFERROR(IF('Indexeringen Lonen per PC'!CG35/'Indexeringen Lonen per PC'!CG$33=0,NA(),'Indexeringen Lonen per PC'!CG35/'Indexeringen Lonen per PC'!CG$33),NA()) -> 1 | IM110: =IFERROR(IF('Indexeringen Lonen per PC'!CH35/'Indexeringen Lonen per PC'!CH$33=0,NA(),'Indexeringen Lonen per PC'!CH35/'Indexeringen Lonen per PC'!CH$33),NA()) -> 1 | IN110: =IFERROR(IF('Indexeringen Lonen per PC'!CI35/'Indexeringen Lonen per PC'!CI$33=0,NA(),'Indexeringen Lonen per PC'!CI35/'Indexeringen Lonen per PC'!CI$33),NA()) -> 1
B111: =Standaardindexen!C34 -> 2018-04-01 | C111: =IFERROR(IF(Standaardindexen!D34/Standaardindexen!D$31=0,NA(),Standaardindexen!D34/Standaardindexen!D$31),NA()) -> 0.9914963828 | D111: =IFERROR(IF(Standaardindexen!E34/Standaardindexen!E$31=0,NA(),Standaardindexen!E34/Standaardindexen!E$31),NA()) -> 1.012197643 | E111: =IFERROR(IF(Standaardindexen!F34/Standaardindexen!F$31=0,NA(),Standaardindexen!F34/Standaardindexen!F$31),NA()) -> 1.000628141 | F111: =IFERROR(IF(Standaardindexen!G34/Standaardindexen!G$31=0,NA(),Standaardindexen!G34/Standaardindexen!G$31),NA()) -> 0.9993870671 | G111: =IFERROR(IF(Standaardindexen!H34/Standaardindexen!H$31=0,NA(),Standaardindexen!H34/Standaardindexen!H$31),NA()) -> 0.9923470182 | H111: =IFERROR(IF(Standaardindexen!I34/Standaardindexen!I$31=0,NA(),Standaardindexen!I34/Standaardindexen!I$31),NA()) -> 1.026494387 | I111: =IF(Standaardindexen!E33=0,NA(),IF(Standaardindexen!J34=0,NA(),IFERROR(ROUND(((StandaardPrijsherzieningformule!$E$26*(Standaardindexen!E33/Standaardindexen!E32)+StandaardPrijsherzieningformule!$E$20*(Standaardindexen!J34/Standaardindexen!J33)+StandaardPrijsherzieningformule!$E$32)*I110),5),NA()))) -> 1.00239 | J111: =IF(Standaardindexen!D33=0,NA(),IF(Standaardindexen!J34=0,NA(),IFERROR(ROUND((((StandaardPrijsherzieningformule!$E$26*(Standaardindexen!D33/Standaardindexen!D32)+StandaardPrijsherzieningformule!$E$20*(Standaardindexen!J34/Standaardindexen!J33)+StandaardPrijsherzieningformule!$E$32))*J110),5),NA()))) -> 0.99415 | K111: =IF(Standaardindexen!E33=0,NA(),IF(Standaardindexen!J34=0,NA(),IFERROR(ROUND(((StandaardPrijsherzieningformule!$E$26*(Standaardindexen!D33/Standaardindexen!D32)+StandaardPrijsherzieningformule!$E$20*(Standaardindexen!J34/Standaardindexen!J33)+StandaardPrijsherzieningformule!$E$32)),5),NA()))) -> 0.99345 | L111: =IF(Standaardindexen!D33=0,NA(),IF(Standaardindexen!J34=0,NA(),IFERROR(ROUND((((StandaardPrijsherzieningformule!$E$26*(Standaardindexen!D33/Standaardindexen!D32)+StandaardPrijsherzieningformule!$E$20*(Standaardindexen!J34/Standaardindexen!J33)+StandaardPrijsherzieningformule!$E$32))),5),NA()))) -> 0.99345 | M111: =IFERROR(IF('Materiaalindexen o.w.'!D37/'Materiaalindexen o.w.'!D$34=0,NA(),'Materiaalindexen o.w.'!D37/'Materiaalindexen o.w.'!D$34),NA()) -> 1 | N111: =IFERROR(IF('Materiaalindexen o.w.'!E37/'Materiaalindexen o.w.'!E$34=0,NA(),'Materiaalindexen o.w.'!E37/'Materiaalindexen o.w.'!E$34),NA()) -> 1 | O111: =IFERROR(IF('Materiaalindexen o.w.'!F37/'Materiaalindexen o.w.'!F$34=0,NA(),'Materiaalindexen o.w.'!F37/'Materiaalindexen o.w.'!F$34),NA()) -> 1 | P111: =IFERROR(IF('Materiaalindexen o.w.'!G37/'Materiaalindexen o.w.'!G$34=0,NA(),'Materiaalindexen o.w.'!G37/'Materiaalindexen o.w.'!G$34),NA()) -> 1 | Q111: =IFERROR(IF('Materiaalindexen o.w.'!H37/'Materiaalindexen o.w.'!H$34=0,NA(),'Materiaalindexen o.w.'!H37/'Materiaalindexen o.w.'!H$34),NA()) -> 1 | R111: =IFERROR(IF('Materiaalindexen o.w.'!I37/'Materiaalindexen o.w.'!I$34=0,NA(),'Materiaalindexen o.w.'!I37/'Materiaalindexen o.w.'!I$34),NA()) -> 1 | S111: =IFERROR(IF('Materiaalindexen o.w.'!J37/'Materiaalindexen o.w.'!J$34=0,NA(),'Materiaalindexen o.w.'!J37/'Materiaalindexen o.w.'!J$34),NA()) -> 1 | T111: =IFERROR(IF('Materiaalindexen o.w.'!K37/'Materiaalindexen o.w.'!K$34=0,NA(),'Materiaalindexen o.w.'!K37/'Materiaalindexen o.w.'!K$34),NA()) -> 1 | U111: =IFERROR(IF('Materiaalindexen o.w.'!L37/'Materiaalindexen o.w.'!L$34=0,NA(),'Materiaalindexen o.w.'!L37/'Materiaalindexen o.w.'!L$34),NA()) -> 1 | V111: =IFERROR(IF('Materiaalindexen o.w.'!M37/'Materiaalindexen o.w.'!M$34=0,NA(),'Materiaalindexen o.w.'!M37/'Materiaalindexen o.w.'!M$34),NA()) -> 1 | W111: =IFERROR(IF('Materiaalindexen o.w.'!N37/'Materiaalindexen o.w.'!N$34=0,NA(),'Materiaalindexen o.w.'!N37/'Materiaalindexen o.w.'!N$34),NA()) -> 1 | X111: =IFERROR(IF('Materiaalindexen o.w.'!O37/'Materiaalindexen o.w.'!O$34=0,NA(),'Materiaalindexen o.w.'!O37/'Materiaalindexen o.w.'!O$34),NA()) -> 1 | Y111: =IFERROR(IF('Materiaalindexen o.w.'!P37/'Materiaalindexen o.w.'!P$34=0,NA(),'Materiaalindexen o.w.'!P37/'Materiaalindexen o.w.'!P$34),NA()) -> 1 | Z111: =IFERROR(IF('Materiaalindexen o.w.'!Q37/'Materiaalindexen o.w.'!Q$34=0,NA(),'Materiaalindexen o.w.'!Q37/'Materiaalindexen o.w.'!Q$34),NA()) -> 1 | AA111: =IFERROR(IF('Materiaalindexen o.w.'!R37/'Materiaalindexen o.w.'!R$34=0,NA(),'Materiaalindexen o.w.'!R37/'Materiaalindexen o.w.'!R$34),NA()) -> 1 | AB111: =IFERROR(IF('Materiaalindexen o.w.'!S37/'Materiaalindexen o.w.'!S$34=0,NA(),'Materiaalindexen o.w.'!S37/'Materiaalindexen o.w.'!S$34),NA()) -> 1 | AC111: =IFERROR(IF('Materiaalindexen o.w.'!T37/'Materiaalindexen o.w.'!T$34=0,NA(),'Materiaalindexen o.w.'!T37/'Materiaalindexen o.w.'!T$34),NA()) -> 1 | AD111: =IFERROR(IF('Materiaalindexen o.w.'!U37/'Materiaalindexen o.w.'!U$34=0,NA(),'Materiaalindexen o.w.'!U37/'Materiaalindexen o.w.'!U$34),NA()) -> 1 | AE111: =IFERROR(IF('Materiaalindexen o.w.'!V37/'Materiaalindexen o.w.'!V$34=0,NA(),'Materiaalindexen o.w.'!V37/'Materiaalindexen o.w.'!V$34),NA()) -> 1 | AF111: =IFERROR(IF('Materiaalindexen o.w.'!W37/'Materiaalindexen o.w.'!W$34=0,NA(),'Materiaalindexen o.w.'!W37/'Materiaalindexen o.w.'!W$34),NA()) -> 1 | AG111: =IFERROR(IF('Materiaalindexen o.w.'!X37/'Materiaalindexen o.w.'!X$34=0,NA(),'Materiaalindexen o.w.'!X37/'Materiaalindexen o.w.'!X$34),NA()) -> 1.052212931 | AH111: =IFERROR(IF('Materiaalindexen o.w.'!Y37/'Materiaalindexen o.w.'!Y$34=0,NA(),'Materiaalindexen o.w.'!Y37/'Materiaalindexen o.w.'!Y$34),NA()) -> 1.061061947 | AI111: =IFERROR(IF('Materiaalindexen o.w.'!Z37/'Materiaalindexen o.w.'!Z$34=0,NA(),'Materiaalindexen o.w.'!Z37/'Materiaalindexen o.w.'!Z$34),NA()) -> 1.060232393 | AJ111: =IFERROR(IF('Materiaalindexen o.w.'!AA37/'Materiaalindexen o.w.'!AA$34=0,NA(),'Materiaalindexen o.w.'!AA37/'Materiaalindexen o.w.'!AA$34),NA()) -> 1.06848965 | AK111: =IFERROR(IF('Materiaalindexen o.w.'!AB37/'Materiaalindexen o.w.'!AB$34=0,NA(),'Materiaalindexen o.w.'!AB37/'Materiaalindexen o.w.'!AB$34),NA()) -> 1.040326633 | AL111: =IFERROR(IF('Materiaalindexen o.w.'!AC37/'Materiaalindexen o.w.'!AC$34=0,NA(),'Materiaalindexen o.w.'!AC37/'Materiaalindexen o.w.'!AC$34),NA()) -> 1.017927086 | AM111: =IFERROR(IF('Materiaalindexen o.w.'!AD37/'Materiaalindexen o.w.'!AD$34=0,NA(),'Materiaalindexen o.w.'!AD37/'Materiaalindexen o.w.'!AD$34),NA()) -> 1.011700349 | AN111: =IFERROR(IF('Materiaalindexen o.w.'!AE37/'Materiaalindexen o.w.'!AE$34=0,NA(),'Materiaalindexen o.w.'!AE37/'Materiaalindexen o.w.'!AE$34),NA()) -> 1.030272109 | AO111: =IFERROR(IF('Materiaalindexen o.w.'!AF37/'Materiaalindexen o.w.'!AF$34=0,NA(),'Materiaalindexen o.w.'!AF37/'Materiaalindexen o.w.'!AF$34),NA()) -> 1.017954134 | AP111: =IFERROR(IF('Materiaalindexen o.w.'!AG37/'Materiaalindexen o.w.'!AG$34=0,NA(),'Materiaalindexen o.w.'!AG37/'Materiaalindexen o.w.'!AG$34),NA()) -> 1.030777079 | AQ111: =IFERROR(IF('Materiaalindexen o.w.'!AH37/'Materiaalindexen o.w.'!AH$34=0,NA(),'Materiaalindexen o.w.'!AH37/'Materiaalindexen o.w.'!AH$34),NA()) -> 1.013954915 | AR111: =IFERROR(IF('Materiaalindexen o.w.'!AI37/'Materiaalindexen o.w.'!AI$34=0,NA(),'Materiaalindexen o.w.'!AI37/'Materiaalindexen o.w.'!AI$34),NA()) -> 1.017954134 | AS111: =IFERROR(IF('Materiaalindexen o.w.'!AJ37/'Materiaalindexen o.w.'!AJ$34=0,NA(),'Materiaalindexen o.w.'!AJ37/'Materiaalindexen o.w.'!AJ$34),NA()) -> 0.9884719956 | AT111: =IFERROR(IF('Materiaalindexen o.w.'!AK37/'Materiaalindexen o.w.'!AK$34=0,NA(),'Materiaalindexen o.w.'!AK37/'Materiaalindexen o.w.'!AK$34),NA()) -> 1.01216545 | AU111: =IFERROR(IF('Materiaalindexen o.w.'!AL37/'Materiaalindexen o.w.'!AL$34=0,NA(),'Materiaalindexen o.w.'!AL37/'Materiaalindexen o.w.'!AL$34),NA()) -> 1.030266961 | AV111: =IFERROR(IF('Materiaalindexen o.w.'!AM37/'Materiaalindexen o.w.'!AM$34=0,NA(),'Materiaalindexen o.w.'!AM37/'Materiaalindexen o.w.'!AM$34),NA()) -> 1.035328602 | AW111: =IFERROR(IF('Materiaalindexen o.w.'!AN37/'Materiaalindexen o.w.'!AN$34=0,NA(),'Materiaalindexen o.w.'!AN37/'Materiaalindexen o.w.'!AN$34),NA()) -> 1.035379172 | AX111: =IFERROR(IF('Materiaalindexen o.w.'!AO37/'Materiaalindexen o.w.'!AO$34=0,NA(),'Materiaalindexen o.w.'!AO37/'Materiaalindexen o.w.'!AO$34),NA()) -> 1.035571297 | AY111: =IFERROR(IF('Materiaalindexen o.w.'!AP37/'Materiaalindexen o.w.'!AP$34=0,NA(),'Materiaalindexen o.w.'!AP37/'Materiaalindexen o.w.'!AP$34),NA()) -> 0.9914812054 | AZ111: =IFERROR(IF('Materiaalindexen o.w.'!AQ37/'Materiaalindexen o.w.'!AQ$34=0,NA(),'Materiaalindexen o.w.'!AQ37/'Materiaalindexen o.w.'!AQ$34),NA()) -> 1.025 | BA111: =IFERROR(IF('Materiaalindexen o.w.'!AR37/'Materiaalindexen o.w.'!AR$34=0,NA(),'Materiaalindexen o.w.'!AR37/'Materiaalindexen o.w.'!AR$34),NA()) -> 1.008574642 | BB111: =IFERROR(IF('Materiaalindexen o.w.'!AS37/'Materiaalindexen o.w.'!AS$34=0,NA(),'Materiaalindexen o.w.'!AS37/'Materiaalindexen o.w.'!AS$34),NA()) ->  | BC111: =IFERROR(IF('Materiaalindexen o.w.'!AT37/'Materiaalindexen o.w.'!AT$34=0,NA(),'Materiaalindexen o.w.'!AT37/'Materiaalindexen o.w.'!AT$34),NA()) ->  | BD111: =IFERROR(IF('Materiaalindexen o.w.'!AU37/'Materiaalindexen o.w.'!AU$34=0,NA(),'Materiaalindexen o.w.'!AU37/'Materiaalindexen o.w.'!AU$34),NA()) ->  | BE111: =IFERROR(IF('Materiaalindexen o.w.'!AV37/'Materiaalindexen o.w.'!AV$34=0,NA(),'Materiaalindexen o.w.'!AV37/'Materiaalindexen o.w.'!AV$34),NA()) ->  | BF111: =IFERROR(IF('Materiaalindexen o.w.'!AW37/'Materiaalindexen o.w.'!AW$34=0,NA(),'Materiaalindexen o.w.'!AW37/'Materiaalindexen o.w.'!AW$34),NA()) ->  | BG111: =IFERROR(IF('Materiaalindexen o.w.'!AX37/'Materiaalindexen o.w.'!AX$34=0,NA(),'Materiaalindexen o.w.'!AX37/'Materiaalindexen o.w.'!AX$34),NA()) ->  | BH111: =IFERROR(IF('Materiaalindexen o.w.'!AY37/'Materiaalindexen o.w.'!AY$34=0,NA(),'Materiaalindexen o.w.'!AY37/'Materiaalindexen o.w.'!AY$34),NA()) ->  | BI111: =IFERROR(IF('Materiaalindexen o.w.'!AZ37/'Materiaalindexen o.w.'!AZ$34=0,NA(),'Materiaalindexen o.w.'!AZ37/'Materiaalindexen o.w.'!AZ$34),NA()) -> 0.9044602798 | BJ111: =IFERROR(IF('Materiaalindexen o.w.'!BA37/'Materiaalindexen o.w.'!BA$34=0,NA(),'Materiaalindexen o.w.'!BA37/'Materiaalindexen o.w.'!BA$34),NA()) -> 0.9596816976 | BK111: =IFERROR(IF('Materiaalindexen o.w.'!BB37/'Materiaalindexen o.w.'!BB$34=0,NA(),'Materiaalindexen o.w.'!BB37/'Materiaalindexen o.w.'!BB$34),NA()) -> 0.9596816976 | BL111: =IFERROR(IF('Materiaalindexen o.w.'!BC37/'Materiaalindexen o.w.'!BC$34=0,NA(),'Materiaalindexen o.w.'!BC37/'Materiaalindexen o.w.'!BC$34),NA()) -> 0.9206167904 | BM111: =IFERROR(IF('Materiaalindexen o.w.'!BD37/'Materiaalindexen o.w.'!BD$34=0,NA(),'Materiaalindexen o.w.'!BD37/'Materiaalindexen o.w.'!BD$34),NA()) -> 0.9199480393 | BN111: =IFERROR(IF('Materiaalindexen o.w.'!BE37/'Materiaalindexen o.w.'!BE$34=0,NA(),'Materiaalindexen o.w.'!BE37/'Materiaalindexen o.w.'!BE$34),NA()) -> 1.018946396 | BO111: =IFERROR(IF('Materiaalindexen o.w.'!BF37/'Materiaalindexen o.w.'!BF$34=0,NA(),'Materiaalindexen o.w.'!BF37/'Materiaalindexen o.w.'!BF$34),NA()) -> 1.007907743 | BP111: =IFERROR(IF('Materiaalindexen o.w.'!BG37/'Materiaalindexen o.w.'!BG$34=0,NA(),'Materiaalindexen o.w.'!BG37/'Materiaalindexen o.w.'!BG$34),NA()) ->  | BQ111: =IFERROR(IF('Materiaalindexen o.w.'!BH37/'Materiaalindexen o.w.'!BH$34=0,NA(),'Materiaalindexen o.w.'!BH37/'Materiaalindexen o.w.'!BH$34),NA()) -> 1.075334662 | BR111: =IFERROR(IF('Materiaalindexen o.w.'!BI37/'Materiaalindexen o.w.'!BI$34=0,NA(),'Materiaalindexen o.w.'!BI37/'Materiaalindexen o.w.'!BI$34),NA()) -> 0.9864777849 | BS111: =IFERROR(IF('Materiaalindexen o.w.'!BJ37/'Materiaalindexen o.w.'!BJ$34=0,NA(),'Materiaalindexen o.w.'!BJ37/'Materiaalindexen o.w.'!BJ$34),NA()) -> 0.9844407601 | BT111: =IFERROR(IF('Materiaalindexen o.w.'!BK37/'Materiaalindexen o.w.'!BK$34=0,NA(),'Materiaalindexen o.w.'!BK37/'Materiaalindexen o.w.'!BK$34),NA()) -> 0.9924728802 | BU111: =IFERROR(IF('Materiaalindexen o.w.'!BL37/'Materiaalindexen o.w.'!BL$34=0,NA(),'Materiaalindexen o.w.'!BL37/'Materiaalindexen o.w.'!BL$34),NA()) -> 1.013582966 | BV111: =IFERROR(IF('Materiaalindexen o.w.'!BM37/'Materiaalindexen o.w.'!BM$34=0,NA(),'Materiaalindexen o.w.'!BM37/'Materiaalindexen o.w.'!BM$34),NA()) -> 1 | BW111: =IFERROR(IF('Materiaalindexen o.w.'!BN37/'Materiaalindexen o.w.'!BN$34=0,NA(),'Materiaalindexen o.w.'!BN37/'Materiaalindexen o.w.'!BN$34),NA()) -> 1 | BX111: =IFERROR(IF('Materiaalindexen o.w.'!BO37/'Materiaalindexen o.w.'!BO$34=0,NA(),'Materiaalindexen o.w.'!BO37/'Materiaalindexen o.w.'!BO$34),NA()) -> 1 | BY111: =IFERROR(IF('Materiaalindexen o.w.'!BP37/'Materiaalindexen o.w.'!BP$34=0,NA(),'Materiaalindexen o.w.'!BP37/'Materiaalindexen o.w.'!BP$34),NA()) -> 1 | BZ111: =IFERROR(IF('Materiaalindexen o.w.'!BQ37/'Materiaalindexen o.w.'!BQ$34=0,NA(),'Materiaalindexen o.w.'!BQ37/'Materiaalindexen o.w.'!BQ$34),NA()) -> 0.9906636899 | CA111: =IFERROR(IF('Materiaalindexen o.w.'!BR37/'Materiaalindexen o.w.'!BR$34=0,NA(),'Materiaalindexen o.w.'!BR37/'Materiaalindexen o.w.'!BR$34),NA()) -> 0.9908462164 | CB111: =IFERROR(IF('Materiaalindexen o.w.'!BS37/'Materiaalindexen o.w.'!BS$34=0,NA(),'Materiaalindexen o.w.'!BS37/'Materiaalindexen o.w.'!BS$34),NA()) -> 0.9906275469 | CC111: =IFERROR(IF('Materiaalindexen o.w.'!BT37/'Materiaalindexen o.w.'!BT$34=0,NA(),'Materiaalindexen o.w.'!BT37/'Materiaalindexen o.w.'!BT$34),NA()) -> 0.9906389906 | CD111: =IFERROR(IF('Materiaalindexen o.w.'!BU37/'Materiaalindexen o.w.'!BU$34=0,NA(),'Materiaalindexen o.w.'!BU37/'Materiaalindexen o.w.'!BU$34),NA()) -> 1 | CE111: =IFERROR(IF('Materiaalindexen o.w.'!BV37/'Materiaalindexen o.w.'!BV$34=0,NA(),'Materiaalindexen o.w.'!BV37/'Materiaalindexen o.w.'!BV$34),NA()) -> 1 | CF111: =IFERROR(IF('Materiaalindexen o.w.'!BW37/'Materiaalindexen o.w.'!BW$34=0,NA(),'Materiaalindexen o.w.'!BW37/'Materiaalindexen o.w.'!BW$34),NA()) -> 1 | CG111: =IFERROR(IF('Materiaalindexen o.w.'!BX37/'Materiaalindexen o.w.'!BX$34=0,NA(),'Materiaalindexen o.w.'!BX37/'Materiaalindexen o.w.'!BX$34),NA()) -> 1 | CH111: =IFERROR(IF('Materiaalindexen o.w.'!BY37/'Materiaalindexen o.w.'!BY$34=0,NA(),'Materiaalindexen o.w.'!BY37/'Materiaalindexen o.w.'!BY$34),NA()) -> 1 | CI111: =IFERROR(IF('Materiaalindexen o.w.'!BZ37/'Materiaalindexen o.w.'!BZ$34=0,NA(),'Materiaalindexen o.w.'!BZ37/'Materiaalindexen o.w.'!BZ$34),NA()) -> 1 | CJ111: =IFERROR(IF('Materiaalindexen o.w.'!CA37/'Materiaalindexen o.w.'!CA$34=0,NA(),'Materiaalindexen o.w.'!CA37/'Materiaalindexen o.w.'!CA$34),NA()) -> 1 | CK111: =IFERROR(IF('Materiaalindexen o.w.'!CB37/'Materiaalindexen o.w.'!CB$34=0,NA(),'Materiaalindexen o.w.'!CB37/'Materiaalindexen o.w.'!CB$34),NA()) -> 1.03076324 | CL111: =IFERROR(IF('Materiaalindexen o.w.'!CC37/'Materiaalindexen o.w.'!CC$34=0,NA(),'Materiaalindexen o.w.'!CC37/'Materiaalindexen o.w.'!CC$34),NA()) -> 1.030629461 | CM111: =IFERROR(IF('Materiaalindexen o.w.'!CD37/'Materiaalindexen o.w.'!CD$34=0,NA(),'Materiaalindexen o.w.'!CD37/'Materiaalindexen o.w.'!CD$34),NA()) -> 1.030633437 | CN111: =IFERROR(IF('Materiaalindexen o.w.'!CE37/'Materiaalindexen o.w.'!CE$34=0,NA(),'Materiaalindexen o.w.'!CE37/'Materiaalindexen o.w.'!CE$34),NA()) -> 1.022923875 | CO111: =IFERROR(IF('Materiaalindexen o.w.'!CF37/'Materiaalindexen o.w.'!CF$34=0,NA(),'Materiaalindexen o.w.'!CF37/'Materiaalindexen o.w.'!CF$34),NA()) -> 1.022923875 | CP111: =IFERROR(IF('Materiaalindexen o.w.'!CG37/'Materiaalindexen o.w.'!CG$34=0,NA(),'Materiaalindexen o.w.'!CG37/'Materiaalindexen o.w.'!CG$34),NA()) -> 1.015204118 | CQ111: =IFERROR(IF('Materiaalindexen o.w.'!CH37/'Materiaalindexen o.w.'!CH$34=0,NA(),'Materiaalindexen o.w.'!CH37/'Materiaalindexen o.w.'!CH$34),NA()) -> 1.01508079 | CR111: =IFERROR(IF('Materiaalindexen o.w.'!CI37/'Materiaalindexen o.w.'!CI$34=0,NA(),'Materiaalindexen o.w.'!CI37/'Materiaalindexen o.w.'!CI$34),NA()) -> 1.017714484 | CS111: =IFERROR(IF('Materiaalindexen o.w.'!CJ37/'Materiaalindexen o.w.'!CJ$34=0,NA(),'Materiaalindexen o.w.'!CJ37/'Materiaalindexen o.w.'!CJ$34),NA()) -> 0.9485560779 | CT111: =IFERROR(IF('Materiaalindexen o.w.'!CK37/'Materiaalindexen o.w.'!CK$34=0,NA(),'Materiaalindexen o.w.'!CK37/'Materiaalindexen o.w.'!CK$34),NA()) -> 0.9731543624 | CU111: =IFERROR(IF('Materiaalindexen o.w.'!CL37/'Materiaalindexen o.w.'!CL$34=0,NA(),'Materiaalindexen o.w.'!CL37/'Materiaalindexen o.w.'!CL$34),NA()) -> 0.9648367953 | CV111: =IFERROR(IF('Materiaalindexen o.w.'!CM37/'Materiaalindexen o.w.'!CM$34=0,NA(),'Materiaalindexen o.w.'!CM37/'Materiaalindexen o.w.'!CM$34),NA()) -> 1.020029481 | CW111: =IFERROR(IF('Materiaalindexen o.w.'!CN37/'Materiaalindexen o.w.'!CN$34=0,NA(),'Materiaalindexen o.w.'!CN37/'Materiaalindexen o.w.'!CN$34),NA()) -> 1.017613187 | CX111: =IFERROR(IF('Materiaalindexen o.w.'!CO37/'Materiaalindexen o.w.'!CO$34=0,NA(),'Materiaalindexen o.w.'!CO37/'Materiaalindexen o.w.'!CO$34),NA()) -> 0.9817052888 | CY111: =IFERROR(IF('Materiaalindexen o.w.'!CP37/'Materiaalindexen o.w.'!CP$34=0,NA(),'Materiaalindexen o.w.'!CP37/'Materiaalindexen o.w.'!CP$34),NA()) -> 1.026717557 | CZ111: =IFERROR(IF('Materiaalindexen o.w.'!CQ37/'Materiaalindexen o.w.'!CQ$34=0,NA(),'Materiaalindexen o.w.'!CQ37/'Materiaalindexen o.w.'!CQ$34),NA()) -> 1.041056074 | DA111: =IFERROR(IF('Materiaalindexen o.w.'!CR37/'Materiaalindexen o.w.'!CR$34=0,NA(),'Materiaalindexen o.w.'!CR37/'Materiaalindexen o.w.'!CR$34),NA()) ->  | DB111: =IFERROR(IF('Materiaalindexen o.w.'!CS37/'Materiaalindexen o.w.'!CS$34=0,NA(),'Materiaalindexen o.w.'!CS37/'Materiaalindexen o.w.'!CS$34),NA()) ->  | DC111: =IFERROR(IF('Materiaalindexen o.w.'!CT37/'Materiaalindexen o.w.'!CT$34=0,NA(),'Materiaalindexen o.w.'!CT37/'Materiaalindexen o.w.'!CT$34),NA()) ->  | DD111: =IFERROR(IF('Materiaalindexen o.w.'!CU37/'Materiaalindexen o.w.'!CU$34=0,NA(),'Materiaalindexen o.w.'!CU37/'Materiaalindexen o.w.'!CU$34),NA()) ->  | DE111: =IFERROR(IF('Grymafer indexen'!D36/'Grymafer indexen'!D$33=0,NA(),'Grymafer indexen'!D36/'Grymafer indexen'!D$33),NA()) -> 0.9861325116 | DF111: =IFERROR(IF('Grymafer indexen'!E36/'Grymafer indexen'!E$33=0,NA(),'Grymafer indexen'!E36/'Grymafer indexen'!E$33),NA()) -> 0.9896103896 | DG111: =IFERROR(IF('Grymafer indexen'!F36/'Grymafer indexen'!F$33=0,NA(),'Grymafer indexen'!F36/'Grymafer indexen'!F$33),NA()) -> 0.9899888765 | DH111: =IFERROR(IF('Grymafer indexen'!G36/'Grymafer indexen'!G$33=0,NA(),'Grymafer indexen'!G36/'Grymafer indexen'!G$33),NA()) -> 0.9858064516 | DI111: =IFERROR(IF('Materiaalindexen o.w.'!#REF!/'Materiaalindexen o.w.'!#REF!=0,NA(),'Materiaalindexen o.w.'!#REF!/'Materiaalindexen o.w.'!#REF!),NA()) ->  | DJ111: =IFERROR(IF('Materiaalindexen o.w.'!#REF!/'Materiaalindexen o.w.'!#REF!=0,NA(),'Materiaalindexen o.w.'!#REF!/'Materiaalindexen o.w.'!#REF!),NA()) ->  | DK111: =IFERROR(IF('Materiaalindexen o.w.'!#REF!/'Materiaalindexen o.w.'!#REF!=0,NA(),'Materiaalindexen o.w.'!#REF!/'Materiaalindexen o.w.'!#REF!),NA()) ->  | DL111: =IFERROR(IF('Materiaalindexen o.w.'!#REF!/'Materiaalindexen o.w.'!#REF!=0,NA(),'Materiaalindexen o.w.'!#REF!/'Materiaalindexen o.w.'!#REF!),NA()) ->  | DM111: =IFERROR(IF('Materiaalindexen o.w.'!#REF!/'Materiaalindexen o.w.'!#REF!=0,NA(),'Materiaalindexen o.w.'!#REF!/'Materiaalindexen o.w.'!#REF!),NA()) ->  | DN111: =IFERROR(IF('Materiaalindexen o.w.'!#REF!/'Materiaalindexen o.w.'!#REF!=0,NA(),'Materiaalindexen o.w.'!#REF!/'Materiaalindexen o.w.'!#REF!),NA()) ->  | DO111: =IFERROR(IF('Materiaalindexen o.w.'!#REF!/'Materiaalindexen o.w.'!#REF!=0,NA(),'Materiaalindexen o.w.'!#REF!/'Materiaalindexen o.w.'!#REF!),NA()) ->  | DP111: =IFERROR(IF('Materiaalindexen o.w.'!#REF!/'Materiaalindexen o.w.'!#REF!=0,NA(),'Materiaalindexen o.w.'!#REF!/'Materiaalindexen o.w.'!#REF!),NA()) ->  | DS111: =Standaardindexen!C34 -> 2018-04-01 | DT111: =IFERROR(IF('Indexen goederen & diensten'!D37/'Indexen goederen & diensten'!D$34=0,NA(),'Indexen goederen & diensten'!D37/'Indexen goederen & diensten'!D$34),NA()) -> 1.00619469 | DU111: =IFERROR(IF('Indexen goederen & diensten'!E37/'Indexen goederen & diensten'!E$34=0,NA(),'Indexen goederen & diensten'!E37/'Indexen goederen & diensten'!E$34),NA()) -> 1.05861244 | DV111: =IFERROR(IF('Indexen goederen & diensten'!F37/'Indexen goederen & diensten'!F$34=0,NA(),'Indexen goederen & diensten'!F37/'Indexen goederen & diensten'!F$34),NA()) -> 1.023430178 | DW111: =IFERROR(IF('Indexen goederen & diensten'!G37/'Indexen goederen & diensten'!G$34=0,NA(),'Indexen goederen & diensten'!G37/'Indexen goederen & diensten'!G$34),NA()) -> 0.9990740741 | DX111: =IFERROR(IF('Indexen goederen & diensten'!H37/'Indexen goederen & diensten'!H$34=0,NA(),'Indexen goederen & diensten'!H37/'Indexen goederen & diensten'!H$34),NA()) -> 1.00170503 | DY111: =IFERROR(IF('Indexen goederen & diensten'!I37/'Indexen goederen & diensten'!I$34=0,NA(),'Indexen goederen & diensten'!I37/'Indexen goederen & diensten'!I$34),NA()) -> 0.9680111266 | DZ111: =IFERROR(IF('Indexen goederen & diensten'!J37/'Indexen goederen & diensten'!J$34=0,NA(),'Indexen goederen & diensten'!J37/'Indexen goederen & diensten'!J$34),NA()) -> 1.003676471 | EA111: =IFERROR(IF('Indexen goederen & diensten'!K37/'Indexen goederen & diensten'!K$34=0,NA(),'Indexen goederen & diensten'!K37/'Indexen goederen & diensten'!K$34),NA()) -> 0.9955357143 | EB111: =IFERROR(IF('Indexen goederen & diensten'!L37/'Indexen goederen & diensten'!L$34=0,NA(),'Indexen goederen & diensten'!L37/'Indexen goederen & diensten'!L$34),NA()) -> 1 | EC111: =IFERROR(IF('Indexen goederen & diensten'!M37/'Indexen goederen & diensten'!M$34=0,NA(),'Indexen goederen & diensten'!M37/'Indexen goederen & diensten'!M$34),NA()) -> 1.006161972 | ED111: =IFERROR(IF('Indexen goederen & diensten'!N37/'Indexen goederen & diensten'!N$34=0,NA(),'Indexen goederen & diensten'!N37/'Indexen goederen & diensten'!N$34),NA()) -> 1.004052685 | EE111: =IFERROR(IF('Indexen goederen & diensten'!O37/'Indexen goederen & diensten'!O$34=0,NA(),'Indexen goederen & diensten'!O37/'Indexen goederen & diensten'!O$34),NA()) -> 1 | EF111: =IFERROR(IF('Indexen goederen & diensten'!P37/'Indexen goederen & diensten'!P$34=0,NA(),'Indexen goederen & diensten'!P37/'Indexen goederen & diensten'!P$34),NA()) -> 0.976744186 | EG111: =IFERROR(IF('Indexen goederen & diensten'!Q37/'Indexen goederen & diensten'!Q$34=0,NA(),'Indexen goederen & diensten'!Q37/'Indexen goederen & diensten'!Q$34),NA()) -> 1.012533572 | EH111: =IFERROR(IF('Indexen goederen & diensten'!R37/'Indexen goederen & diensten'!R$34=0,NA(),'Indexen goederen & diensten'!R37/'Indexen goederen & diensten'!R$34),NA()) -> 1.013220019 | EI111: =IFERROR(IF('Indexen goederen & diensten'!S37/'Indexen goederen & diensten'!S$34=0,NA(),'Indexen goederen & diensten'!S37/'Indexen goederen & diensten'!S$34),NA()) -> 1.015178571 | EJ111: =IFERROR(IF('Indexen goederen & diensten'!T37/'Indexen goederen & diensten'!T$34=0,NA(),'Indexen goederen & diensten'!T37/'Indexen goederen & diensten'!T$34),NA()) -> 1.015748031 | EK111: =IFERROR(IF('Indexen goederen & diensten'!U37/'Indexen goederen & diensten'!U$34=0,NA(),'Indexen goederen & diensten'!U37/'Indexen goederen & diensten'!U$34),NA()) -> 1.020140105 | EL111: =IFERROR(IF('Indexen goederen & diensten'!V37/'Indexen goederen & diensten'!V$34=0,NA(),'Indexen goederen & diensten'!V37/'Indexen goederen & diensten'!V$34),NA()) -> 1.025069638 | EM111: =IFERROR(IF('Indexen goederen & diensten'!W37/'Indexen goederen & diensten'!W$34=0,NA(),'Indexen goederen & diensten'!W37/'Indexen goederen & diensten'!W$34),NA()) -> 1.008807046 | EN111: =IFERROR(IF('Indexen goederen & diensten'!X37/'Indexen goederen & diensten'!X$34=0,NA(),'Indexen goederen & diensten'!X37/'Indexen goederen & diensten'!X$34),NA()) -> 1.009495982 | EO111: =IFERROR(IF('Indexen goederen & diensten'!Y37/'Indexen goederen & diensten'!Y$34=0,NA(),'Indexen goederen & diensten'!Y37/'Indexen goederen & diensten'!Y$34),NA()) -> 1.007778738 | EP111: =IFERROR(IF('Indexen goederen & diensten'!Z37/'Indexen goederen & diensten'!Z$34=0,NA(),'Indexen goederen & diensten'!Z37/'Indexen goederen & diensten'!Z$34),NA()) -> 0.9802575107 | EQ111: =IFERROR(IF('Indexen goederen & diensten'!AA37/'Indexen goederen & diensten'!AA$34=0,NA(),'Indexen goederen & diensten'!AA37/'Indexen goederen & diensten'!AA$34),NA()) -> 0.8878416588 | ER111: =IFERROR(IF('Indexen goederen & diensten'!AB37/'Indexen goederen & diensten'!AB$34=0,NA(),'Indexen goederen & diensten'!AB37/'Indexen goederen & diensten'!AB$34),NA()) -> 1.019392917 | ES111: =IFERROR(IF('Indexen goederen & diensten'!AC37/'Indexen goederen & diensten'!AC$34=0,NA(),'Indexen goederen & diensten'!AC37/'Indexen goederen & diensten'!AC$34),NA()) -> 1.027027027 | ET111: =IFERROR(IF('Indexen goederen & diensten'!AD37/'Indexen goederen & diensten'!AD$34=0,NA(),'Indexen goederen & diensten'!AD37/'Indexen goederen & diensten'!AD$34),NA()) -> 1.017751479 | EU111: =IFERROR(IF('Indexen goederen & diensten'!AE37/'Indexen goederen & diensten'!AE$34=0,NA(),'Indexen goederen & diensten'!AE37/'Indexen goederen & diensten'!AE$34),NA()) -> 1.007849294 | EV111: =IFERROR(IF('Indexen goederen & diensten'!AF37/'Indexen goederen & diensten'!AF$34=0,NA(),'Indexen goederen & diensten'!AF37/'Indexen goederen & diensten'!AF$34),NA()) -> 1.000868056 | EW111: =IFERROR(IF('Indexen goederen & diensten'!AG37/'Indexen goederen & diensten'!AG$34=0,NA(),'Indexen goederen & diensten'!AG37/'Indexen goederen & diensten'!AG$34),NA()) -> 1.017905103 | EX111: =IFERROR(IF('Indexen goederen & diensten'!AH37/'Indexen goederen & diensten'!AH$34=0,NA(),'Indexen goederen & diensten'!AH37/'Indexen goederen & diensten'!AH$34),NA()) -> 1.028673835 | EY111: =IFERROR(IF('Indexen goederen & diensten'!AI37/'Indexen goederen & diensten'!AI$34=0,NA(),'Indexen goederen & diensten'!AI37/'Indexen goederen & diensten'!AI$34),NA()) -> 0.9868651489 | EZ111: =IFERROR(IF('Indexen goederen & diensten'!AJ37/'Indexen goederen & diensten'!AJ$34=0,NA(),'Indexen goederen & diensten'!AJ37/'Indexen goederen & diensten'!AJ$34),NA()) -> 0.992248062 | FA111: =IFERROR(IF('Indexen goederen & diensten'!AK37/'Indexen goederen & diensten'!AK$34=0,NA(),'Indexen goederen & diensten'!AK37/'Indexen goederen & diensten'!AK$34),NA()) -> 0.9533437014 | FB111: =IFERROR(IF('Indexen goederen & diensten'!AL37/'Indexen goederen & diensten'!AL$34=0,NA(),'Indexen goederen & diensten'!AL37/'Indexen goederen & diensten'!AL$34),NA()) -> 0.9994626545 | FC111: =IFERROR(IF('Indexen goederen & diensten'!AM37/'Indexen goederen & diensten'!AM$34=0,NA(),'Indexen goederen & diensten'!AM37/'Indexen goederen & diensten'!AM$34),NA()) -> 1.031551271 | FD111: =IFERROR(IF('Indexen goederen & diensten'!AN37/'Indexen goederen & diensten'!AN$34=0,NA(),'Indexen goederen & diensten'!AN37/'Indexen goederen & diensten'!AN$34),NA()) -> 1.004669261 | FE111: =IFERROR(IF('Indexen goederen & diensten'!AO37/'Indexen goederen & diensten'!AO$34=0,NA(),'Indexen goederen & diensten'!AO37/'Indexen goederen & diensten'!AO$34),NA()) -> 1.005314438 | FF111: =IFERROR(IF('Indexen goederen & diensten'!AP37/'Indexen goederen & diensten'!AP$34=0,NA(),'Indexen goederen & diensten'!AP37/'Indexen goederen & diensten'!AP$34),NA()) -> 0.9982222222 | FG111: =IFERROR(IF('Indexen goederen & diensten'!AQ37/'Indexen goederen & diensten'!AQ$34=0,NA(),'Indexen goederen & diensten'!AQ37/'Indexen goederen & diensten'!AQ$34),NA()) -> 1.006205674 | FH111: =IFERROR(IF('Indexen goederen & diensten'!AR37/'Indexen goederen & diensten'!AR$34=0,NA(),'Indexen goederen & diensten'!AR37/'Indexen goederen & diensten'!AR$34),NA()) -> 0.9950738916 | FI111: =IFERROR(IF('Indexen goederen & diensten'!AS37/'Indexen goederen & diensten'!AS$34=0,NA(),'Indexen goederen & diensten'!AS37/'Indexen goederen & diensten'!AS$34),NA()) -> 1.006339144 | FJ111: =IFERROR(IF('Indexen goederen & diensten'!AT37/'Indexen goederen & diensten'!AT$34=0,NA(),'Indexen goederen & diensten'!AT37/'Indexen goederen & diensten'!AT$34),NA()) -> 1.034816248 | FK111: =IFERROR(IF('Indexen goederen & diensten'!AU37/'Indexen goederen & diensten'!AU$34=0,NA(),'Indexen goederen & diensten'!AU37/'Indexen goederen & diensten'!AU$34),NA()) -> 1.019924099 | FL111: =IFERROR(IF('Indexen goederen & diensten'!AV37/'Indexen goederen & diensten'!AV$34=0,NA(),'Indexen goederen & diensten'!AV37/'Indexen goederen & diensten'!AV$34),NA()) -> 1.036253776 | FM111: =IFERROR(IF('Indexen goederen & diensten'!AW37/'Indexen goederen & diensten'!AW$34=0,NA(),'Indexen goederen & diensten'!AW37/'Indexen goederen & diensten'!AW$34),NA()) -> 1.102996255 | FN111: =IFERROR(IF('Indexen goederen & diensten'!AX37/'Indexen goederen & diensten'!AX$34=0,NA(),'Indexen goederen & diensten'!AX37/'Indexen goederen & diensten'!AX$34),NA()) -> 1.01453958 | FO111: =IFERROR(IF('Indexen goederen & diensten'!AY37/'Indexen goederen & diensten'!AY$34=0,NA(),'Indexen goederen & diensten'!AY37/'Indexen goederen & diensten'!AY$34),NA()) -> 1.01453958 | FP111: =IFERROR(IF('Indexen goederen & diensten'!AZ37/'Indexen goederen & diensten'!AZ$34=0,NA(),'Indexen goederen & diensten'!AZ37/'Indexen goederen & diensten'!AZ$34),NA()) -> 1.003944773 | FQ111: =IFERROR(IF('Indexen goederen & diensten'!BA37/'Indexen goederen & diensten'!BA$34=0,NA(),'Indexen goederen & diensten'!BA37/'Indexen goederen & diensten'!BA$34),NA()) -> 1.003080082 | FR111: =IFERROR(IF('Indexen goederen & diensten'!BB37/'Indexen goederen & diensten'!BB$34=0,NA(),'Indexen goederen & diensten'!BB37/'Indexen goederen & diensten'!BB$34),NA()) -> 1.021718602 | FS111: =IFERROR(IF('Indexen goederen & diensten'!BC37/'Indexen goederen & diensten'!BC$34=0,NA(),'Indexen goederen & diensten'!BC37/'Indexen goederen & diensten'!BC$34),NA()) -> 1.027372263 | FT111: =IFERROR(IF('Indexen goederen & diensten'!BD37/'Indexen goederen & diensten'!BD$34=0,NA(),'Indexen goederen & diensten'!BD37/'Indexen goederen & diensten'!BD$34),NA()) -> 1.019547325 | FU111: =IFERROR(IF('Indexen goederen & diensten'!BE37/'Indexen goederen & diensten'!BE$34=0,NA(),'Indexen goederen & diensten'!BE37/'Indexen goederen & diensten'!BE$34),NA()) -> 0.996039604 | FV111: =IFERROR(IF('Indexen goederen & diensten'!BF37/'Indexen goederen & diensten'!BF$34=0,NA(),'Indexen goederen & diensten'!BF37/'Indexen goederen & diensten'!BF$34),NA()) -> 1.00280112 | FW111: =IFERROR(IF('Indexen goederen & diensten'!BG37/'Indexen goederen & diensten'!BG$34=0,NA(),'Indexen goederen & diensten'!BG37/'Indexen goederen & diensten'!BG$34),NA()) -> 1.0168 | FX111: =IFERROR(IF('Indexen goederen & diensten'!BH37/'Indexen goederen & diensten'!BH$34=0,NA(),'Indexen goederen & diensten'!BH37/'Indexen goederen & diensten'!BH$34),NA()) -> 0.9959216966 | FY111: =IFERROR(IF('Indexen goederen & diensten'!BI37/'Indexen goederen & diensten'!BI$34=0,NA(),'Indexen goederen & diensten'!BI37/'Indexen goederen & diensten'!BI$34),NA()) -> 1.03046875 | FZ111: =IFERROR(IF('Indexen goederen & diensten'!BJ37/'Indexen goederen & diensten'!BJ$34=0,NA(),'Indexen goederen & diensten'!BJ37/'Indexen goederen & diensten'!BJ$34),NA()) -> 1.002843602 | GA111: =IFERROR(IF('Indexen goederen & diensten'!BK37/'Indexen goederen & diensten'!BK$34=0,NA(),'Indexen goederen & diensten'!BK37/'Indexen goederen & diensten'!BK$34),NA()) -> 1.001893939 | GB111: =IFERROR(IF('Indexen goederen & diensten'!BL37/'Indexen goederen & diensten'!BL$34=0,NA(),'Indexen goederen & diensten'!BL37/'Indexen goederen & diensten'!BL$34),NA()) -> 0.9760273973 | GC111: =IFERROR(IF('Indexen goederen & diensten'!BM37/'Indexen goederen & diensten'!BM$34=0,NA(),'Indexen goederen & diensten'!BM37/'Indexen goederen & diensten'!BM$34),NA()) -> 0.9807017544 | GD111: =IFERROR(IF('Indexen goederen & diensten'!BN37/'Indexen goederen & diensten'!BN$34=0,NA(),'Indexen goederen & diensten'!BN37/'Indexen goederen & diensten'!BN$34),NA()) -> 1.019467213 | GE111: =IFERROR(IF('Indexen goederen & diensten'!BO37/'Indexen goederen & diensten'!BO$34=0,NA(),'Indexen goederen & diensten'!BO37/'Indexen goederen & diensten'!BO$34),NA()) -> 1.025800712 | GF111: =IFERROR(IF('Indexen goederen & diensten'!BP37/'Indexen goederen & diensten'!BP$34=0,NA(),'Indexen goederen & diensten'!BP37/'Indexen goederen & diensten'!BP$34),NA()) -> 1.023923445 | GG111: =IFERROR(IF('Indexen goederen & diensten'!BQ37/'Indexen goederen & diensten'!BQ$34=0,NA(),'Indexen goederen & diensten'!BQ37/'Indexen goederen & diensten'!BQ$34),NA()) -> 1.008992806 | GH111: =IFERROR(IF('Indexen goederen & diensten'!BR37/'Indexen goederen & diensten'!BR$34=0,NA(),'Indexen goederen & diensten'!BR37/'Indexen goederen & diensten'!BR$34),NA()) -> 1.012844037 | GI111: =IFERROR(IF('Indexen goederen & diensten'!BS37/'Indexen goederen & diensten'!BS$34=0,NA(),'Indexen goederen & diensten'!BS37/'Indexen goederen & diensten'!BS$34),NA()) -> 1.00174216 | GJ111: =IFERROR(IF('Indexen goederen & diensten'!BT37/'Indexen goederen & diensten'!BT$34=0,NA(),'Indexen goederen & diensten'!BT37/'Indexen goederen & diensten'!BT$34),NA()) -> 1.011456628 | GK111: =IFERROR(IF('Indexen goederen & diensten'!BU37/'Indexen goederen & diensten'!BU$34=0,NA(),'Indexen goederen & diensten'!BU37/'Indexen goederen & diensten'!BU$34),NA()) -> 1.010507881 | GL111: =IFERROR(IF('Indexen goederen & diensten'!BV37/'Indexen goederen & diensten'!BV$34=0,NA(),'Indexen goederen & diensten'!BV37/'Indexen goederen & diensten'!BV$34),NA()) -> 1.023674242 | GM111: =IFERROR(IF('Indexen goederen & diensten'!BW37/'Indexen goederen & diensten'!BW$34=0,NA(),'Indexen goederen & diensten'!BW37/'Indexen goederen & diensten'!BW$34),NA()) -> 1 | GN111: =IFERROR(IF('Indexen goederen & diensten'!BX37/'Indexen goederen & diensten'!BX$34=0,NA(),'Indexen goederen & diensten'!BX37/'Indexen goederen & diensten'!BX$34),NA()) -> 1.011304348 | GO111: =IFERROR(IF('Indexen goederen & diensten'!BY37/'Indexen goederen & diensten'!BY$34=0,NA(),'Indexen goederen & diensten'!BY37/'Indexen goederen & diensten'!BY$34),NA()) -> 0.9842814371 | GP111: =IFERROR(IF('Indexen goederen & diensten'!BZ37/'Indexen goederen & diensten'!BZ$34=0,NA(),'Indexen goederen & diensten'!BZ37/'Indexen goederen & diensten'!BZ$34),NA()) -> 1.019572954 | GQ111: =IFERROR(IF('Indexen goederen & diensten'!CA37/'Indexen goederen & diensten'!CA$34=0,NA(),'Indexen goederen & diensten'!CA37/'Indexen goederen & diensten'!CA$34),NA()) -> 1.059019119 | GR111: =IFERROR(IF('Indexen goederen & diensten'!CB37/'Indexen goederen & diensten'!CB$34=0,NA(),'Indexen goederen & diensten'!CB37/'Indexen goederen & diensten'!CB$34),NA()) -> 1.004643963 | GS111: =IFERROR(IF('Indexen goederen & diensten'!CC37/'Indexen goederen & diensten'!CC$34=0,NA(),'Indexen goederen & diensten'!CC37/'Indexen goederen & diensten'!CC$34),NA()) -> 1.00088574 | GT111: =IFERROR(IF('Indexen goederen & diensten'!CD37/'Indexen goederen & diensten'!CD$34=0,NA(),'Indexen goederen & diensten'!CD37/'Indexen goederen & diensten'!CD$34),NA()) -> 1.010110294 | GU111: =IFERROR(IF('Indexen goederen & diensten'!CE37/'Indexen goederen & diensten'!CE$34=0,NA(),'Indexen goederen & diensten'!CE37/'Indexen goederen & diensten'!CE$34),NA()) -> 1.00199005 | GV111: =IFERROR(IF('Indexen goederen & diensten'!CF37/'Indexen goederen & diensten'!CF$34=0,NA(),'Indexen goederen & diensten'!CF37/'Indexen goederen & diensten'!CF$34),NA()) -> 1.005267779 | GW111: =IFERROR(IF('Indexen goederen & diensten'!CG37/'Indexen goederen & diensten'!CG$34=0,NA(),'Indexen goederen & diensten'!CG37/'Indexen goederen & diensten'!CG$34),NA()) -> 1 | GX111: =IFERROR(IF('Indexen goederen & diensten'!CH37/'Indexen goederen & diensten'!CH$34=0,NA(),'Indexen goederen & diensten'!CH37/'Indexen goederen & diensten'!CH$34),NA()) -> 1.000888889 | GY111: =IFERROR(IF('Indexen goederen & diensten'!CI37/'Indexen goederen & diensten'!CI$34=0,NA(),'Indexen goederen & diensten'!CI37/'Indexen goederen & diensten'!CI$34),NA()) -> 1.009737098 | GZ111: =IFERROR(IF('Indexen goederen & diensten'!CJ37/'Indexen goederen & diensten'!CJ$34=0,NA(),'Indexen goederen & diensten'!CJ37/'Indexen goederen & diensten'!CJ$34),NA()) -> 0.9936842105 | HA111: =IFERROR(IF('Indexen goederen & diensten'!CK37/'Indexen goederen & diensten'!CK$34=0,NA(),'Indexen goederen & diensten'!CK37/'Indexen goederen & diensten'!CK$34),NA()) -> 0.9494799406 | HB111: =IFERROR(IF('Indexen goederen & diensten'!CL37/'Indexen goederen & diensten'!CL$34=0,NA(),'Indexen goederen & diensten'!CL37/'Indexen goederen & diensten'!CL$34),NA()) -> 0.9530812325 | HC111: =IFERROR(IF('Indexen goederen & diensten'!CM37/'Indexen goederen & diensten'!CM$34=0,NA(),'Indexen goederen & diensten'!CM37/'Indexen goederen & diensten'!CM$34),NA()) -> 0.9385964912 | HD111: =IFERROR(IF('Indexen goederen & diensten'!CN37/'Indexen goederen & diensten'!CN$34=0,NA(),'Indexen goederen & diensten'!CN37/'Indexen goederen & diensten'!CN$34),NA()) -> 1.00090009 | HF111: =Tableau21[[#This Row],[datum]] -> 2018-04-01 | HG111: =IFERROR(IF(Standaardindexen!J34/Standaardindexen!J$31=0,NA(),Standaardindexen!J34/Standaardindexen!J$31),NA()) -> 0.9954946257 | HH111: =IFERROR(IF(Standaardindexen!K34/Standaardindexen!K$31=0,NA(),Standaardindexen!K34/Standaardindexen!K$31),NA()) -> 0.9956812919 | HI111: =IFERROR(IF(Standaardindexen!L34/Standaardindexen!L$31=0,NA(),Standaardindexen!L34/Standaardindexen!L$31),NA()) -> 0.9957119159 | HJ111: =IFERROR(IF(Standaardindexen!M34/Standaardindexen!M$31=0,NA(),Standaardindexen!M34/Standaardindexen!M$31),NA()) -> 0.9954899813 | HK111: =IFERROR(IF(Standaardindexen!N34/Standaardindexen!N$31=0,NA(),Standaardindexen!N34/Standaardindexen!N$31),NA()) -> 0.9956769626 | HL111: =IFERROR(IF(Standaardindexen!O34/Standaardindexen!O$31=0,NA(),Standaardindexen!O34/Standaardindexen!O$31),NA()) -> 0.9956762854 | HM111: =IFERROR(IF(Standaardindexen!P34/Standaardindexen!P$31=0,NA(),Standaardindexen!P34/Standaardindexen!P$31),NA()) -> 0.9952943499 | HN111: =IFERROR(IF(Standaardindexen!Q34/Standaardindexen!Q$31=0,NA(),Standaardindexen!Q34/Standaardindexen!Q$31),NA()) -> 0.9954907416 | HO111: =IFERROR(IF(Standaardindexen!R34/Standaardindexen!R$31=0,NA(),Standaardindexen!R34/Standaardindexen!R$31),NA()) -> 0.9954900205 | HP111: =IFERROR(IF(Standaardindexen!S34/Standaardindexen!S$31=0,NA(),Standaardindexen!S34/Standaardindexen!S$31),NA()) -> 0.995183141 | HQ111: =IFERROR(IF(Standaardindexen!T34/Standaardindexen!T$31=0,NA(),Standaardindexen!T34/Standaardindexen!T$31),NA()) -> 0.9953858652 | HR111: =IFERROR(IF(Standaardindexen!U34/Standaardindexen!U$31=0,NA(),Standaardindexen!U34/Standaardindexen!U$31),NA()) -> 0.9953851154 | HS111: =IFERROR(IF(Standaardindexen!V34/Standaardindexen!V$31=0,NA(),Standaardindexen!V34/Standaardindexen!V$31),NA()) -> 1.000795355 | HT111: =IFERROR(IF(Standaardindexen!W34/Standaardindexen!W$31=0,NA(),Standaardindexen!W34/Standaardindexen!W$31),NA()) -> 1.000747737 | HU111: =IFERROR(IF(Standaardindexen!X34/Standaardindexen!X$31=0,NA(),Standaardindexen!X34/Standaardindexen!X$31),NA()) -> 0.992343934 | HV111: =IFERROR(IF(Standaardindexen!Y34/Standaardindexen!Y$31=0,NA(),Standaardindexen!Y34/Standaardindexen!Y$31),NA()) -> 0.9886475814 | HW111: =IFERROR(IF(Standaardindexen!Z34/Standaardindexen!Z$31=0,NA(),Standaardindexen!Z34/Standaardindexen!Z$31),NA()) -> 0.9959257583 | HX111: =IFERROR(IF(Standaardindexen!AA34/Standaardindexen!AA$31=0,NA(),Standaardindexen!AA34/Standaardindexen!AA$31),NA()) -> 0.9907424551 | HY111: =IFERROR(IF(Standaardindexen!AB34/Standaardindexen!AB$31=0,NA(),Standaardindexen!AB34/Standaardindexen!AB$31),NA()) -> 0.9938697713 | HZ111: =IFERROR(IF(Standaardindexen!AC34/Standaardindexen!AC$31=0,NA(),Standaardindexen!AC34/Standaardindexen!AC$31),NA()) -> 0.9910002045 | IA111: =Tableau21[[#This Row],[prijsevolutie - volgens prijsherzieningsformule -index i 2021]] -> 1.00239 | IB111: =Tableau21[[#This Row],[prijsevolutie - volgens prijsherzieningsformule -index i]] -> 0.99415 | IC111: =Tableau21[[#This Row],[prijsherzieningsformule - index i 2021]] -> 0.99345 | ID111: =Tableau21[[#This Row],[prijsherzieningsformule - index i]] -> 0.99345 | IE111: =IFERROR(IF('Indexeringen Lonen per PC'!BZ36/'Indexeringen Lonen per PC'!BZ$33=0,NA(),'Indexeringen Lonen per PC'!BZ36/'Indexeringen Lonen per PC'!BZ$33),NA()) -> 1.004216093 | IF111: =IFERROR(IF('Indexeringen Lonen per PC'!CA36/'Indexeringen Lonen per PC'!CA$33=0,NA(),'Indexeringen Lonen per PC'!CA36/'Indexeringen Lonen per PC'!CA$33),NA()) -> 1 | IG111: =IFERROR(IF('Indexeringen Lonen per PC'!CB36/'Indexeringen Lonen per PC'!CB$33=0,NA(),'Indexeringen Lonen per PC'!CB36/'Indexeringen Lonen per PC'!CB$33),NA()) -> 1 | IH111: =IFERROR(IF('Indexeringen Lonen per PC'!CC36/'Indexeringen Lonen per PC'!CC$33=0,NA(),'Indexeringen Lonen per PC'!CC36/'Indexeringen Lonen per PC'!CC$33),NA()) -> 1.019855596 | II111: =IFERROR(IF('Indexeringen Lonen per PC'!CD36/'Indexeringen Lonen per PC'!CD$33=0,NA(),'Indexeringen Lonen per PC'!CD36/'Indexeringen Lonen per PC'!CD$33),NA()) -> 1 | IJ111: =IFERROR(IF('Indexeringen Lonen per PC'!CE36/'Indexeringen Lonen per PC'!CE$33=0,NA(),'Indexeringen Lonen per PC'!CE36/'Indexeringen Lonen per PC'!CE$33),NA()) -> 1 | IK111: =IFERROR(IF('Indexeringen Lonen per PC'!CF36/'Indexeringen Lonen per PC'!CF$33=0,NA(),'Indexeringen Lonen per PC'!CF36/'Indexeringen Lonen per PC'!CF$33),NA()) -> 1 | IL111: =IFERROR(IF('Indexeringen Lonen per PC'!CG36/'Indexeringen Lonen per PC'!CG$33=0,NA(),'Indexeringen Lonen per PC'!CG36/'Indexeringen Lonen per PC'!CG$33),NA()) -> 1.008928571 | IM111: =IFERROR(IF('Indexeringen Lonen per PC'!CH36/'Indexeringen Lonen per PC'!CH$33=0,NA(),'Indexeringen Lonen per PC'!CH36/'Indexeringen Lonen per PC'!CH$33),NA()) -> 1 | IN111: =IFERROR(IF('Indexeringen Lonen per PC'!CI36/'Indexeringen Lonen per PC'!CI$33=0,NA(),'Indexeringen Lonen per PC'!CI36/'Indexeringen Lonen per PC'!CI$33),NA()) -> 1
B112: =Standaardindexen!C35 -> 2018-05-01 | C112: =IFERROR(IF(Standaardindexen!D35/Standaardindexen!D$31=0,NA(),Standaardindexen!D35/Standaardindexen!D$31),NA()) -> 1.00380759 | D112: =IFERROR(IF(Standaardindexen!E35/Standaardindexen!E$31=0,NA(),Standaardindexen!E35/Standaardindexen!E$31),NA()) -> 1.015712218 | E112: =IFERROR(IF(Standaardindexen!F35/Standaardindexen!F$31=0,NA(),Standaardindexen!F35/Standaardindexen!F$31),NA()) -> 1.022298995 | F112: =IFERROR(IF(Standaardindexen!G35/Standaardindexen!G$31=0,NA(),Standaardindexen!G35/Standaardindexen!G$31),NA()) -> 1.01379099 | G112: =IFERROR(IF(Standaardindexen!H35/Standaardindexen!H$31=0,NA(),Standaardindexen!H35/Standaardindexen!H$31),NA()) -> 1.019689106 | H112: =IFERROR(IF(Standaardindexen!I35/Standaardindexen!I$31=0,NA(),Standaardindexen!I35/Standaardindexen!I$31),NA()) -> 1.02545242 | I112: =IF(Standaardindexen!E34=0,NA(),IF(Standaardindexen!J35=0,NA(),IFERROR(ROUND(((StandaardPrijsherzieningformule!$E$26*(Standaardindexen!E34/Standaardindexen!E33)+StandaardPrijsherzieningformule!$E$20*(Standaardindexen!J35/Standaardindexen!J34)+StandaardPrijsherzieningformule!$E$32)*I111),5),NA()))) -> 1.00292 | J112: =IF(Standaardindexen!D34=0,NA(),IF(Standaardindexen!J35=0,NA(),IFERROR(ROUND((((StandaardPrijsherzieningformule!$E$26*(Standaardindexen!D34/Standaardindexen!D33)+StandaardPrijsherzieningformule!$E$20*(Standaardindexen!J35/Standaardindexen!J34)+StandaardPrijsherzieningformule!$E$32))*J111),5),NA()))) -> 0.99466 | K112: =IF(Standaardindexen!E34=0,NA(),IF(Standaardindexen!J35=0,NA(),IFERROR(ROUND(((StandaardPrijsherzieningformule!$E$26*(Standaardindexen!D34/Standaardindexen!D33)+StandaardPrijsherzieningformule!$E$20*(Standaardindexen!J35/Standaardindexen!J34)+StandaardPrijsherzieningformule!$E$32)),5),NA()))) -> 1.00051 | L112: =IF(Standaardindexen!D34=0,NA(),IF(Standaardindexen!J35=0,NA(),IFERROR(ROUND((((StandaardPrijsherzieningformule!$E$26*(Standaardindexen!D34/Standaardindexen!D33)+StandaardPrijsherzieningformule!$E$20*(Standaardindexen!J35/Standaardindexen!J34)+StandaardPrijsherzieningformule!$E$32))),5),NA()))) -> 1.00051 | M112: =IFERROR(IF('Materiaalindexen o.w.'!D38/'Materiaalindexen o.w.'!D$34=0,NA(),'Materiaalindexen o.w.'!D38/'Materiaalindexen o.w.'!D$34),NA()) -> 1 | N112: =IFERROR(IF('Materiaalindexen o.w.'!E38/'Materiaalindexen o.w.'!E$34=0,NA(),'Materiaalindexen o.w.'!E38/'Materiaalindexen o.w.'!E$34),NA()) -> 1 | O112: =IFERROR(IF('Materiaalindexen o.w.'!F38/'Materiaalindexen o.w.'!F$34=0,NA(),'Materiaalindexen o.w.'!F38/'Materiaalindexen o.w.'!F$34),NA()) -> 1 | P112: =IFERROR(IF('Materiaalindexen o.w.'!G38/'Materiaalindexen o.w.'!G$34=0,NA(),'Materiaalindexen o.w.'!G38/'Materiaalindexen o.w.'!G$34),NA()) -> 1 | Q112: =IFERROR(IF('Materiaalindexen o.w.'!H38/'Materiaalindexen o.w.'!H$34=0,NA(),'Materiaalindexen o.w.'!H38/'Materiaalindexen o.w.'!H$34),NA()) -> 1 | R112: =IFERROR(IF('Materiaalindexen o.w.'!I38/'Materiaalindexen o.w.'!I$34=0,NA(),'Materiaalindexen o.w.'!I38/'Materiaalindexen o.w.'!I$34),NA()) -> 1 | S112: =IFERROR(IF('Materiaalindexen o.w.'!J38/'Materiaalindexen o.w.'!J$34=0,NA(),'Materiaalindexen o.w.'!J38/'Materiaalindexen o.w.'!J$34),NA()) -> 1 | T112: =IFERROR(IF('Materiaalindexen o.w.'!K38/'Materiaalindexen o.w.'!K$34=0,NA(),'Materiaalindexen o.w.'!K38/'Materiaalindexen o.w.'!K$34),NA()) -> 1 | U112: =IFERROR(IF('Materiaalindexen o.w.'!L38/'Materiaalindexen o.w.'!L$34=0,NA(),'Materiaalindexen o.w.'!L38/'Materiaalindexen o.w.'!L$34),NA()) -> 1 | V112: =IFERROR(IF('Materiaalindexen o.w.'!M38/'Materiaalindexen o.w.'!M$34=0,NA(),'Materiaalindexen o.w.'!M38/'Materiaalindexen o.w.'!M$34),NA()) -> 1 | W112: =IFERROR(IF('Materiaalindexen o.w.'!N38/'Materiaalindexen o.w.'!N$34=0,NA(),'Materiaalindexen o.w.'!N38/'Materiaalindexen o.w.'!N$34),NA()) -> 1 | X112: =IFERROR(IF('Materiaalindexen o.w.'!O38/'Materiaalindexen o.w.'!O$34=0,NA(),'Materiaalindexen o.w.'!O38/'Materiaalindexen o.w.'!O$34),NA()) -> 1 | Y112: =IFERROR(IF('Materiaalindexen o.w.'!P38/'Materiaalindexen o.w.'!P$34=0,NA(),'Materiaalindexen o.w.'!P38/'Materiaalindexen o.w.'!P$34),NA()) -> 1 | Z112: =IFERROR(IF('Materiaalindexen o.w.'!Q38/'Materiaalindexen o.w.'!Q$34=0,NA(),'Materiaalindexen o.w.'!Q38/'Materiaalindexen o.w.'!Q$34),NA()) -> 1 | AA112: =IFERROR(IF('Materiaalindexen o.w.'!R38/'Materiaalindexen o.w.'!R$34=0,NA(),'Materiaalindexen o.w.'!R38/'Materiaalindexen o.w.'!R$34),NA()) -> 1 | AB112: =IFERROR(IF('Materiaalindexen o.w.'!S38/'Materiaalindexen o.w.'!S$34=0,NA(),'Materiaalindexen o.w.'!S38/'Materiaalindexen o.w.'!S$34),NA()) -> 1 | AC112: =IFERROR(IF('Materiaalindexen o.w.'!T38/'Materiaalindexen o.w.'!T$34=0,NA(),'Materiaalindexen o.w.'!T38/'Materiaalindexen o.w.'!T$34),NA()) -> 1 | AD112: =IFERROR(IF('Materiaalindexen o.w.'!U38/'Materiaalindexen o.w.'!U$34=0,NA(),'Materiaalindexen o.w.'!U38/'Materiaalindexen o.w.'!U$34),NA()) -> 1 | AE112: =IFERROR(IF('Materiaalindexen o.w.'!V38/'Materiaalindexen o.w.'!V$34=0,NA(),'Materiaalindexen o.w.'!V38/'Materiaalindexen o.w.'!V$34),NA()) -> 1 | AF112: =IFERROR(IF('Materiaalindexen o.w.'!W38/'Materiaalindexen o.w.'!W$34=0,NA(),'Materiaalindexen o.w.'!W38/'Materiaalindexen o.w.'!W$34),NA()) -> 1 | AG112: =IFERROR(IF('Materiaalindexen o.w.'!X38/'Materiaalindexen o.w.'!X$34=0,NA(),'Materiaalindexen o.w.'!X38/'Materiaalindexen o.w.'!X$34),NA()) -> 1.052212931 | AH112: =IFERROR(IF('Materiaalindexen o.w.'!Y38/'Materiaalindexen o.w.'!Y$34=0,NA(),'Materiaalindexen o.w.'!Y38/'Materiaalindexen o.w.'!Y$34),NA()) -> 1.061061947 | AI112: =IFERROR(IF('Materiaalindexen o.w.'!Z38/'Materiaalindexen o.w.'!Z$34=0,NA(),'Materiaalindexen o.w.'!Z38/'Materiaalindexen o.w.'!Z$34),NA()) -> 1.060232393 | AJ112: =IFERROR(IF('Materiaalindexen o.w.'!AA38/'Materiaalindexen o.w.'!AA$34=0,NA(),'Materiaalindexen o.w.'!AA38/'Materiaalindexen o.w.'!AA$34),NA()) -> 1.06848965 | AK112: =IFERROR(IF('Materiaalindexen o.w.'!AB38/'Materiaalindexen o.w.'!AB$34=0,NA(),'Materiaalindexen o.w.'!AB38/'Materiaalindexen o.w.'!AB$34),NA()) -> 1.033668342 | AL112: =IFERROR(IF('Materiaalindexen o.w.'!AC38/'Materiaalindexen o.w.'!AC$34=0,NA(),'Materiaalindexen o.w.'!AC38/'Materiaalindexen o.w.'!AC$34),NA()) -> 1.01566737 | AM112: =IFERROR(IF('Materiaalindexen o.w.'!AD38/'Materiaalindexen o.w.'!AD$34=0,NA(),'Materiaalindexen o.w.'!AD38/'Materiaalindexen o.w.'!AD$34),NA()) -> 1.011700349 | AN112: =IFERROR(IF('Materiaalindexen o.w.'!AE38/'Materiaalindexen o.w.'!AE$34=0,NA(),'Materiaalindexen o.w.'!AE38/'Materiaalindexen o.w.'!AE$34),NA()) -> 1.030272109 | AO112: =IFERROR(IF('Materiaalindexen o.w.'!AF38/'Materiaalindexen o.w.'!AF$34=0,NA(),'Materiaalindexen o.w.'!AF38/'Materiaalindexen o.w.'!AF$34),NA()) -> 1.015992758 | AP112: =IFERROR(IF('Materiaalindexen o.w.'!AG38/'Materiaalindexen o.w.'!AG$34=0,NA(),'Materiaalindexen o.w.'!AG38/'Materiaalindexen o.w.'!AG$34),NA()) -> 1.030777079 | AQ112: =IFERROR(IF('Materiaalindexen o.w.'!AH38/'Materiaalindexen o.w.'!AH$34=0,NA(),'Materiaalindexen o.w.'!AH38/'Materiaalindexen o.w.'!AH$34),NA()) -> 1.013954915 | AR112: =IFERROR(IF('Materiaalindexen o.w.'!AI38/'Materiaalindexen o.w.'!AI$34=0,NA(),'Materiaalindexen o.w.'!AI38/'Materiaalindexen o.w.'!AI$34),NA()) -> 1.015992758 | AS112: =IFERROR(IF('Materiaalindexen o.w.'!AJ38/'Materiaalindexen o.w.'!AJ$34=0,NA(),'Materiaalindexen o.w.'!AJ38/'Materiaalindexen o.w.'!AJ$34),NA()) -> 0.9768352365 | AT112: =IFERROR(IF('Materiaalindexen o.w.'!AK38/'Materiaalindexen o.w.'!AK$34=0,NA(),'Materiaalindexen o.w.'!AK38/'Materiaalindexen o.w.'!AK$34),NA()) -> 1.01216545 | AU112: =IFERROR(IF('Materiaalindexen o.w.'!AL38/'Materiaalindexen o.w.'!AL$34=0,NA(),'Materiaalindexen o.w.'!AL38/'Materiaalindexen o.w.'!AL$34),NA()) -> 1.030266961 | AV112: =IFERROR(IF('Materiaalindexen o.w.'!AM38/'Materiaalindexen o.w.'!AM$34=0,NA(),'Materiaalindexen o.w.'!AM38/'Materiaalindexen o.w.'!AM$34),NA()) -> 1.031163221 | AW112: =IFERROR(IF('Materiaalindexen o.w.'!AN38/'Materiaalindexen o.w.'!AN$34=0,NA(),'Materiaalindexen o.w.'!AN38/'Materiaalindexen o.w.'!AN$34),NA()) -> 1.031072143 | AX112: =IFERROR(IF('Materiaalindexen o.w.'!AO38/'Materiaalindexen o.w.'!AO$34=0,NA(),'Materiaalindexen o.w.'!AO38/'Materiaalindexen o.w.'!AO$34),NA()) -> 1.031105636 | AY112: =IFERROR(IF('Materiaalindexen o.w.'!AP38/'Materiaalindexen o.w.'!AP$34=0,NA(),'Materiaalindexen o.w.'!AP38/'Materiaalindexen o.w.'!AP$34),NA()) -> 0.9828559259 | AZ112: =IFERROR(IF('Materiaalindexen o.w.'!AQ38/'Materiaalindexen o.w.'!AQ$34=0,NA(),'Materiaalindexen o.w.'!AQ38/'Materiaalindexen o.w.'!AQ$34),NA()) -> 1.035044643 | BA112: =IFERROR(IF('Materiaalindexen o.w.'!AR38/'Materiaalindexen o.w.'!AR$34=0,NA(),'Materiaalindexen o.w.'!AR38/'Materiaalindexen o.w.'!AR$34),NA()) -> 1.008574642 | BB112: =IFERROR(IF('Materiaalindexen o.w.'!AS38/'Materiaalindexen o.w.'!AS$34=0,NA(),'Materiaalindexen o.w.'!AS38/'Materiaalindexen o.w.'!AS$34),NA()) ->  | BC112: =IFERROR(IF('Materiaalindexen o.w.'!AT38/'Materiaalindexen o.w.'!AT$34=0,NA(),'Materiaalindexen o.w.'!AT38/'Materiaalindexen o.w.'!AT$34),NA()) ->  | BD112: =IFERROR(IF('Materiaalindexen o.w.'!AU38/'Materiaalindexen o.w.'!AU$34=0,NA(),'Materiaalindexen o.w.'!AU38/'Materiaalindexen o.w.'!AU$34),NA()) ->  | BE112: =IFERROR(IF('Materiaalindexen o.w.'!AV38/'Materiaalindexen o.w.'!AV$34=0,NA(),'Materiaalindexen o.w.'!AV38/'Materiaalindexen o.w.'!AV$34),NA()) ->  | BF112: =IFERROR(IF('Materiaalindexen o.w.'!AW38/'Materiaalindexen o.w.'!AW$34=0,NA(),'Materiaalindexen o.w.'!AW38/'Materiaalindexen o.w.'!AW$34),NA()) ->  | BG112: =IFERROR(IF('Materiaalindexen o.w.'!AX38/'Materiaalindexen o.w.'!AX$34=0,NA(),'Materiaalindexen o.w.'!AX38/'Materiaalindexen o.w.'!AX$34),NA()) ->  | BH112: =IFERROR(IF('Materiaalindexen o.w.'!AY38/'Materiaalindexen o.w.'!AY$34=0,NA(),'Materiaalindexen o.w.'!AY38/'Materiaalindexen o.w.'!AY$34),NA()) ->  | BI112: =IFERROR(IF('Materiaalindexen o.w.'!AZ38/'Materiaalindexen o.w.'!AZ$34=0,NA(),'Materiaalindexen o.w.'!AZ38/'Materiaalindexen o.w.'!AZ$34),NA()) -> 0.9415852908 | BJ112: =IFERROR(IF('Materiaalindexen o.w.'!BA38/'Materiaalindexen o.w.'!BA$34=0,NA(),'Materiaalindexen o.w.'!BA38/'Materiaalindexen o.w.'!BA$34),NA()) -> 0.9936339523 | BK112: =IFERROR(IF('Materiaalindexen o.w.'!BB38/'Materiaalindexen o.w.'!BB$34=0,NA(),'Materiaalindexen o.w.'!BB38/'Materiaalindexen o.w.'!BB$34),NA()) -> 0.9936339523 | BL112: =IFERROR(IF('Materiaalindexen o.w.'!BC38/'Materiaalindexen o.w.'!BC$34=0,NA(),'Materiaalindexen o.w.'!BC38/'Materiaalindexen o.w.'!BC$34),NA()) -> 0.9161295586 | BM112: =IFERROR(IF('Materiaalindexen o.w.'!BD38/'Materiaalindexen o.w.'!BD$34=0,NA(),'Materiaalindexen o.w.'!BD38/'Materiaalindexen o.w.'!BD$34),NA()) -> 0.9150767232 | BN112: =IFERROR(IF('Materiaalindexen o.w.'!BE38/'Materiaalindexen o.w.'!BE$34=0,NA(),'Materiaalindexen o.w.'!BE38/'Materiaalindexen o.w.'!BE$34),NA()) -> 1.094616451 | BO112: =IFERROR(IF('Materiaalindexen o.w.'!BF38/'Materiaalindexen o.w.'!BF$34=0,NA(),'Materiaalindexen o.w.'!BF38/'Materiaalindexen o.w.'!BF$34),NA()) -> 1.066776496 | BP112: =IFERROR(IF('Materiaalindexen o.w.'!BG38/'Materiaalindexen o.w.'!BG$34=0,NA(),'Materiaalindexen o.w.'!BG38/'Materiaalindexen o.w.'!BG$34),NA()) ->  | BQ112: =IFERROR(IF('Materiaalindexen o.w.'!BH38/'Materiaalindexen o.w.'!BH$34=0,NA(),'Materiaalindexen o.w.'!BH38/'Materiaalindexen o.w.'!BH$34),NA()) -> 1.150242096 | BR112: =IFERROR(IF('Materiaalindexen o.w.'!BI38/'Materiaalindexen o.w.'!BI$34=0,NA(),'Materiaalindexen o.w.'!BI38/'Materiaalindexen o.w.'!BI$34),NA()) -> 1.029834728 | BS112: =IFERROR(IF('Materiaalindexen o.w.'!BJ38/'Materiaalindexen o.w.'!BJ$34=0,NA(),'Materiaalindexen o.w.'!BJ38/'Materiaalindexen o.w.'!BJ$34),NA()) -> 1.033414105 | BT112: =IFERROR(IF('Materiaalindexen o.w.'!BK38/'Materiaalindexen o.w.'!BK$34=0,NA(),'Materiaalindexen o.w.'!BK38/'Materiaalindexen o.w.'!BK$34),NA()) -> 1.05877795 | BU112: =IFERROR(IF('Materiaalindexen o.w.'!BL38/'Materiaalindexen o.w.'!BL$34=0,NA(),'Materiaalindexen o.w.'!BL38/'Materiaalindexen o.w.'!BL$34),NA()) -> 1.053108174 | BV112: =IFERROR(IF('Materiaalindexen o.w.'!BM38/'Materiaalindexen o.w.'!BM$34=0,NA(),'Materiaalindexen o.w.'!BM38/'Materiaalindexen o.w.'!BM$34),NA()) -> 1 | BW112: =IFERROR(IF('Materiaalindexen o.w.'!BN38/'Materiaalindexen o.w.'!BN$34=0,NA(),'Materiaalindexen o.w.'!BN38/'Materiaalindexen o.w.'!BN$34),NA()) -> 1 | BX112: =IFERROR(IF('Materiaalindexen o.w.'!BO38/'Materiaalindexen o.w.'!BO$34=0,NA(),'Materiaalindexen o.w.'!BO38/'Materiaalindexen o.w.'!BO$34),NA()) -> 1 | BY112: =IFERROR(IF('Materiaalindexen o.w.'!BP38/'Materiaalindexen o.w.'!BP$34=0,NA(),'Materiaalindexen o.w.'!BP38/'Materiaalindexen o.w.'!BP$34),NA()) -> 1 | BZ112: =IFERROR(IF('Materiaalindexen o.w.'!BQ38/'Materiaalindexen o.w.'!BQ$34=0,NA(),'Materiaalindexen o.w.'!BQ38/'Materiaalindexen o.w.'!BQ$34),NA()) -> 1.010148163 | CA112: =IFERROR(IF('Materiaalindexen o.w.'!BR38/'Materiaalindexen o.w.'!BR$34=0,NA(),'Materiaalindexen o.w.'!BR38/'Materiaalindexen o.w.'!BR$34),NA()) -> 1.010170871 | CB112: =IFERROR(IF('Materiaalindexen o.w.'!BS38/'Materiaalindexen o.w.'!BS$34=0,NA(),'Materiaalindexen o.w.'!BS38/'Materiaalindexen o.w.'!BS$34),NA()) -> 1.0099837 | CC112: =IFERROR(IF('Materiaalindexen o.w.'!BT38/'Materiaalindexen o.w.'!BT$34=0,NA(),'Materiaalindexen o.w.'!BT38/'Materiaalindexen o.w.'!BT$34),NA()) -> 1.01017501 | CD112: =IFERROR(IF('Materiaalindexen o.w.'!BU38/'Materiaalindexen o.w.'!BU$34=0,NA(),'Materiaalindexen o.w.'!BU38/'Materiaalindexen o.w.'!BU$34),NA()) -> 1 | CE112: =IFERROR(IF('Materiaalindexen o.w.'!BV38/'Materiaalindexen o.w.'!BV$34=0,NA(),'Materiaalindexen o.w.'!BV38/'Materiaalindexen o.w.'!BV$34),NA()) -> 1 | CF112: =IFERROR(IF('Materiaalindexen o.w.'!BW38/'Materiaalindexen o.w.'!BW$34=0,NA(),'Materiaalindexen o.w.'!BW38/'Materiaalindexen o.w.'!BW$34),NA()) -> 1 | CG112: =IFERROR(IF('Materiaalindexen o.w.'!BX38/'Materiaalindexen o.w.'!BX$34=0,NA(),'Materiaalindexen o.w.'!BX38/'Materiaalindexen o.w.'!BX$34),NA()) -> 1 | CH112: =IFERROR(IF('Materiaalindexen o.w.'!BY38/'Materiaalindexen o.w.'!BY$34=0,NA(),'Materiaalindexen o.w.'!BY38/'Materiaalindexen o.w.'!BY$34),NA()) -> 1 | CI112: =IFERROR(IF('Materiaalindexen o.w.'!BZ38/'Materiaalindexen o.w.'!BZ$34=0,NA(),'Materiaalindexen o.w.'!BZ38/'Materiaalindexen o.w.'!BZ$34),NA()) -> 1 | CJ112: =IFERROR(IF('Materiaalindexen o.w.'!CA38/'Materiaalindexen o.w.'!CA$34=0,NA(),'Materiaalindexen o.w.'!CA38/'Materiaalindexen o.w.'!CA$34),NA()) -> 1 | CK112: =IFERROR(IF('Materiaalindexen o.w.'!CB38/'Materiaalindexen o.w.'!CB$34=0,NA(),'Materiaalindexen o.w.'!CB38/'Materiaalindexen o.w.'!CB$34),NA()) -> 1.074766355 | CL112: =IFERROR(IF('Materiaalindexen o.w.'!CC38/'Materiaalindexen o.w.'!CC$34=0,NA(),'Materiaalindexen o.w.'!CC38/'Materiaalindexen o.w.'!CC$34),NA()) -> 1.074626866 | CM112: =IFERROR(IF('Materiaalindexen o.w.'!CD38/'Materiaalindexen o.w.'!CD$34=0,NA(),'Materiaalindexen o.w.'!CD38/'Materiaalindexen o.w.'!CD$34),NA()) -> 1.074636552 | CN112: =IFERROR(IF('Materiaalindexen o.w.'!CE38/'Materiaalindexen o.w.'!CE$34=0,NA(),'Materiaalindexen o.w.'!CE38/'Materiaalindexen o.w.'!CE$34),NA()) -> 1.100490196 | CO112: =IFERROR(IF('Materiaalindexen o.w.'!CF38/'Materiaalindexen o.w.'!CF$34=0,NA(),'Materiaalindexen o.w.'!CF38/'Materiaalindexen o.w.'!CF$34),NA()) -> 1.100346021 | CP112: =IFERROR(IF('Materiaalindexen o.w.'!CG38/'Materiaalindexen o.w.'!CG$34=0,NA(),'Materiaalindexen o.w.'!CG38/'Materiaalindexen o.w.'!CG$34),NA()) -> 1.050640488 | CQ112: =IFERROR(IF('Materiaalindexen o.w.'!CH38/'Materiaalindexen o.w.'!CH$34=0,NA(),'Materiaalindexen o.w.'!CH38/'Materiaalindexen o.w.'!CH$34),NA()) -> 1.050508677 | CR112: =IFERROR(IF('Materiaalindexen o.w.'!CI38/'Materiaalindexen o.w.'!CI$34=0,NA(),'Materiaalindexen o.w.'!CI38/'Materiaalindexen o.w.'!CI$34),NA()) -> 1.043302072 | CS112: =IFERROR(IF('Materiaalindexen o.w.'!CJ38/'Materiaalindexen o.w.'!CJ$34=0,NA(),'Materiaalindexen o.w.'!CJ38/'Materiaalindexen o.w.'!CJ$34),NA()) -> 1.004163868 | CT112: =IFERROR(IF('Materiaalindexen o.w.'!CK38/'Materiaalindexen o.w.'!CK$34=0,NA(),'Materiaalindexen o.w.'!CK38/'Materiaalindexen o.w.'!CK$34),NA()) -> 1.01671004 | CU112: =IFERROR(IF('Materiaalindexen o.w.'!CL38/'Materiaalindexen o.w.'!CL$34=0,NA(),'Materiaalindexen o.w.'!CL38/'Materiaalindexen o.w.'!CL$34),NA()) -> 1.021810089 | CV112: =IFERROR(IF('Materiaalindexen o.w.'!CM38/'Materiaalindexen o.w.'!CM$34=0,NA(),'Materiaalindexen o.w.'!CM38/'Materiaalindexen o.w.'!CM$34),NA()) -> 1.014913726 | CW112: =IFERROR(IF('Materiaalindexen o.w.'!CN38/'Materiaalindexen o.w.'!CN$34=0,NA(),'Materiaalindexen o.w.'!CN38/'Materiaalindexen o.w.'!CN$34),NA()) -> 1.017613187 | CX112: =IFERROR(IF('Materiaalindexen o.w.'!CO38/'Materiaalindexen o.w.'!CO$34=0,NA(),'Materiaalindexen o.w.'!CO38/'Materiaalindexen o.w.'!CO$34),NA()) -> 0.9888014192 | CY112: =IFERROR(IF('Materiaalindexen o.w.'!CP38/'Materiaalindexen o.w.'!CP$34=0,NA(),'Materiaalindexen o.w.'!CP38/'Materiaalindexen o.w.'!CP$34),NA()) -> 1.041984733 | CZ112: =IFERROR(IF('Materiaalindexen o.w.'!CQ38/'Materiaalindexen o.w.'!CQ$34=0,NA(),'Materiaalindexen o.w.'!CQ38/'Materiaalindexen o.w.'!CQ$34),NA()) -> 1.063219087 | DA112: =IFERROR(IF('Materiaalindexen o.w.'!CR38/'Materiaalindexen o.w.'!CR$34=0,NA(),'Materiaalindexen o.w.'!CR38/'Materiaalindexen o.w.'!CR$34),NA()) ->  | DB112: =IFERROR(IF('Materiaalindexen o.w.'!CS38/'Materiaalindexen o.w.'!CS$34=0,NA(),'Materiaalindexen o.w.'!CS38/'Materiaalindexen o.w.'!CS$34),NA()) ->  | DC112: =IFERROR(IF('Materiaalindexen o.w.'!CT38/'Materiaalindexen o.w.'!CT$34=0,NA(),'Materiaalindexen o.w.'!CT38/'Materiaalindexen o.w.'!CT$34),NA()) ->  | DD112: =IFERROR(IF('Materiaalindexen o.w.'!CU38/'Materiaalindexen o.w.'!CU$34=0,NA(),'Materiaalindexen o.w.'!CU38/'Materiaalindexen o.w.'!CU$34),NA()) ->  | DE112: =IFERROR(IF('Grymafer indexen'!D37/'Grymafer indexen'!D$33=0,NA(),'Grymafer indexen'!D37/'Grymafer indexen'!D$33),NA()) -> 0.9707241911 | DF112: =IFERROR(IF('Grymafer indexen'!E37/'Grymafer indexen'!E$33=0,NA(),'Grymafer indexen'!E37/'Grymafer indexen'!E$33),NA()) -> 0.9805194805 | DG112: =IFERROR(IF('Grymafer indexen'!F37/'Grymafer indexen'!F$33=0,NA(),'Grymafer indexen'!F37/'Grymafer indexen'!F$33),NA()) -> 0.9799777531 | DH112: =IFERROR(IF('Grymafer indexen'!G37/'Grymafer indexen'!G$33=0,NA(),'Grymafer indexen'!G37/'Grymafer indexen'!G$33),NA()) -> 0.975483871 | DI112: =IFERROR(IF('Materiaalindexen o.w.'!#REF!/'Materiaalindexen o.w.'!#REF!=0,NA(),'Materiaalindexen o.w.'!#REF!/'Materiaalindexen o.w.'!#REF!),NA()) ->  | DJ112: =IFERROR(IF('Materiaalindexen o.w.'!#REF!/'Materiaalindexen o.w.'!#REF!=0,NA(),'Materiaalindexen o.w.'!#REF!/'Materiaalindexen o.w.'!#REF!),NA()) ->  | DK112: =IFERROR(IF('Materiaalindexen o.w.'!#REF!/'Materiaalindexen o.w.'!#REF!=0,NA(),'Materiaalindexen o.w.'!#REF!/'Materiaalindexen o.w.'!#REF!),NA()) ->  | DL112: =IFERROR(IF('Materiaalindexen o.w.'!#REF!/'Materiaalindexen o.w.'!#REF!=0,NA(),'Materiaalindexen o.w.'!#REF!/'Materiaalindexen o.w.'!#REF!),NA()) ->  | DM112: =IFERROR(IF('Materiaalindexen o.w.'!#REF!/'Materiaalindexen o.w.'!#REF!=0,NA(),'Materiaalindexen o.w.'!#REF!/'Materiaalindexen o.w.'!#REF!),NA()) ->  | DN112: =IFERROR(IF('Materiaalindexen o.w.'!#REF!/'Materiaalindexen o.w.'!#REF!=0,NA(),'Materiaalindexen o.w.'!#REF!/'Materiaalindexen o.w.'!#REF!),NA()) ->  | DO112: =IFERROR(IF('Materiaalindexen o.w.'!#REF!/'Materiaalindexen o.w.'!#REF!=0,NA(),'Materiaalindexen o.w.'!#REF!/'Materiaalindexen o.w.'!#REF!),NA()) ->  | DP112: =IFERROR(IF('Materiaalindexen o.w.'!#REF!/'Materiaalindexen o.w.'!#REF!=0,NA(),'Materiaalindexen o.w.'!#REF!/'Materiaalindexen o.w.'!#REF!),NA()) ->  | DS112: =Standaardindexen!C35 -> 2018-05-01 | DT112: =IFERROR(IF('Indexen goederen & diensten'!D38/'Indexen goederen & diensten'!D$34=0,NA(),'Indexen goederen & diensten'!D38/'Indexen goederen & diensten'!D$34),NA()) -> 1.00619469 | DU112: =IFERROR(IF('Indexen goederen & diensten'!E38/'Indexen goederen & diensten'!E$34=0,NA(),'Indexen goederen & diensten'!E38/'Indexen goederen & diensten'!E$34),NA()) -> 1.05861244 | DV112: =IFERROR(IF('Indexen goederen & diensten'!F38/'Indexen goederen & diensten'!F$34=0,NA(),'Indexen goederen & diensten'!F38/'Indexen goederen & diensten'!F$34),NA()) -> 1.023430178 | DW112: =IFERROR(IF('Indexen goederen & diensten'!G38/'Indexen goederen & diensten'!G$34=0,NA(),'Indexen goederen & diensten'!G38/'Indexen goederen & diensten'!G$34),NA()) -> 0.9990740741 | DX112: =IFERROR(IF('Indexen goederen & diensten'!H38/'Indexen goederen & diensten'!H$34=0,NA(),'Indexen goederen & diensten'!H38/'Indexen goederen & diensten'!H$34),NA()) -> 1.00170503 | DY112: =IFERROR(IF('Indexen goederen & diensten'!I38/'Indexen goederen & diensten'!I$34=0,NA(),'Indexen goederen & diensten'!I38/'Indexen goederen & diensten'!I$34),NA()) -> 0.9680111266 | DZ112: =IFERROR(IF('Indexen goederen & diensten'!J38/'Indexen goederen & diensten'!J$34=0,NA(),'Indexen goederen & diensten'!J38/'Indexen goederen & diensten'!J$34),NA()) -> 1.003676471 | EA112: =IFERROR(IF('Indexen goederen & diensten'!K38/'Indexen goederen & diensten'!K$34=0,NA(),'Indexen goederen & diensten'!K38/'Indexen goederen & diensten'!K$34),NA()) -> 0.9955357143 | EB112: =IFERROR(IF('Indexen goederen & diensten'!L38/'Indexen goederen & diensten'!L$34=0,NA(),'Indexen goederen & diensten'!L38/'Indexen goederen & diensten'!L$34),NA()) -> 1 | EC112: =IFERROR(IF('Indexen goederen & diensten'!M38/'Indexen goederen & diensten'!M$34=0,NA(),'Indexen goederen & diensten'!M38/'Indexen goederen & diensten'!M$34),NA()) -> 1.006161972 | ED112: =IFERROR(IF('Indexen goederen & diensten'!N38/'Indexen goederen & diensten'!N$34=0,NA(),'Indexen goederen & diensten'!N38/'Indexen goederen & diensten'!N$34),NA()) -> 1.004052685 | EE112: =IFERROR(IF('Indexen goederen & diensten'!O38/'Indexen goederen & diensten'!O$34=0,NA(),'Indexen goederen & diensten'!O38/'Indexen goederen & diensten'!O$34),NA()) -> 1 | EF112: =IFERROR(IF('Indexen goederen & diensten'!P38/'Indexen goederen & diensten'!P$34=0,NA(),'Indexen goederen & diensten'!P38/'Indexen goederen & diensten'!P$34),NA()) -> 1.004983389 | EG112: =IFERROR(IF('Indexen goederen & diensten'!Q38/'Indexen goederen & diensten'!Q$34=0,NA(),'Indexen goederen & diensten'!Q38/'Indexen goederen & diensten'!Q$34),NA()) -> 1.014324082 | EH112: =IFERROR(IF('Indexen goederen & diensten'!R38/'Indexen goederen & diensten'!R$34=0,NA(),'Indexen goederen & diensten'!R38/'Indexen goederen & diensten'!R$34),NA()) -> 1.015108593 | EI112: =IFERROR(IF('Indexen goederen & diensten'!S38/'Indexen goederen & diensten'!S$34=0,NA(),'Indexen goederen & diensten'!S38/'Indexen goederen & diensten'!S$34),NA()) -> 1.017857143 | EJ112: =IFERROR(IF('Indexen goederen & diensten'!T38/'Indexen goederen & diensten'!T$34=0,NA(),'Indexen goederen & diensten'!T38/'Indexen goederen & diensten'!T$34),NA()) -> 1.028871391 | EK112: =IFERROR(IF('Indexen goederen & diensten'!U38/'Indexen goederen & diensten'!U$34=0,NA(),'Indexen goederen & diensten'!U38/'Indexen goederen & diensten'!U$34),NA()) -> 1.036777583 | EL112: =IFERROR(IF('Indexen goederen & diensten'!V38/'Indexen goederen & diensten'!V$34=0,NA(),'Indexen goederen & diensten'!V38/'Indexen goederen & diensten'!V$34),NA()) -> 1.050139276 | EM112: =IFERROR(IF('Indexen goederen & diensten'!W38/'Indexen goederen & diensten'!W$34=0,NA(),'Indexen goederen & diensten'!W38/'Indexen goederen & diensten'!W$34),NA()) -> 1.008006405 | EN112: =IFERROR(IF('Indexen goederen & diensten'!X38/'Indexen goederen & diensten'!X$34=0,NA(),'Indexen goederen & diensten'!X38/'Indexen goederen & diensten'!X$34),NA()) -> 1.069393718 | EO112: =IFERROR(IF('Indexen goederen & diensten'!Y38/'Indexen goederen & diensten'!Y$34=0,NA(),'Indexen goederen & diensten'!Y38/'Indexen goederen & diensten'!Y$34),NA()) -> 1.007778738 | EP112: =IFERROR(IF('Indexen goederen & diensten'!Z38/'Indexen goederen & diensten'!Z$34=0,NA(),'Indexen goederen & diensten'!Z38/'Indexen goederen & diensten'!Z$34),NA()) -> 0.9811158798 | EQ112: =IFERROR(IF('Indexen goederen & diensten'!AA38/'Indexen goederen & diensten'!AA$34=0,NA(),'Indexen goederen & diensten'!AA38/'Indexen goederen & diensten'!AA$34),NA()) -> 0.8878416588 | ER112: =IFERROR(IF('Indexen goederen & diensten'!AB38/'Indexen goederen & diensten'!AB$34=0,NA(),'Indexen goederen & diensten'!AB38/'Indexen goederen & diensten'!AB$34),NA()) -> 1.024451939 | ES112: =IFERROR(IF('Indexen goederen & diensten'!AC38/'Indexen goederen & diensten'!AC$34=0,NA(),'Indexen goederen & diensten'!AC38/'Indexen goederen & diensten'!AC$34),NA()) -> 1.032939189 | ET112: =IFERROR(IF('Indexen goederen & diensten'!AD38/'Indexen goederen & diensten'!AD$34=0,NA(),'Indexen goederen & diensten'!AD38/'Indexen goederen & diensten'!AD$34),NA()) -> 1.022823331 | EU112: =IFERROR(IF('Indexen goederen & diensten'!AE38/'Indexen goederen & diensten'!AE$34=0,NA(),'Indexen goederen & diensten'!AE38/'Indexen goederen & diensten'!AE$34),NA()) -> 1.023547881 | EV112: =IFERROR(IF('Indexen goederen & diensten'!AF38/'Indexen goederen & diensten'!AF$34=0,NA(),'Indexen goederen & diensten'!AF38/'Indexen goederen & diensten'!AF$34),NA()) -> 1.000868056 | EW112: =IFERROR(IF('Indexen goederen & diensten'!AG38/'Indexen goederen & diensten'!AG$34=0,NA(),'Indexen goederen & diensten'!AG38/'Indexen goederen & diensten'!AG$34),NA()) -> 1.023276634 | EX112: =IFERROR(IF('Indexen goederen & diensten'!AH38/'Indexen goederen & diensten'!AH$34=0,NA(),'Indexen goederen & diensten'!AH38/'Indexen goederen & diensten'!AH$34),NA()) -> 1.099462366 | EY112: =IFERROR(IF('Indexen goederen & diensten'!AI38/'Indexen goederen & diensten'!AI$34=0,NA(),'Indexen goederen & diensten'!AI38/'Indexen goederen & diensten'!AI$34),NA()) -> 0.9947460595 | EZ112: =IFERROR(IF('Indexen goederen & diensten'!AJ38/'Indexen goederen & diensten'!AJ$34=0,NA(),'Indexen goederen & diensten'!AJ38/'Indexen goederen & diensten'!AJ$34),NA()) -> 1.002583979 | FA112: =IFERROR(IF('Indexen goederen & diensten'!AK38/'Indexen goederen & diensten'!AK$34=0,NA(),'Indexen goederen & diensten'!AK38/'Indexen goederen & diensten'!AK$34),NA()) -> 0.9525660964 | FB112: =IFERROR(IF('Indexen goederen & diensten'!AL38/'Indexen goederen & diensten'!AL$34=0,NA(),'Indexen goederen & diensten'!AL38/'Indexen goederen & diensten'!AL$34),NA()) -> 0.9951638904 | FC112: =IFERROR(IF('Indexen goederen & diensten'!AM38/'Indexen goederen & diensten'!AM$34=0,NA(),'Indexen goederen & diensten'!AM38/'Indexen goederen & diensten'!AM$34),NA()) -> 1.02716915 | FD112: =IFERROR(IF('Indexen goederen & diensten'!AN38/'Indexen goederen & diensten'!AN$34=0,NA(),'Indexen goederen & diensten'!AN38/'Indexen goederen & diensten'!AN$34),NA()) -> 1.00233463 | FE112: =IFERROR(IF('Indexen goederen & diensten'!AO38/'Indexen goederen & diensten'!AO$34=0,NA(),'Indexen goederen & diensten'!AO38/'Indexen goederen & diensten'!AO$34),NA()) -> 1.003542958 | FF112: =IFERROR(IF('Indexen goederen & diensten'!AP38/'Indexen goederen & diensten'!AP$34=0,NA(),'Indexen goederen & diensten'!AP38/'Indexen goederen & diensten'!AP$34),NA()) -> 0.9982222222 | FG112: =IFERROR(IF('Indexen goederen & diensten'!AQ38/'Indexen goederen & diensten'!AQ$34=0,NA(),'Indexen goederen & diensten'!AQ38/'Indexen goederen & diensten'!AQ$34),NA()) -> 1.004432624 | FH112: =IFERROR(IF('Indexen goederen & diensten'!AR38/'Indexen goederen & diensten'!AR$34=0,NA(),'Indexen goederen & diensten'!AR38/'Indexen goederen & diensten'!AR$34),NA()) -> 0.9990147783 | FI112: =IFERROR(IF('Indexen goederen & diensten'!AS38/'Indexen goederen & diensten'!AS$34=0,NA(),'Indexen goederen & diensten'!AS38/'Indexen goederen & diensten'!AS$34),NA()) -> 1.007131537 | FJ112: =IFERROR(IF('Indexen goederen & diensten'!AT38/'Indexen goederen & diensten'!AT$34=0,NA(),'Indexen goederen & diensten'!AT38/'Indexen goederen & diensten'!AT$34),NA()) -> 1.026112186 | FK112: =IFERROR(IF('Indexen goederen & diensten'!AU38/'Indexen goederen & diensten'!AU$34=0,NA(),'Indexen goederen & diensten'!AU38/'Indexen goederen & diensten'!AU$34),NA()) -> 1.024667932 | FL112: =IFERROR(IF('Indexen goederen & diensten'!AV38/'Indexen goederen & diensten'!AV$34=0,NA(),'Indexen goederen & diensten'!AV38/'Indexen goederen & diensten'!AV$34),NA()) -> 1.032225579 | FM112: =IFERROR(IF('Indexen goederen & diensten'!AW38/'Indexen goederen & diensten'!AW$34=0,NA(),'Indexen goederen & diensten'!AW38/'Indexen goederen & diensten'!AW$34),NA()) -> 1.073033708 | FN112: =IFERROR(IF('Indexen goederen & diensten'!AX38/'Indexen goederen & diensten'!AX$34=0,NA(),'Indexen goederen & diensten'!AX38/'Indexen goederen & diensten'!AX$34),NA()) -> 1.01453958 | FO112: =IFERROR(IF('Indexen goederen & diensten'!AY38/'Indexen goederen & diensten'!AY$34=0,NA(),'Indexen goederen & diensten'!AY38/'Indexen goederen & diensten'!AY$34),NA()) -> 1.01453958 | FP112: =IFERROR(IF('Indexen goederen & diensten'!AZ38/'Indexen goederen & diensten'!AZ$34=0,NA(),'Indexen goederen & diensten'!AZ38/'Indexen goederen & diensten'!AZ$34),NA()) -> 1.032544379 | FQ112: =IFERROR(IF('Indexen goederen & diensten'!BA38/'Indexen goederen & diensten'!BA$34=0,NA(),'Indexen goederen & diensten'!BA38/'Indexen goederen & diensten'!BA$34),NA()) -> 1.047227926 | FR112: =IFERROR(IF('Indexen goederen & diensten'!BB38/'Indexen goederen & diensten'!BB$34=0,NA(),'Indexen goederen & diensten'!BB38/'Indexen goederen & diensten'!BB$34),NA()) -> 1.02266289 | FS112: =IFERROR(IF('Indexen goederen & diensten'!BC38/'Indexen goederen & diensten'!BC$34=0,NA(),'Indexen goederen & diensten'!BC38/'Indexen goederen & diensten'!BC$34),NA()) -> 1.028284672 | FT112: =IFERROR(IF('Indexen goederen & diensten'!BD38/'Indexen goederen & diensten'!BD$34=0,NA(),'Indexen goederen & diensten'!BD38/'Indexen goederen & diensten'!BD$34),NA()) -> 1.019547325 | FU112: =IFERROR(IF('Indexen goederen & diensten'!BE38/'Indexen goederen & diensten'!BE$34=0,NA(),'Indexen goederen & diensten'!BE38/'Indexen goederen & diensten'!BE$34),NA()) -> 0.998019802 | FV112: =IFERROR(IF('Indexen goederen & diensten'!BF38/'Indexen goederen & diensten'!BF$34=0,NA(),'Indexen goederen & diensten'!BF38/'Indexen goederen & diensten'!BF$34),NA()) -> 1.00280112 | FW112: =IFERROR(IF('Indexen goederen & diensten'!BG38/'Indexen goederen & diensten'!BG$34=0,NA(),'Indexen goederen & diensten'!BG38/'Indexen goederen & diensten'!BG$34),NA()) -> 1.0256 | FX112: =IFERROR(IF('Indexen goederen & diensten'!BH38/'Indexen goederen & diensten'!BH$34=0,NA(),'Indexen goederen & diensten'!BH38/'Indexen goederen & diensten'!BH$34),NA()) -> 0.9959216966 | FY112: =IFERROR(IF('Indexen goederen & diensten'!BI38/'Indexen goederen & diensten'!BI$34=0,NA(),'Indexen goederen & diensten'!BI38/'Indexen goederen & diensten'!BI$34),NA()) -> 1.02890625 | FZ112: =IFERROR(IF('Indexen goederen & diensten'!BJ38/'Indexen goederen & diensten'!BJ$34=0,NA(),'Indexen goederen & diensten'!BJ38/'Indexen goederen & diensten'!BJ$34),NA()) -> 0.9867298578 | GA112: =IFERROR(IF('Indexen goederen & diensten'!BK38/'Indexen goederen & diensten'!BK$34=0,NA(),'Indexen goederen & diensten'!BK38/'Indexen goederen & diensten'!BK$34),NA()) -> 0.9848484848 | GB112: =IFERROR(IF('Indexen goederen & diensten'!BL38/'Indexen goederen & diensten'!BL$34=0,NA(),'Indexen goederen & diensten'!BL38/'Indexen goederen & diensten'!BL$34),NA()) -> 0.9794520548 | GC112: =IFERROR(IF('Indexen goederen & diensten'!BM38/'Indexen goederen & diensten'!BM$34=0,NA(),'Indexen goederen & diensten'!BM38/'Indexen goederen & diensten'!BM$34),NA()) -> 0.9903508772 | GD112: =IFERROR(IF('Indexen goederen & diensten'!BN38/'Indexen goederen & diensten'!BN$34=0,NA(),'Indexen goederen & diensten'!BN38/'Indexen goederen & diensten'!BN$34),NA()) -> 1.018442623 | GE112: =IFERROR(IF('Indexen goederen & diensten'!BO38/'Indexen goederen & diensten'!BO$34=0,NA(),'Indexen goederen & diensten'!BO38/'Indexen goederen & diensten'!BO$34),NA()) -> 1.024021352 | GF112: =IFERROR(IF('Indexen goederen & diensten'!BP38/'Indexen goederen & diensten'!BP$34=0,NA(),'Indexen goederen & diensten'!BP38/'Indexen goederen & diensten'!BP$34),NA()) -> 1.026794258 | GG112: =IFERROR(IF('Indexen goederen & diensten'!BQ38/'Indexen goederen & diensten'!BQ$34=0,NA(),'Indexen goederen & diensten'!BQ38/'Indexen goederen & diensten'!BQ$34),NA()) -> 1.008093525 | GH112: =IFERROR(IF('Indexen goederen & diensten'!BR38/'Indexen goederen & diensten'!BR$34=0,NA(),'Indexen goederen & diensten'!BR38/'Indexen goederen & diensten'!BR$34),NA()) -> 1.011926606 | GI112: =IFERROR(IF('Indexen goederen & diensten'!BS38/'Indexen goederen & diensten'!BS$34=0,NA(),'Indexen goederen & diensten'!BS38/'Indexen goederen & diensten'!BS$34),NA()) -> 1.00174216 | GJ112: =IFERROR(IF('Indexen goederen & diensten'!BT38/'Indexen goederen & diensten'!BT$34=0,NA(),'Indexen goederen & diensten'!BT38/'Indexen goederen & diensten'!BT$34),NA()) -> 1.022913257 | GK112: =IFERROR(IF('Indexen goederen & diensten'!BU38/'Indexen goederen & diensten'!BU$34=0,NA(),'Indexen goederen & diensten'!BU38/'Indexen goederen & diensten'!BU$34),NA()) -> 1.038528897 | GL112: =IFERROR(IF('Indexen goederen & diensten'!BV38/'Indexen goederen & diensten'!BV$34=0,NA(),'Indexen goederen & diensten'!BV38/'Indexen goederen & diensten'!BV$34),NA()) -> 1.023674242 | GM112: =IFERROR(IF('Indexen goederen & diensten'!BW38/'Indexen goederen & diensten'!BW$34=0,NA(),'Indexen goederen & diensten'!BW38/'Indexen goederen & diensten'!BW$34),NA()) -> 1 | GN112: =IFERROR(IF('Indexen goederen & diensten'!BX38/'Indexen goederen & diensten'!BX$34=0,NA(),'Indexen goederen & diensten'!BX38/'Indexen goederen & diensten'!BX$34),NA()) -> 1.015652174 | GO112: =IFERROR(IF('Indexen goederen & diensten'!BY38/'Indexen goederen & diensten'!BY$34=0,NA(),'Indexen goederen & diensten'!BY38/'Indexen goederen & diensten'!BY$34),NA()) -> 0.998502994 | GP112: =IFERROR(IF('Indexen goederen & diensten'!BZ38/'Indexen goederen & diensten'!BZ$34=0,NA(),'Indexen goederen & diensten'!BZ38/'Indexen goederen & diensten'!BZ$34),NA()) -> 1.019572954 | GQ112: =IFERROR(IF('Indexen goederen & diensten'!CA38/'Indexen goederen & diensten'!CA$34=0,NA(),'Indexen goederen & diensten'!CA38/'Indexen goederen & diensten'!CA$34),NA()) -> 1.058187864 | GR112: =IFERROR(IF('Indexen goederen & diensten'!CB38/'Indexen goederen & diensten'!CB$34=0,NA(),'Indexen goederen & diensten'!CB38/'Indexen goederen & diensten'!CB$34),NA()) -> 1.004643963 | GS112: =IFERROR(IF('Indexen goederen & diensten'!CC38/'Indexen goederen & diensten'!CC$34=0,NA(),'Indexen goederen & diensten'!CC38/'Indexen goederen & diensten'!CC$34),NA()) -> 1.005314438 | GT112: =IFERROR(IF('Indexen goederen & diensten'!CD38/'Indexen goederen & diensten'!CD$34=0,NA(),'Indexen goederen & diensten'!CD38/'Indexen goederen & diensten'!CD$34),NA()) -> 1.011948529 | GU112: =IFERROR(IF('Indexen goederen & diensten'!CE38/'Indexen goederen & diensten'!CE$34=0,NA(),'Indexen goederen & diensten'!CE38/'Indexen goederen & diensten'!CE$34),NA()) -> 1.00199005 | GV112: =IFERROR(IF('Indexen goederen & diensten'!CF38/'Indexen goederen & diensten'!CF$34=0,NA(),'Indexen goederen & diensten'!CF38/'Indexen goederen & diensten'!CF$34),NA()) -> 1.006145742 | GW112: =IFERROR(IF('Indexen goederen & diensten'!CG38/'Indexen goederen & diensten'!CG$34=0,NA(),'Indexen goederen & diensten'!CG38/'Indexen goederen & diensten'!CG$34),NA()) -> 1 | GX112: =IFERROR(IF('Indexen goederen & diensten'!CH38/'Indexen goederen & diensten'!CH$34=0,NA(),'Indexen goederen & diensten'!CH38/'Indexen goederen & diensten'!CH$34),NA()) -> 1.004444444 | GY112: =IFERROR(IF('Indexen goederen & diensten'!CI38/'Indexen goederen & diensten'!CI$34=0,NA(),'Indexen goederen & diensten'!CI38/'Indexen goederen & diensten'!CI$34),NA()) -> 1.009737098 | GZ112: =IFERROR(IF('Indexen goederen & diensten'!CJ38/'Indexen goederen & diensten'!CJ$34=0,NA(),'Indexen goederen & diensten'!CJ38/'Indexen goederen & diensten'!CJ$34),NA()) -> 0.9968421053 | HA112: =IFERROR(IF('Indexen goederen & diensten'!CK38/'Indexen goederen & diensten'!CK$34=0,NA(),'Indexen goederen & diensten'!CK38/'Indexen goederen & diensten'!CK$34),NA()) -> 0.9569093611 | HB112: =IFERROR(IF('Indexen goederen & diensten'!CL38/'Indexen goederen & diensten'!CL$34=0,NA(),'Indexen goederen & diensten'!CL38/'Indexen goederen & diensten'!CL$34),NA()) -> 0.9628851541 | HC112: =IFERROR(IF('Indexen goederen & diensten'!CM38/'Indexen goederen & diensten'!CM$34=0,NA(),'Indexen goederen & diensten'!CM38/'Indexen goederen & diensten'!CM$34),NA()) -> 0.9395711501 | HD112: =IFERROR(IF('Indexen goederen & diensten'!CN38/'Indexen goederen & diensten'!CN$34=0,NA(),'Indexen goederen & diensten'!CN38/'Indexen goederen & diensten'!CN$34),NA()) -> 1.00090009 | HF112: =Tableau21[[#This Row],[datum]] -> 2018-05-01 | HG112: =IFERROR(IF(Standaardindexen!J35/Standaardindexen!J$31=0,NA(),Standaardindexen!J35/Standaardindexen!J$31),NA()) -> 0.9954946257 | HH112: =IFERROR(IF(Standaardindexen!K35/Standaardindexen!K$31=0,NA(),Standaardindexen!K35/Standaardindexen!K$31),NA()) -> 0.9956812919 | HI112: =IFERROR(IF(Standaardindexen!L35/Standaardindexen!L$31=0,NA(),Standaardindexen!L35/Standaardindexen!L$31),NA()) -> 0.9957119159 | HJ112: =IFERROR(IF(Standaardindexen!M35/Standaardindexen!M$31=0,NA(),Standaardindexen!M35/Standaardindexen!M$31),NA()) -> 0.9954899813 | HK112: =IFERROR(IF(Standaardindexen!N35/Standaardindexen!N$31=0,NA(),Standaardindexen!N35/Standaardindexen!N$31),NA()) -> 0.9956769626 | HL112: =IFERROR(IF(Standaardindexen!O35/Standaardindexen!O$31=0,NA(),Standaardindexen!O35/Standaardindexen!O$31),NA()) -> 0.9956762854 | HM112: =IFERROR(IF(Standaardindexen!P35/Standaardindexen!P$31=0,NA(),Standaardindexen!P35/Standaardindexen!P$31),NA()) -> 0.9952943499 | HN112: =IFERROR(IF(Standaardindexen!Q35/Standaardindexen!Q$31=0,NA(),Standaardindexen!Q35/Standaardindexen!Q$31),NA()) -> 0.9954907416 | HO112: =IFERROR(IF(Standaardindexen!R35/Standaardindexen!R$31=0,NA(),Standaardindexen!R35/Standaardindexen!R$31),NA()) -> 0.9954900205 | HP112: =IFERROR(IF(Standaardindexen!S35/Standaardindexen!S$31=0,NA(),Standaardindexen!S35/Standaardindexen!S$31),NA()) -> 0.995183141 | HQ112: =IFERROR(IF(Standaardindexen!T35/Standaardindexen!T$31=0,NA(),Standaardindexen!T35/Standaardindexen!T$31),NA()) -> 0.9953858652 | HR112: =IFERROR(IF(Standaardindexen!U35/Standaardindexen!U$31=0,NA(),Standaardindexen!U35/Standaardindexen!U$31),NA()) -> 0.9953851154 | HS112: =IFERROR(IF(Standaardindexen!V35/Standaardindexen!V$31=0,NA(),Standaardindexen!V35/Standaardindexen!V$31),NA()) -> 1.000795355 | HT112: =IFERROR(IF(Standaardindexen!W35/Standaardindexen!W$31=0,NA(),Standaardindexen!W35/Standaardindexen!W$31),NA()) -> 1.000747737 | HU112: =IFERROR(IF(Standaardindexen!X35/Standaardindexen!X$31=0,NA(),Standaardindexen!X35/Standaardindexen!X$31),NA()) -> 1.014330585 | HV112: =IFERROR(IF(Standaardindexen!Y35/Standaardindexen!Y$31=0,NA(),Standaardindexen!Y35/Standaardindexen!Y$31),NA()) -> 1.014807502 | HW112: =IFERROR(IF(Standaardindexen!Z35/Standaardindexen!Z$31=0,NA(),Standaardindexen!Z35/Standaardindexen!Z$31),NA()) -> 1.013807153 | HX112: =IFERROR(IF(Standaardindexen!AA35/Standaardindexen!AA$31=0,NA(),Standaardindexen!AA35/Standaardindexen!AA$31),NA()) -> 1.01444177 | HY112: =IFERROR(IF(Standaardindexen!AB35/Standaardindexen!AB$31=0,NA(),Standaardindexen!AB35/Standaardindexen!AB$31),NA()) -> 1.013342263 | HZ112: =IFERROR(IF(Standaardindexen!AC35/Standaardindexen!AC$31=0,NA(),Standaardindexen!AC35/Standaardindexen!AC$31),NA()) -> 1.020863162 | IA112: =Tableau21[[#This Row],[prijsevolutie - volgens prijsherzieningsformule -index i 2021]] -> 1.00292 | IB112: =Tableau21[[#This Row],[prijsevolutie - volgens prijsherzieningsformule -index i]] -> 0.99466 | IC112: =Tableau21[[#This Row],[prijsherzieningsformule - index i 2021]] -> 1.00051 | ID112: =Tableau21[[#This Row],[prijsherzieningsformule - index i]] -> 1.00051 | IE112: =IFERROR(IF('Indexeringen Lonen per PC'!BZ37/'Indexeringen Lonen per PC'!BZ$33=0,NA(),'Indexeringen Lonen per PC'!BZ37/'Indexeringen Lonen per PC'!BZ$33),NA()) -> 1.004216093 | IF112: =IFERROR(IF('Indexeringen Lonen per PC'!CA37/'Indexeringen Lonen per PC'!CA$33=0,NA(),'Indexeringen Lonen per PC'!CA37/'Indexeringen Lonen per PC'!CA$33),NA()) -> 1 | IG112: =IFERROR(IF('Indexeringen Lonen per PC'!CB37/'Indexeringen Lonen per PC'!CB$33=0,NA(),'Indexeringen Lonen per PC'!CB37/'Indexeringen Lonen per PC'!CB$33),NA()) -> 1 | IH112: =IFERROR(IF('Indexeringen Lonen per PC'!CC37/'Indexeringen Lonen per PC'!CC$33=0,NA(),'Indexeringen Lonen per PC'!CC37/'Indexeringen Lonen per PC'!CC$33),NA()) -> 1.019855596 | II112: =IFERROR(IF('Indexeringen Lonen per PC'!CD37/'Indexeringen Lonen per PC'!CD$33=0,NA(),'Indexeringen Lonen per PC'!CD37/'Indexeringen Lonen per PC'!CD$33),NA()) -> 1 | IJ112: =IFERROR(IF('Indexeringen Lonen per PC'!CE37/'Indexeringen Lonen per PC'!CE$33=0,NA(),'Indexeringen Lonen per PC'!CE37/'Indexeringen Lonen per PC'!CE$33),NA()) -> 1 | IK112: =IFERROR(IF('Indexeringen Lonen per PC'!CF37/'Indexeringen Lonen per PC'!CF$33=0,NA(),'Indexeringen Lonen per PC'!CF37/'Indexeringen Lonen per PC'!CF$33),NA()) -> 1 | IL112: =IFERROR(IF('Indexeringen Lonen per PC'!CG37/'Indexeringen Lonen per PC'!CG$33=0,NA(),'Indexeringen Lonen per PC'!CG37/'Indexeringen Lonen per PC'!CG$33),NA()) -> 1.008928571 | IM112: =IFERROR(IF('Indexeringen Lonen per PC'!CH37/'Indexeringen Lonen per PC'!CH$33=0,NA(),'Indexeringen Lonen per PC'!CH37/'Indexeringen Lonen per PC'!CH$33),NA()) -> 1 | IN112: =IFERROR(IF('Indexeringen Lonen per PC'!CI37/'Indexeringen Lonen per PC'!CI$33=0,NA(),'Indexeringen Lonen per PC'!CI37/'Indexeringen Lonen per PC'!CI$33),NA()) -> 1
B113: =Standaardindexen!C36 -> 2018-06-01 | C113: =IFERROR(IF(Standaardindexen!D36/Standaardindexen!D$31=0,NA(),Standaardindexen!D36/Standaardindexen!D$31),NA()) -> 1.019291788 | D113: =IFERROR(IF(Standaardindexen!E36/Standaardindexen!E$31=0,NA(),Standaardindexen!E36/Standaardindexen!E$31),NA()) -> 1.018606574 | E113: =IFERROR(IF(Standaardindexen!F36/Standaardindexen!F$31=0,NA(),Standaardindexen!F36/Standaardindexen!F$31),NA()) -> 1.048366834 | F113: =IFERROR(IF(Standaardindexen!G36/Standaardindexen!G$31=0,NA(),Standaardindexen!G36/Standaardindexen!G$31),NA()) -> 1.033711309 | G113: =IFERROR(IF(Standaardindexen!H36/Standaardindexen!H$31=0,NA(),Standaardindexen!H36/Standaardindexen!H$31),NA()) -> 1.038576322 | H113: =IFERROR(IF(Standaardindexen!I36/Standaardindexen!I$31=0,NA(),Standaardindexen!I36/Standaardindexen!I$31),NA()) -> 1.023869374 | I113: =IF(Standaardindexen!E35=0,NA(),IF(Standaardindexen!J36=0,NA(),IFERROR(ROUND(((StandaardPrijsherzieningformule!$E$26*(Standaardindexen!E35/Standaardindexen!E34)+StandaardPrijsherzieningformule!$E$20*(Standaardindexen!J36/Standaardindexen!J35)+StandaardPrijsherzieningformule!$E$32)*I112),5),NA()))) -> 1.00431 | J113: =IF(Standaardindexen!D35=0,NA(),IF(Standaardindexen!J36=0,NA(),IFERROR(ROUND((((StandaardPrijsherzieningformule!$E$26*(Standaardindexen!D35/Standaardindexen!D34)+StandaardPrijsherzieningformule!$E$20*(Standaardindexen!J36/Standaardindexen!J35)+StandaardPrijsherzieningformule!$E$32))*J112),5),NA()))) -> 0.9996 | K113: =IF(Standaardindexen!E35=0,NA(),IF(Standaardindexen!J36=0,NA(),IFERROR(ROUND(((StandaardPrijsherzieningformule!$E$26*(Standaardindexen!D35/Standaardindexen!D34)+StandaardPrijsherzieningformule!$E$20*(Standaardindexen!J36/Standaardindexen!J35)+StandaardPrijsherzieningformule!$E$32)),5),NA()))) -> 1.00497 | L113: =IF(Standaardindexen!D35=0,NA(),IF(Standaardindexen!J36=0,NA(),IFERROR(ROUND((((StandaardPrijsherzieningformule!$E$26*(Standaardindexen!D35/Standaardindexen!D34)+StandaardPrijsherzieningformule!$E$20*(Standaardindexen!J36/Standaardindexen!J35)+StandaardPrijsherzieningformule!$E$32))),5),NA()))) -> 1.00497 | M113: =IFERROR(IF('Materiaalindexen o.w.'!D39/'Materiaalindexen o.w.'!D$34=0,NA(),'Materiaalindexen o.w.'!D39/'Materiaalindexen o.w.'!D$34),NA()) -> 1 | N113: =IFERROR(IF('Materiaalindexen o.w.'!E39/'Materiaalindexen o.w.'!E$34=0,NA(),'Materiaalindexen o.w.'!E39/'Materiaalindexen o.w.'!E$34),NA()) -> 1 | O113: =IFERROR(IF('Materiaalindexen o.w.'!F39/'Materiaalindexen o.w.'!F$34=0,NA(),'Materiaalindexen o.w.'!F39/'Materiaalindexen o.w.'!F$34),NA()) -> 1 | P113: =IFERROR(IF('Materiaalindexen o.w.'!G39/'Materiaalindexen o.w.'!G$34=0,NA(),'Materiaalindexen o.w.'!G39/'Materiaalindexen o.w.'!G$34),NA()) -> 1 | Q113: =IFERROR(IF('Materiaalindexen o.w.'!H39/'Materiaalindexen o.w.'!H$34=0,NA(),'Materiaalindexen o.w.'!H39/'Materiaalindexen o.w.'!H$34),NA()) -> 1 | R113: =IFERROR(IF('Materiaalindexen o.w.'!I39/'Materiaalindexen o.w.'!I$34=0,NA(),'Materiaalindexen o.w.'!I39/'Materiaalindexen o.w.'!I$34),NA()) -> 1 | S113: =IFERROR(IF('Materiaalindexen o.w.'!J39/'Materiaalindexen o.w.'!J$34=0,NA(),'Materiaalindexen o.w.'!J39/'Materiaalindexen o.w.'!J$34),NA()) -> 1 | T113: =IFERROR(IF('Materiaalindexen o.w.'!K39/'Materiaalindexen o.w.'!K$34=0,NA(),'Materiaalindexen o.w.'!K39/'Materiaalindexen o.w.'!K$34),NA()) -> 1 | U113: =IFERROR(IF('Materiaalindexen o.w.'!L39/'Materiaalindexen o.w.'!L$34=0,NA(),'Materiaalindexen o.w.'!L39/'Materiaalindexen o.w.'!L$34),NA()) -> 1 | V113: =IFERROR(IF('Materiaalindexen o.w.'!M39/'Materiaalindexen o.w.'!M$34=0,NA(),'Materiaalindexen o.w.'!M39/'Materiaalindexen o.w.'!M$34),NA()) -> 1 | W113: =IFERROR(IF('Materiaalindexen o.w.'!N39/'Materiaalindexen o.w.'!N$34=0,NA(),'Materiaalindexen o.w.'!N39/'Materiaalindexen o.w.'!N$34),NA()) -> 1 | X113: =IFERROR(IF('Materiaalindexen o.w.'!O39/'Materiaalindexen o.w.'!O$34=0,NA(),'Materiaalindexen o.w.'!O39/'Materiaalindexen o.w.'!O$34),NA()) -> 1 | Y113: =IFERROR(IF('Materiaalindexen o.w.'!P39/'Materiaalindexen o.w.'!P$34=0,NA(),'Materiaalindexen o.w.'!P39/'Materiaalindexen o.w.'!P$34),NA()) -> 1 | Z113: =IFERROR(IF('Materiaalindexen o.w.'!Q39/'Materiaalindexen o.w.'!Q$34=0,NA(),'Materiaalindexen o.w.'!Q39/'Materiaalindexen o.w.'!Q$34),NA()) -> 1 | AA113: =IFERROR(IF('Materiaalindexen o.w.'!R39/'Materiaalindexen o.w.'!R$34=0,NA(),'Materiaalindexen o.w.'!R39/'Materiaalindexen o.w.'!R$34),NA()) -> 1 | AB113: =IFERROR(IF('Materiaalindexen o.w.'!S39/'Materiaalindexen o.w.'!S$34=0,NA(),'Materiaalindexen o.w.'!S39/'Materiaalindexen o.w.'!S$34),NA()) -> 1 | AC113: =IFERROR(IF('Materiaalindexen o.w.'!T39/'Materiaalindexen o.w.'!T$34=0,NA(),'Materiaalindexen o.w.'!T39/'Materiaalindexen o.w.'!T$34),NA()) -> 1 | AD113: =IFERROR(IF('Materiaalindexen o.w.'!U39/'Materiaalindexen o.w.'!U$34=0,NA(),'Materiaalindexen o.w.'!U39/'Materiaalindexen o.w.'!U$34),NA()) -> 1 | AE113: =IFERROR(IF('Materiaalindexen o.w.'!V39/'Materiaalindexen o.w.'!V$34=0,NA(),'Materiaalindexen o.w.'!V39/'Materiaalindexen o.w.'!V$34),NA()) -> 1 | AF113: =IFERROR(IF('Materiaalindexen o.w.'!W39/'Materiaalindexen o.w.'!W$34=0,NA(),'Materiaalindexen o.w.'!W39/'Materiaalindexen o.w.'!W$34),NA()) -> 1 | AG113: =IFERROR(IF('Materiaalindexen o.w.'!X39/'Materiaalindexen o.w.'!X$34=0,NA(),'Materiaalindexen o.w.'!X39/'Materiaalindexen o.w.'!X$34),NA()) -> 1.052212931 | AH113: =IFERROR(IF('Materiaalindexen o.w.'!Y39/'Materiaalindexen o.w.'!Y$34=0,NA(),'Materiaalindexen o.w.'!Y39/'Materiaalindexen o.w.'!Y$34),NA()) -> 1.061061947 | AI113: =IFERROR(IF('Materiaalindexen o.w.'!Z39/'Materiaalindexen o.w.'!Z$34=0,NA(),'Materiaalindexen o.w.'!Z39/'Materiaalindexen o.w.'!Z$34),NA()) -> 1.060232393 | AJ113: =IFERROR(IF('Materiaalindexen o.w.'!AA39/'Materiaalindexen o.w.'!AA$34=0,NA(),'Materiaalindexen o.w.'!AA39/'Materiaalindexen o.w.'!AA$34),NA()) -> 1.06848965 | AK113: =IFERROR(IF('Materiaalindexen o.w.'!AB39/'Materiaalindexen o.w.'!AB$34=0,NA(),'Materiaalindexen o.w.'!AB39/'Materiaalindexen o.w.'!AB$34),NA()) -> 1.033668342 | AL113: =IFERROR(IF('Materiaalindexen o.w.'!AC39/'Materiaalindexen o.w.'!AC$34=0,NA(),'Materiaalindexen o.w.'!AC39/'Materiaalindexen o.w.'!AC$34),NA()) -> 1.012051823 | AM113: =IFERROR(IF('Materiaalindexen o.w.'!AD39/'Materiaalindexen o.w.'!AD$34=0,NA(),'Materiaalindexen o.w.'!AD39/'Materiaalindexen o.w.'!AD$34),NA()) -> 1.014587449 | AN113: =IFERROR(IF('Materiaalindexen o.w.'!AE39/'Materiaalindexen o.w.'!AE$34=0,NA(),'Materiaalindexen o.w.'!AE39/'Materiaalindexen o.w.'!AE$34),NA()) -> 1.032312925 | AO113: =IFERROR(IF('Materiaalindexen o.w.'!AF39/'Materiaalindexen o.w.'!AF$34=0,NA(),'Materiaalindexen o.w.'!AF39/'Materiaalindexen o.w.'!AF$34),NA()) -> 1.012070006 | AP113: =IFERROR(IF('Materiaalindexen o.w.'!AG39/'Materiaalindexen o.w.'!AG$34=0,NA(),'Materiaalindexen o.w.'!AG39/'Materiaalindexen o.w.'!AG$34),NA()) -> 1.032817548 | AQ113: =IFERROR(IF('Materiaalindexen o.w.'!AH39/'Materiaalindexen o.w.'!AH$34=0,NA(),'Materiaalindexen o.w.'!AH39/'Materiaalindexen o.w.'!AH$34),NA()) -> 1.015795123 | AR113: =IFERROR(IF('Materiaalindexen o.w.'!AI39/'Materiaalindexen o.w.'!AI$34=0,NA(),'Materiaalindexen o.w.'!AI39/'Materiaalindexen o.w.'!AI$34),NA()) -> 1.012070006 | AS113: =IFERROR(IF('Materiaalindexen o.w.'!AJ39/'Materiaalindexen o.w.'!AJ$34=0,NA(),'Materiaalindexen o.w.'!AJ39/'Materiaalindexen o.w.'!AJ$34),NA()) -> 0.9704187058 | AT113: =IFERROR(IF('Materiaalindexen o.w.'!AK39/'Materiaalindexen o.w.'!AK$34=0,NA(),'Materiaalindexen o.w.'!AK39/'Materiaalindexen o.w.'!AK$34),NA()) -> 1.014902676 | AU113: =IFERROR(IF('Materiaalindexen o.w.'!AL39/'Materiaalindexen o.w.'!AL$34=0,NA(),'Materiaalindexen o.w.'!AL39/'Materiaalindexen o.w.'!AL$34),NA()) -> 1.03247747 | AV113: =IFERROR(IF('Materiaalindexen o.w.'!AM39/'Materiaalindexen o.w.'!AM$34=0,NA(),'Materiaalindexen o.w.'!AM39/'Materiaalindexen o.w.'!AM$34),NA()) -> 1.026226473 | AW113: =IFERROR(IF('Materiaalindexen o.w.'!AN39/'Materiaalindexen o.w.'!AN$34=0,NA(),'Materiaalindexen o.w.'!AN39/'Materiaalindexen o.w.'!AN$34),NA()) -> 1.026149823 | AX113: =IFERROR(IF('Materiaalindexen o.w.'!AO39/'Materiaalindexen o.w.'!AO$34=0,NA(),'Materiaalindexen o.w.'!AO39/'Materiaalindexen o.w.'!AO$34),NA()) -> 1.02617801 | AY113: =IFERROR(IF('Materiaalindexen o.w.'!AP39/'Materiaalindexen o.w.'!AP$34=0,NA(),'Materiaalindexen o.w.'!AP39/'Materiaalindexen o.w.'!AP$34),NA()) -> 0.9781705889 | AZ113: =IFERROR(IF('Materiaalindexen o.w.'!AQ39/'Materiaalindexen o.w.'!AQ$34=0,NA(),'Materiaalindexen o.w.'!AQ39/'Materiaalindexen o.w.'!AQ$34),NA()) -> 1.050446429 | BA113: =IFERROR(IF('Materiaalindexen o.w.'!AR39/'Materiaalindexen o.w.'!AR$34=0,NA(),'Materiaalindexen o.w.'!AR39/'Materiaalindexen o.w.'!AR$34),NA()) -> 1 | BB113: =IFERROR(IF('Materiaalindexen o.w.'!AS39/'Materiaalindexen o.w.'!AS$34=0,NA(),'Materiaalindexen o.w.'!AS39/'Materiaalindexen o.w.'!AS$34),NA()) ->  | BC113: =IFERROR(IF('Materiaalindexen o.w.'!AT39/'Materiaalindexen o.w.'!AT$34=0,NA(),'Materiaalindexen o.w.'!AT39/'Materiaalindexen o.w.'!AT$34),NA()) ->  | BD113: =IFERROR(IF('Materiaalindexen o.w.'!AU39/'Materiaalindexen o.w.'!AU$34=0,NA(),'Materiaalindexen o.w.'!AU39/'Materiaalindexen o.w.'!AU$34),NA()) ->  | BE113: =IFERROR(IF('Materiaalindexen o.w.'!AV39/'Materiaalindexen o.w.'!AV$34=0,NA(),'Materiaalindexen o.w.'!AV39/'Materiaalindexen o.w.'!AV$34),NA()) ->  | BF113: =IFERROR(IF('Materiaalindexen o.w.'!AW39/'Materiaalindexen o.w.'!AW$34=0,NA(),'Materiaalindexen o.w.'!AW39/'Materiaalindexen o.w.'!AW$34),NA()) ->  | BG113: =IFERROR(IF('Materiaalindexen o.w.'!AX39/'Materiaalindexen o.w.'!AX$34=0,NA(),'Materiaalindexen o.w.'!AX39/'Materiaalindexen o.w.'!AX$34),NA()) ->  | BH113: =IFERROR(IF('Materiaalindexen o.w.'!AY39/'Materiaalindexen o.w.'!AY$34=0,NA(),'Materiaalindexen o.w.'!AY39/'Materiaalindexen o.w.'!AY$34),NA()) ->  | BI113: =IFERROR(IF('Materiaalindexen o.w.'!AZ39/'Materiaalindexen o.w.'!AZ$34=0,NA(),'Materiaalindexen o.w.'!AZ39/'Materiaalindexen o.w.'!AZ$34),NA()) -> 0.9843406352 | BJ113: =IFERROR(IF('Materiaalindexen o.w.'!BA39/'Materiaalindexen o.w.'!BA$34=0,NA(),'Materiaalindexen o.w.'!BA39/'Materiaalindexen o.w.'!BA$34),NA()) -> 1.025862069 | BK113: =IFERROR(IF('Materiaalindexen o.w.'!BB39/'Materiaalindexen o.w.'!BB$34=0,NA(),'Materiaalindexen o.w.'!BB39/'Materiaalindexen o.w.'!BB$34),NA()) -> 1.025862069 | BL113: =IFERROR(IF('Materiaalindexen o.w.'!BC39/'Materiaalindexen o.w.'!BC$34=0,NA(),'Materiaalindexen o.w.'!BC39/'Materiaalindexen o.w.'!BC$34),NA()) -> 0.9386473036 | BM113: =IFERROR(IF('Materiaalindexen o.w.'!BD39/'Materiaalindexen o.w.'!BD$34=0,NA(),'Materiaalindexen o.w.'!BD39/'Materiaalindexen o.w.'!BD$34),NA()) -> 0.9368352683 | BN113: =IFERROR(IF('Materiaalindexen o.w.'!BE39/'Materiaalindexen o.w.'!BE$34=0,NA(),'Materiaalindexen o.w.'!BE39/'Materiaalindexen o.w.'!BE$34),NA()) -> 1.094616451 | BO113: =IFERROR(IF('Materiaalindexen o.w.'!BF39/'Materiaalindexen o.w.'!BF$34=0,NA(),'Materiaalindexen o.w.'!BF39/'Materiaalindexen o.w.'!BF$34),NA()) -> 1.056672158 | BP113: =IFERROR(IF('Materiaalindexen o.w.'!BG39/'Materiaalindexen o.w.'!BG$34=0,NA(),'Materiaalindexen o.w.'!BG39/'Materiaalindexen o.w.'!BG$34),NA()) ->  | BQ113: =IFERROR(IF('Materiaalindexen o.w.'!BH39/'Materiaalindexen o.w.'!BH$34=0,NA(),'Materiaalindexen o.w.'!BH39/'Materiaalindexen o.w.'!BH$34),NA()) -> 1.225719168 | BR113: =IFERROR(IF('Materiaalindexen o.w.'!BI39/'Materiaalindexen o.w.'!BI$34=0,NA(),'Materiaalindexen o.w.'!BI39/'Materiaalindexen o.w.'!BI$34),NA()) -> 0.9946340416 | BS113: =IFERROR(IF('Materiaalindexen o.w.'!BJ39/'Materiaalindexen o.w.'!BJ$34=0,NA(),'Materiaalindexen o.w.'!BJ39/'Materiaalindexen o.w.'!BJ$34),NA()) -> 1.001275348 | BT113: =IFERROR(IF('Materiaalindexen o.w.'!BK39/'Materiaalindexen o.w.'!BK$34=0,NA(),'Materiaalindexen o.w.'!BK39/'Materiaalindexen o.w.'!BK$34),NA()) -> 1.03464689 | BU113: =IFERROR(IF('Materiaalindexen o.w.'!BL39/'Materiaalindexen o.w.'!BL$34=0,NA(),'Materiaalindexen o.w.'!BL39/'Materiaalindexen o.w.'!BL$34),NA()) -> 1.013582966 | BV113: =IFERROR(IF('Materiaalindexen o.w.'!BM39/'Materiaalindexen o.w.'!BM$34=0,NA(),'Materiaalindexen o.w.'!BM39/'Materiaalindexen o.w.'!BM$34),NA()) -> 1 | BW113: =IFERROR(IF('Materiaalindexen o.w.'!BN39/'Materiaalindexen o.w.'!BN$34=0,NA(),'Materiaalindexen o.w.'!BN39/'Materiaalindexen o.w.'!BN$34),NA()) -> 1 | BX113: =IFERROR(IF('Materiaalindexen o.w.'!BO39/'Materiaalindexen o.w.'!BO$34=0,NA(),'Materiaalindexen o.w.'!BO39/'Materiaalindexen o.w.'!BO$34),NA()) -> 1 | BY113: =IFERROR(IF('Materiaalindexen o.w.'!BP39/'Materiaalindexen o.w.'!BP$34=0,NA(),'Materiaalindexen o.w.'!BP39/'Materiaalindexen o.w.'!BP$34),NA()) -> 1 | BZ113: =IFERROR(IF('Materiaalindexen o.w.'!BQ39/'Materiaalindexen o.w.'!BQ$34=0,NA(),'Materiaalindexen o.w.'!BQ39/'Materiaalindexen o.w.'!BQ$34),NA()) -> 1.055003044 | CA113: =IFERROR(IF('Materiaalindexen o.w.'!BR39/'Materiaalindexen o.w.'!BR$34=0,NA(),'Materiaalindexen o.w.'!BR39/'Materiaalindexen o.w.'!BR$34),NA()) -> 1.054922701 | CB113: =IFERROR(IF('Materiaalindexen o.w.'!BS39/'Materiaalindexen o.w.'!BS$34=0,NA(),'Materiaalindexen o.w.'!BS39/'Materiaalindexen o.w.'!BS$34),NA()) -> 1.054808476 | CC113: =IFERROR(IF('Materiaalindexen o.w.'!BT39/'Materiaalindexen o.w.'!BT$34=0,NA(),'Materiaalindexen o.w.'!BT39/'Materiaalindexen o.w.'!BT$34),NA()) -> 1.054945055 | CD113: =IFERROR(IF('Materiaalindexen o.w.'!BU39/'Materiaalindexen o.w.'!BU$34=0,NA(),'Materiaalindexen o.w.'!BU39/'Materiaalindexen o.w.'!BU$34),NA()) -> 1 | CE113: =IFERROR(IF('Materiaalindexen o.w.'!BV39/'Materiaalindexen o.w.'!BV$34=0,NA(),'Materiaalindexen o.w.'!BV39/'Materiaalindexen o.w.'!BV$34),NA()) -> 1 | CF113: =IFERROR(IF('Materiaalindexen o.w.'!BW39/'Materiaalindexen o.w.'!BW$34=0,NA(),'Materiaalindexen o.w.'!BW39/'Materiaalindexen o.w.'!BW$34),NA()) -> 1 | CG113: =IFERROR(IF('Materiaalindexen o.w.'!BX39/'Materiaalindexen o.w.'!BX$34=0,NA(),'Materiaalindexen o.w.'!BX39/'Materiaalindexen o.w.'!BX$34),NA()) -> 1 | CH113: =IFERROR(IF('Materiaalindexen o.w.'!BY39/'Materiaalindexen o.w.'!BY$34=0,NA(),'Materiaalindexen o.w.'!BY39/'Materiaalindexen o.w.'!BY$34),NA()) -> 1 | CI113: =IFERROR(IF('Materiaalindexen o.w.'!BZ39/'Materiaalindexen o.w.'!BZ$34=0,NA(),'Materiaalindexen o.w.'!BZ39/'Materiaalindexen o.w.'!BZ$34),NA()) -> 1 | CJ113: =IFERROR(IF('Materiaalindexen o.w.'!CA39/'Materiaalindexen o.w.'!CA$34=0,NA(),'Materiaalindexen o.w.'!CA39/'Materiaalindexen o.w.'!CA$34),NA()) -> 1 | CK113: =IFERROR(IF('Materiaalindexen o.w.'!CB39/'Materiaalindexen o.w.'!CB$34=0,NA(),'Materiaalindexen o.w.'!CB39/'Materiaalindexen o.w.'!CB$34),NA()) -> 1.08605919 | CL113: =IFERROR(IF('Materiaalindexen o.w.'!CC39/'Materiaalindexen o.w.'!CC$34=0,NA(),'Materiaalindexen o.w.'!CC39/'Materiaalindexen o.w.'!CC$34),NA()) -> 1.085918235 | CM113: =IFERROR(IF('Materiaalindexen o.w.'!CD39/'Materiaalindexen o.w.'!CD$34=0,NA(),'Materiaalindexen o.w.'!CD39/'Materiaalindexen o.w.'!CD$34),NA()) -> 1.085929387 | CN113: =IFERROR(IF('Materiaalindexen o.w.'!CE39/'Materiaalindexen o.w.'!CE$34=0,NA(),'Materiaalindexen o.w.'!CE39/'Materiaalindexen o.w.'!CE$34),NA()) -> 1.110005767 | CO113: =IFERROR(IF('Materiaalindexen o.w.'!CF39/'Materiaalindexen o.w.'!CF$34=0,NA(),'Materiaalindexen o.w.'!CF39/'Materiaalindexen o.w.'!CF$34),NA()) -> 1.109861592 | CP113: =IFERROR(IF('Materiaalindexen o.w.'!CG39/'Materiaalindexen o.w.'!CG$34=0,NA(),'Materiaalindexen o.w.'!CG39/'Materiaalindexen o.w.'!CG$34),NA()) -> 1.057823536 | CQ113: =IFERROR(IF('Materiaalindexen o.w.'!CH39/'Materiaalindexen o.w.'!CH$34=0,NA(),'Materiaalindexen o.w.'!CH39/'Materiaalindexen o.w.'!CH$34),NA()) -> 1.057690006 | CR113: =IFERROR(IF('Materiaalindexen o.w.'!CI39/'Materiaalindexen o.w.'!CI$34=0,NA(),'Materiaalindexen o.w.'!CI39/'Materiaalindexen o.w.'!CI$34),NA()) -> 1.05036471 | CS113: =IFERROR(IF('Materiaalindexen o.w.'!CJ39/'Materiaalindexen o.w.'!CJ$34=0,NA(),'Materiaalindexen o.w.'!CJ39/'Materiaalindexen o.w.'!CJ$34),NA()) -> 1.002149093 | CT113: =IFERROR(IF('Materiaalindexen o.w.'!CK39/'Materiaalindexen o.w.'!CK$34=0,NA(),'Materiaalindexen o.w.'!CK39/'Materiaalindexen o.w.'!CK$34),NA()) -> 1.133132448 | CU113: =IFERROR(IF('Materiaalindexen o.w.'!CL39/'Materiaalindexen o.w.'!CL$34=0,NA(),'Materiaalindexen o.w.'!CL39/'Materiaalindexen o.w.'!CL$34),NA()) -> 1.174183976 | CV113: =IFERROR(IF('Materiaalindexen o.w.'!CM39/'Materiaalindexen o.w.'!CM$34=0,NA(),'Materiaalindexen o.w.'!CM39/'Materiaalindexen o.w.'!CM$34),NA()) -> 1.030000867 | CW113: =IFERROR(IF('Materiaalindexen o.w.'!CN39/'Materiaalindexen o.w.'!CN$34=0,NA(),'Materiaalindexen o.w.'!CN39/'Materiaalindexen o.w.'!CN$34),NA()) -> 1.027548831 | CX113: =IFERROR(IF('Materiaalindexen o.w.'!CO39/'Materiaalindexen o.w.'!CO$34=0,NA(),'Materiaalindexen o.w.'!CO39/'Materiaalindexen o.w.'!CO$34),NA()) -> 1.023395055 | CY113: =IFERROR(IF('Materiaalindexen o.w.'!CP39/'Materiaalindexen o.w.'!CP$34=0,NA(),'Materiaalindexen o.w.'!CP39/'Materiaalindexen o.w.'!CP$34),NA()) -> 1.072056442 | CZ113: =IFERROR(IF('Materiaalindexen o.w.'!CQ39/'Materiaalindexen o.w.'!CQ$34=0,NA(),'Materiaalindexen o.w.'!CQ39/'Materiaalindexen o.w.'!CQ$34),NA()) -> 1.09301199 | DA113: =IFERROR(IF('Materiaalindexen o.w.'!CR39/'Materiaalindexen o.w.'!CR$34=0,NA(),'Materiaalindexen o.w.'!CR39/'Materiaalindexen o.w.'!CR$34),NA()) ->  | DB113: =IFERROR(IF('Materiaalindexen o.w.'!CS39/'Materiaalindexen o.w.'!CS$34=0,NA(),'Materiaalindexen o.w.'!CS39/'Materiaalindexen o.w.'!CS$34),NA()) ->  | DC113: =IFERROR(IF('Materiaalindexen o.w.'!CT39/'Materiaalindexen o.w.'!CT$34=0,NA(),'Materiaalindexen o.w.'!CT39/'Materiaalindexen o.w.'!CT$34),NA()) ->  | DD113: =IFERROR(IF('Materiaalindexen o.w.'!CU39/'Materiaalindexen o.w.'!CU$34=0,NA(),'Materiaalindexen o.w.'!CU39/'Materiaalindexen o.w.'!CU$34),NA()) ->  | DE113: =IFERROR(IF('Grymafer indexen'!D38/'Grymafer indexen'!D$33=0,NA(),'Grymafer indexen'!D38/'Grymafer indexen'!D$33),NA()) -> 0.9614791988 | DF113: =IFERROR(IF('Grymafer indexen'!E38/'Grymafer indexen'!E$33=0,NA(),'Grymafer indexen'!E38/'Grymafer indexen'!E$33),NA()) -> 0.9675324675 | DG113: =IFERROR(IF('Grymafer indexen'!F38/'Grymafer indexen'!F$33=0,NA(),'Grymafer indexen'!F38/'Grymafer indexen'!F$33),NA()) -> 0.9721913237 | DH113: =IFERROR(IF('Grymafer indexen'!G38/'Grymafer indexen'!G$33=0,NA(),'Grymafer indexen'!G38/'Grymafer indexen'!G$33),NA()) -> 0.975483871 | DI113: =IFERROR(IF('Materiaalindexen o.w.'!#REF!/'Materiaalindexen o.w.'!#REF!=0,NA(),'Materiaalindexen o.w.'!#REF!/'Materiaalindexen o.w.'!#REF!),NA()) ->  | DJ113: =IFERROR(IF('Materiaalindexen o.w.'!#REF!/'Materiaalindexen o.w.'!#REF!=0,NA(),'Materiaalindexen o.w.'!#REF!/'Materiaalindexen o.w.'!#REF!),NA()) ->  | DK113: =IFERROR(IF('Materiaalindexen o.w.'!#REF!/'Materiaalindexen o.w.'!#REF!=0,NA(),'Materiaalindexen o.w.'!#REF!/'Materiaalindexen o.w.'!#REF!),NA()) ->  | DL113: =IFERROR(IF('Materiaalindexen o.w.'!#REF!/'Materiaalindexen o.w.'!#REF!=0,NA(),'Materiaalindexen o.w.'!#REF!/'Materiaalindexen o.w.'!#REF!),NA()) ->  | DM113: =IFERROR(IF('Materiaalindexen o.w.'!#REF!/'Materiaalindexen o.w.'!#REF!=0,NA(),'Materiaalindexen o.w.'!#REF!/'Materiaalindexen o.w.'!#REF!),NA()) ->  | DN113: =IFERROR(IF('Materiaalindexen o.w.'!#REF!/'Materiaalindexen o.w.'!#REF!=0,NA(),'Materiaalindexen o.w.'!#REF!/'Materiaalindexen o.w.'!#REF!),NA()) ->  | DO113: =IFERROR(IF('Materiaalindexen o.w.'!#REF!/'Materiaalindexen o.w.'!#REF!=0,NA(),'Materiaalindexen o.w.'!#REF!/'Materiaalindexen o.w.'!#REF!),NA()) ->  | DP113: =IFERROR(IF('Materiaalindexen o.w.'!#REF!/'Materiaalindexen o.w.'!#REF!=0,NA(),'Materiaalindexen o.w.'!#REF!/'Materiaalindexen o.w.'!#REF!),NA()) ->  | DS113: =Standaardindexen!C36 -> 2018-06-01 | DT113: =IFERROR(IF('Indexen goederen & diensten'!D39/'Indexen goederen & diensten'!D$34=0,NA(),'Indexen goederen & diensten'!D39/'Indexen goederen & diensten'!D$34),NA()) -> 1.00619469 | DU113: =IFERROR(IF('Indexen goederen & diensten'!E39/'Indexen goederen & diensten'!E$34=0,NA(),'Indexen goederen & diensten'!E39/'Indexen goederen & diensten'!E$34),NA()) -> 1.05861244 | DV113: =IFERROR(IF('Indexen goederen & diensten'!F39/'Indexen goederen & diensten'!F$34=0,NA(),'Indexen goederen & diensten'!F39/'Indexen goederen & diensten'!F$34),NA()) -> 1.023430178 | DW113: =IFERROR(IF('Indexen goederen & diensten'!G39/'Indexen goederen & diensten'!G$34=0,NA(),'Indexen goederen & diensten'!G39/'Indexen goederen & diensten'!G$34),NA()) -> 0.9990740741 | DX113: =IFERROR(IF('Indexen goederen & diensten'!H39/'Indexen goederen & diensten'!H$34=0,NA(),'Indexen goederen & diensten'!H39/'Indexen goederen & diensten'!H$34),NA()) -> 1.00170503 | DY113: =IFERROR(IF('Indexen goederen & diensten'!I39/'Indexen goederen & diensten'!I$34=0,NA(),'Indexen goederen & diensten'!I39/'Indexen goederen & diensten'!I$34),NA()) -> 0.9680111266 | DZ113: =IFERROR(IF('Indexen goederen & diensten'!J39/'Indexen goederen & diensten'!J$34=0,NA(),'Indexen goederen & diensten'!J39/'Indexen goederen & diensten'!J$34),NA()) -> 1.003676471 | EA113: =IFERROR(IF('Indexen goederen & diensten'!K39/'Indexen goederen & diensten'!K$34=0,NA(),'Indexen goederen & diensten'!K39/'Indexen goederen & diensten'!K$34),NA()) -> 0.9955357143 | EB113: =IFERROR(IF('Indexen goederen & diensten'!L39/'Indexen goederen & diensten'!L$34=0,NA(),'Indexen goederen & diensten'!L39/'Indexen goederen & diensten'!L$34),NA()) -> 1 | EC113: =IFERROR(IF('Indexen goederen & diensten'!M39/'Indexen goederen & diensten'!M$34=0,NA(),'Indexen goederen & diensten'!M39/'Indexen goederen & diensten'!M$34),NA()) -> 1.006161972 | ED113: =IFERROR(IF('Indexen goederen & diensten'!N39/'Indexen goederen & diensten'!N$34=0,NA(),'Indexen goederen & diensten'!N39/'Indexen goederen & diensten'!N$34),NA()) -> 1.004052685 | EE113: =IFERROR(IF('Indexen goederen & diensten'!O39/'Indexen goederen & diensten'!O$34=0,NA(),'Indexen goederen & diensten'!O39/'Indexen goederen & diensten'!O$34),NA()) -> 1 | EF113: =IFERROR(IF('Indexen goederen & diensten'!P39/'Indexen goederen & diensten'!P$34=0,NA(),'Indexen goederen & diensten'!P39/'Indexen goederen & diensten'!P$34),NA()) -> 1.024916944 | EG113: =IFERROR(IF('Indexen goederen & diensten'!Q39/'Indexen goederen & diensten'!Q$34=0,NA(),'Indexen goederen & diensten'!Q39/'Indexen goederen & diensten'!Q$34),NA()) -> 1.019695613 | EH113: =IFERROR(IF('Indexen goederen & diensten'!R39/'Indexen goederen & diensten'!R$34=0,NA(),'Indexen goederen & diensten'!R39/'Indexen goederen & diensten'!R$34),NA()) -> 1.016997167 | EI113: =IFERROR(IF('Indexen goederen & diensten'!S39/'Indexen goederen & diensten'!S$34=0,NA(),'Indexen goederen & diensten'!S39/'Indexen goederen & diensten'!S$34),NA()) -> 1.022321429 | EJ113: =IFERROR(IF('Indexen goederen & diensten'!T39/'Indexen goederen & diensten'!T$34=0,NA(),'Indexen goederen & diensten'!T39/'Indexen goederen & diensten'!T$34),NA()) -> 1.028871391 | EK113: =IFERROR(IF('Indexen goederen & diensten'!U39/'Indexen goederen & diensten'!U$34=0,NA(),'Indexen goederen & diensten'!U39/'Indexen goederen & diensten'!U$34),NA()) -> 1.036777583 | EL113: =IFERROR(IF('Indexen goederen & diensten'!V39/'Indexen goederen & diensten'!V$34=0,NA(),'Indexen goederen & diensten'!V39/'Indexen goederen & diensten'!V$34),NA()) -> 1.050139276 | EM113: =IFERROR(IF('Indexen goederen & diensten'!W39/'Indexen goederen & diensten'!W$34=0,NA(),'Indexen goederen & diensten'!W39/'Indexen goederen & diensten'!W$34),NA()) -> 1.008006405 | EN113: =IFERROR(IF('Indexen goederen & diensten'!X39/'Indexen goederen & diensten'!X$34=0,NA(),'Indexen goederen & diensten'!X39/'Indexen goederen & diensten'!X$34),NA()) -> 1.056245435 | EO113: =IFERROR(IF('Indexen goederen & diensten'!Y39/'Indexen goederen & diensten'!Y$34=0,NA(),'Indexen goederen & diensten'!Y39/'Indexen goederen & diensten'!Y$34),NA()) -> 1.007778738 | EP113: =IFERROR(IF('Indexen goederen & diensten'!Z39/'Indexen goederen & diensten'!Z$34=0,NA(),'Indexen goederen & diensten'!Z39/'Indexen goederen & diensten'!Z$34),NA()) -> 0.9759656652 | EQ113: =IFERROR(IF('Indexen goederen & diensten'!AA39/'Indexen goederen & diensten'!AA$34=0,NA(),'Indexen goederen & diensten'!AA39/'Indexen goederen & diensten'!AA$34),NA()) -> 0.8878416588 | ER113: =IFERROR(IF('Indexen goederen & diensten'!AB39/'Indexen goederen & diensten'!AB$34=0,NA(),'Indexen goederen & diensten'!AB39/'Indexen goederen & diensten'!AB$34),NA()) -> 1.02698145 | ES113: =IFERROR(IF('Indexen goederen & diensten'!AC39/'Indexen goederen & diensten'!AC$34=0,NA(),'Indexen goederen & diensten'!AC39/'Indexen goederen & diensten'!AC$34),NA()) -> 1.038006757 | ET113: =IFERROR(IF('Indexen goederen & diensten'!AD39/'Indexen goederen & diensten'!AD$34=0,NA(),'Indexen goederen & diensten'!AD39/'Indexen goederen & diensten'!AD$34),NA()) -> 1.024513948 | EU113: =IFERROR(IF('Indexen goederen & diensten'!AE39/'Indexen goederen & diensten'!AE$34=0,NA(),'Indexen goederen & diensten'!AE39/'Indexen goederen & diensten'!AE$34),NA()) -> 1.025902669 | EV113: =IFERROR(IF('Indexen goederen & diensten'!AF39/'Indexen goederen & diensten'!AF$34=0,NA(),'Indexen goederen & diensten'!AF39/'Indexen goederen & diensten'!AF$34),NA()) -> 1.000868056 | EW113: =IFERROR(IF('Indexen goederen & diensten'!AG39/'Indexen goederen & diensten'!AG$34=0,NA(),'Indexen goederen & diensten'!AG39/'Indexen goederen & diensten'!AG$34),NA()) -> 1.025962399 | EX113: =IFERROR(IF('Indexen goederen & diensten'!AH39/'Indexen goederen & diensten'!AH$34=0,NA(),'Indexen goederen & diensten'!AH39/'Indexen goederen & diensten'!AH$34),NA()) -> 1.110215054 | EY113: =IFERROR(IF('Indexen goederen & diensten'!AI39/'Indexen goederen & diensten'!AI$34=0,NA(),'Indexen goederen & diensten'!AI39/'Indexen goederen & diensten'!AI$34),NA()) -> 1.019264448 | EZ113: =IFERROR(IF('Indexen goederen & diensten'!AJ39/'Indexen goederen & diensten'!AJ$34=0,NA(),'Indexen goederen & diensten'!AJ39/'Indexen goederen & diensten'!AJ$34),NA()) -> 1.033591731 | FA113: =IFERROR(IF('Indexen goederen & diensten'!AK39/'Indexen goederen & diensten'!AK$34=0,NA(),'Indexen goederen & diensten'!AK39/'Indexen goederen & diensten'!AK$34),NA()) -> 0.9440124417 | FB113: =IFERROR(IF('Indexen goederen & diensten'!AL39/'Indexen goederen & diensten'!AL$34=0,NA(),'Indexen goederen & diensten'!AL39/'Indexen goederen & diensten'!AL$34),NA()) -> 0.9983879635 | FC113: =IFERROR(IF('Indexen goederen & diensten'!AM39/'Indexen goederen & diensten'!AM$34=0,NA(),'Indexen goederen & diensten'!AM39/'Indexen goederen & diensten'!AM$34),NA()) -> 1.057843996 | FD113: =IFERROR(IF('Indexen goederen & diensten'!AN39/'Indexen goederen & diensten'!AN$34=0,NA(),'Indexen goederen & diensten'!AN39/'Indexen goederen & diensten'!AN$34),NA()) -> 1.00233463 | FE113: =IFERROR(IF('Indexen goederen & diensten'!AO39/'Indexen goederen & diensten'!AO$34=0,NA(),'Indexen goederen & diensten'!AO39/'Indexen goederen & diensten'!AO$34),NA()) -> 1.008857396 | FF113: =IFERROR(IF('Indexen goederen & diensten'!AP39/'Indexen goederen & diensten'!AP$34=0,NA(),'Indexen goederen & diensten'!AP39/'Indexen goederen & diensten'!AP$34),NA()) -> 0.9982222222 | FG113: =IFERROR(IF('Indexen goederen & diensten'!AQ39/'Indexen goederen & diensten'!AQ$34=0,NA(),'Indexen goederen & diensten'!AQ39/'Indexen goederen & diensten'!AQ$34),NA()) -> 1.009751773 | FH113: =IFERROR(IF('Indexen goederen & diensten'!AR39/'Indexen goederen & diensten'!AR$34=0,NA(),'Indexen goederen & diensten'!AR39/'Indexen goederen & diensten'!AR$34),NA()) -> 1.006896552 | FI113: =IFERROR(IF('Indexen goederen & diensten'!AS39/'Indexen goederen & diensten'!AS$34=0,NA(),'Indexen goederen & diensten'!AS39/'Indexen goederen & diensten'!AS$34),NA()) -> 1.019809826 | FJ113: =IFERROR(IF('Indexen goederen & diensten'!AT39/'Indexen goederen & diensten'!AT$34=0,NA(),'Indexen goederen & diensten'!AT39/'Indexen goederen & diensten'!AT$34),NA()) -> 1.02901354 | FK113: =IFERROR(IF('Indexen goederen & diensten'!AU39/'Indexen goederen & diensten'!AU$34=0,NA(),'Indexen goederen & diensten'!AU39/'Indexen goederen & diensten'!AU$34),NA()) -> 1.026565465 | FL113: =IFERROR(IF('Indexen goederen & diensten'!AV39/'Indexen goederen & diensten'!AV$34=0,NA(),'Indexen goederen & diensten'!AV39/'Indexen goederen & diensten'!AV$34),NA()) -> 1.037260826 | FM113: =IFERROR(IF('Indexen goederen & diensten'!AW39/'Indexen goederen & diensten'!AW$34=0,NA(),'Indexen goederen & diensten'!AW39/'Indexen goederen & diensten'!AW$34),NA()) -> 1.117977528 | FN113: =IFERROR(IF('Indexen goederen & diensten'!AX39/'Indexen goederen & diensten'!AX$34=0,NA(),'Indexen goederen & diensten'!AX39/'Indexen goederen & diensten'!AX$34),NA()) -> 1.01453958 | FO113: =IFERROR(IF('Indexen goederen & diensten'!AY39/'Indexen goederen & diensten'!AY$34=0,NA(),'Indexen goederen & diensten'!AY39/'Indexen goederen & diensten'!AY$34),NA()) -> 1.01453958 | FP113: =IFERROR(IF('Indexen goederen & diensten'!AZ39/'Indexen goederen & diensten'!AZ$34=0,NA(),'Indexen goederen & diensten'!AZ39/'Indexen goederen & diensten'!AZ$34),NA()) -> 1.029585799 | FQ113: =IFERROR(IF('Indexen goederen & diensten'!BA39/'Indexen goederen & diensten'!BA$34=0,NA(),'Indexen goederen & diensten'!BA39/'Indexen goederen & diensten'!BA$34),NA()) -> 1.047227926 | FR113: =IFERROR(IF('Indexen goederen & diensten'!BB39/'Indexen goederen & diensten'!BB$34=0,NA(),'Indexen goederen & diensten'!BB39/'Indexen goederen & diensten'!BB$34),NA()) -> 1.02266289 | FS113: =IFERROR(IF('Indexen goederen & diensten'!BC39/'Indexen goederen & diensten'!BC$34=0,NA(),'Indexen goederen & diensten'!BC39/'Indexen goederen & diensten'!BC$34),NA()) -> 1.028284672 | FT113: =IFERROR(IF('Indexen goederen & diensten'!BD39/'Indexen goederen & diensten'!BD$34=0,NA(),'Indexen goederen & diensten'!BD39/'Indexen goederen & diensten'!BD$34),NA()) -> 1.017489712 | FU113: =IFERROR(IF('Indexen goederen & diensten'!BE39/'Indexen goederen & diensten'!BE$34=0,NA(),'Indexen goederen & diensten'!BE39/'Indexen goederen & diensten'!BE$34),NA()) -> 0.996039604 | FV113: =IFERROR(IF('Indexen goederen & diensten'!BF39/'Indexen goederen & diensten'!BF$34=0,NA(),'Indexen goederen & diensten'!BF39/'Indexen goederen & diensten'!BF$34),NA()) -> 1.003734827 | FW113: =IFERROR(IF('Indexen goederen & diensten'!BG39/'Indexen goederen & diensten'!BG$34=0,NA(),'Indexen goederen & diensten'!BG39/'Indexen goederen & diensten'!BG$34),NA()) -> 1.0304 | FX113: =IFERROR(IF('Indexen goederen & diensten'!BH39/'Indexen goederen & diensten'!BH$34=0,NA(),'Indexen goederen & diensten'!BH39/'Indexen goederen & diensten'!BH$34),NA()) -> 1.004893964 | FY113: =IFERROR(IF('Indexen goederen & diensten'!BI39/'Indexen goederen & diensten'!BI$34=0,NA(),'Indexen goederen & diensten'!BI39/'Indexen goederen & diensten'!BI$34),NA()) -> 1.0296875 | FZ113: =IFERROR(IF('Indexen goederen & diensten'!BJ39/'Indexen goederen & diensten'!BJ$34=0,NA(),'Indexen goederen & diensten'!BJ39/'Indexen goederen & diensten'!BJ$34),NA()) -> 0.9886255924 | GA113: =IFERROR(IF('Indexen goederen & diensten'!BK39/'Indexen goederen & diensten'!BK$34=0,NA(),'Indexen goederen & diensten'!BK39/'Indexen goederen & diensten'!BK$34),NA()) -> 0.9876893939 | GB113: =IFERROR(IF('Indexen goederen & diensten'!BL39/'Indexen goederen & diensten'!BL$34=0,NA(),'Indexen goederen & diensten'!BL39/'Indexen goederen & diensten'!BL$34),NA()) -> 0.9991438356 | GC113: =IFERROR(IF('Indexen goederen & diensten'!BM39/'Indexen goederen & diensten'!BM$34=0,NA(),'Indexen goederen & diensten'!BM39/'Indexen goederen & diensten'!BM$34),NA()) -> 1.001754386 | GD113: =IFERROR(IF('Indexen goederen & diensten'!BN39/'Indexen goederen & diensten'!BN$34=0,NA(),'Indexen goederen & diensten'!BN39/'Indexen goederen & diensten'!BN$34),NA()) -> 1.018442623 | GE113: =IFERROR(IF('Indexen goederen & diensten'!BO39/'Indexen goederen & diensten'!BO$34=0,NA(),'Indexen goederen & diensten'!BO39/'Indexen goederen & diensten'!BO$34),NA()) -> 1.024021352 | GF113: =IFERROR(IF('Indexen goederen & diensten'!BP39/'Indexen goederen & diensten'!BP$34=0,NA(),'Indexen goederen & diensten'!BP39/'Indexen goederen & diensten'!BP$34),NA()) -> 1.026794258 | GG113: =IFERROR(IF('Indexen goederen & diensten'!BQ39/'Indexen goederen & diensten'!BQ$34=0,NA(),'Indexen goederen & diensten'!BQ39/'Indexen goederen & diensten'!BQ$34),NA()) -> 1.007194245 | GH113: =IFERROR(IF('Indexen goederen & diensten'!BR39/'Indexen goederen & diensten'!BR$34=0,NA(),'Indexen goederen & diensten'!BR39/'Indexen goederen & diensten'!BR$34),NA()) -> 1.010091743 | GI113: =IFERROR(IF('Indexen goederen & diensten'!BS39/'Indexen goederen & diensten'!BS$34=0,NA(),'Indexen goederen & diensten'!BS39/'Indexen goederen & diensten'!BS$34),NA()) -> 1.00174216 | GJ113: =IFERROR(IF('Indexen goederen & diensten'!BT39/'Indexen goederen & diensten'!BT$34=0,NA(),'Indexen goederen & diensten'!BT39/'Indexen goederen & diensten'!BT$34),NA()) -> 1.022913257 | GK113: =IFERROR(IF('Indexen goederen & diensten'!BU39/'Indexen goederen & diensten'!BU$34=0,NA(),'Indexen goederen & diensten'!BU39/'Indexen goederen & diensten'!BU$34),NA()) -> 1.038528897 | GL113: =IFERROR(IF('Indexen goederen & diensten'!BV39/'Indexen goederen & diensten'!BV$34=0,NA(),'Indexen goederen & diensten'!BV39/'Indexen goederen & diensten'!BV$34),NA()) -> 1.022727273 | GM113: =IFERROR(IF('Indexen goederen & diensten'!BW39/'Indexen goederen & diensten'!BW$34=0,NA(),'Indexen goederen & diensten'!BW39/'Indexen goederen & diensten'!BW$34),NA()) -> 1 | GN113: =IFERROR(IF('Indexen goederen & diensten'!BX39/'Indexen goederen & diensten'!BX$34=0,NA(),'Indexen goederen & diensten'!BX39/'Indexen goederen & diensten'!BX$34),NA()) -> 1.020869565 | GO113: =IFERROR(IF('Indexen goederen & diensten'!BY39/'Indexen goederen & diensten'!BY$34=0,NA(),'Indexen goederen & diensten'!BY39/'Indexen goederen & diensten'!BY$34),NA()) -> 1.017215569 | GP113: =IFERROR(IF('Indexen goederen & diensten'!BZ39/'Indexen goederen & diensten'!BZ$34=0,NA(),'Indexen goederen & diensten'!BZ39/'Indexen goederen & diensten'!BZ$34),NA()) -> 1.019572954 | GQ113: =IFERROR(IF('Indexen goederen & diensten'!CA39/'Indexen goederen & diensten'!CA$34=0,NA(),'Indexen goederen & diensten'!CA39/'Indexen goederen & diensten'!CA$34),NA()) -> 1.058187864 | GR113: =IFERROR(IF('Indexen goederen & diensten'!CB39/'Indexen goederen & diensten'!CB$34=0,NA(),'Indexen goederen & diensten'!CB39/'Indexen goederen & diensten'!CB$34),NA()) -> 1.004643963 | GS113: =IFERROR(IF('Indexen goederen & diensten'!CC39/'Indexen goederen & diensten'!CC$34=0,NA(),'Indexen goederen & diensten'!CC39/'Indexen goederen & diensten'!CC$34),NA()) -> 1.005314438 | GT113: =IFERROR(IF('Indexen goederen & diensten'!CD39/'Indexen goederen & diensten'!CD$34=0,NA(),'Indexen goederen & diensten'!CD39/'Indexen goederen & diensten'!CD$34),NA()) -> 1.011948529 | GU113: =IFERROR(IF('Indexen goederen & diensten'!CE39/'Indexen goederen & diensten'!CE$34=0,NA(),'Indexen goederen & diensten'!CE39/'Indexen goederen & diensten'!CE$34),NA()) -> 1.0039801 | GV113: =IFERROR(IF('Indexen goederen & diensten'!CF39/'Indexen goederen & diensten'!CF$34=0,NA(),'Indexen goederen & diensten'!CF39/'Indexen goederen & diensten'!CF$34),NA()) -> 1.006145742 | GW113: =IFERROR(IF('Indexen goederen & diensten'!CG39/'Indexen goederen & diensten'!CG$34=0,NA(),'Indexen goederen & diensten'!CG39/'Indexen goederen & diensten'!CG$34),NA()) -> 1 | GX113: =IFERROR(IF('Indexen goederen & diensten'!CH39/'Indexen goederen & diensten'!CH$34=0,NA(),'Indexen goederen & diensten'!CH39/'Indexen goederen & diensten'!CH$34),NA()) -> 1.004444444 | GY113: =IFERROR(IF('Indexen goederen & diensten'!CI39/'Indexen goederen & diensten'!CI$34=0,NA(),'Indexen goederen & diensten'!CI39/'Indexen goederen & diensten'!CI$34),NA()) -> 1.017526777 | GZ113: =IFERROR(IF('Indexen goederen & diensten'!CJ39/'Indexen goederen & diensten'!CJ$34=0,NA(),'Indexen goederen & diensten'!CJ39/'Indexen goederen & diensten'!CJ$34),NA()) -> 1.001052632 | HA113: =IFERROR(IF('Indexen goederen & diensten'!CK39/'Indexen goederen & diensten'!CK$34=0,NA(),'Indexen goederen & diensten'!CK39/'Indexen goederen & diensten'!CK$34),NA()) -> 0.9829123328 | HB113: =IFERROR(IF('Indexen goederen & diensten'!CL39/'Indexen goederen & diensten'!CL$34=0,NA(),'Indexen goederen & diensten'!CL39/'Indexen goederen & diensten'!CL$34),NA()) -> 0.9929971989 | HC113: =IFERROR(IF('Indexen goederen & diensten'!CM39/'Indexen goederen & diensten'!CM$34=0,NA(),'Indexen goederen & diensten'!CM39/'Indexen goederen & diensten'!CM$34),NA()) -> 0.9502923977 | HD113: =IFERROR(IF('Indexen goederen & diensten'!CN39/'Indexen goederen & diensten'!CN$34=0,NA(),'Indexen goederen & diensten'!CN39/'Indexen goederen & diensten'!CN$34),NA()) -> 1.00090009 | HF113: =Tableau21[[#This Row],[datum]] -> 2018-06-01 | HG113: =IFERROR(IF(Standaardindexen!J36/Standaardindexen!J$31=0,NA(),Standaardindexen!J36/Standaardindexen!J$31),NA()) -> 0.9954946257 | HH113: =IFERROR(IF(Standaardindexen!K36/Standaardindexen!K$31=0,NA(),Standaardindexen!K36/Standaardindexen!K$31),NA()) -> 0.9956812919 | HI113: =IFERROR(IF(Standaardindexen!L36/Standaardindexen!L$31=0,NA(),Standaardindexen!L36/Standaardindexen!L$31),NA()) -> 0.9957119159 | HJ113: =IFERROR(IF(Standaardindexen!M36/Standaardindexen!M$31=0,NA(),Standaardindexen!M36/Standaardindexen!M$31),NA()) -> 0.9954899813 | HK113: =IFERROR(IF(Standaardindexen!N36/Standaardindexen!N$31=0,NA(),Standaardindexen!N36/Standaardindexen!N$31),NA()) -> 0.9956769626 | HL113: =IFERROR(IF(Standaardindexen!O36/Standaardindexen!O$31=0,NA(),Standaardindexen!O36/Standaardindexen!O$31),NA()) -> 0.9956762854 | HM113: =IFERROR(IF(Standaardindexen!P36/Standaardindexen!P$31=0,NA(),Standaardindexen!P36/Standaardindexen!P$31),NA()) -> 0.9952943499 | HN113: =IFERROR(IF(Standaardindexen!Q36/Standaardindexen!Q$31=0,NA(),Standaardindexen!Q36/Standaardindexen!Q$31),NA()) -> 0.9954907416 | HO113: =IFERROR(IF(Standaardindexen!R36/Standaardindexen!R$31=0,NA(),Standaardindexen!R36/Standaardindexen!R$31),NA()) -> 0.9954900205 | HP113: =IFERROR(IF(Standaardindexen!S36/Standaardindexen!S$31=0,NA(),Standaardindexen!S36/Standaardindexen!S$31),NA()) -> 0.995183141 | HQ113: =IFERROR(IF(Standaardindexen!T36/Standaardindexen!T$31=0,NA(),Standaardindexen!T36/Standaardindexen!T$31),NA()) -> 0.9953858652 | HR113: =IFERROR(IF(Standaardindexen!U36/Standaardindexen!U$31=0,NA(),Standaardindexen!U36/Standaardindexen!U$31),NA()) -> 0.9953851154 | HS113: =IFERROR(IF(Standaardindexen!V36/Standaardindexen!V$31=0,NA(),Standaardindexen!V36/Standaardindexen!V$31),NA()) -> 1.000795355 | HT113: =IFERROR(IF(Standaardindexen!W36/Standaardindexen!W$31=0,NA(),Standaardindexen!W36/Standaardindexen!W$31),NA()) -> 1.000747737 | HU113: =IFERROR(IF(Standaardindexen!X36/Standaardindexen!X$31=0,NA(),Standaardindexen!X36/Standaardindexen!X$31),NA()) -> 1.052807224 | HV113: =IFERROR(IF(Standaardindexen!Y36/Standaardindexen!Y$31=0,NA(),Standaardindexen!Y36/Standaardindexen!Y$31),NA()) -> 1.068114511 | HW113: =IFERROR(IF(Standaardindexen!Z36/Standaardindexen!Z$31=0,NA(),Standaardindexen!Z36/Standaardindexen!Z$31),NA()) -> 1.038026256 | HX113: =IFERROR(IF(Standaardindexen!AA36/Standaardindexen!AA$31=0,NA(),Standaardindexen!AA36/Standaardindexen!AA$31),NA()) -> 1.058877986 | HY113: =IFERROR(IF(Standaardindexen!AB36/Standaardindexen!AB$31=0,NA(),Standaardindexen!AB36/Standaardindexen!AB$31),NA()) -> 1.041469194 | HZ113: =IFERROR(IF(Standaardindexen!AC36/Standaardindexen!AC$31=0,NA(),Standaardindexen!AC36/Standaardindexen!AC$31),NA()) -> 1.069134792 | IA113: =Tableau21[[#This Row],[prijsevolutie - volgens prijsherzieningsformule -index i 2021]] -> 1.00431 | IB113: =Tableau21[[#This Row],[prijsevolutie - volgens prijsherzieningsformule -index i]] -> 0.9996 | IC113: =Tableau21[[#This Row],[prijsherzieningsformule - index i 2021]] -> 1.00497 | ID113: =Tableau21[[#This Row],[prijsherzieningsformule - index i]] -> 1.00497 | IE113: =IFERROR(IF('Indexeringen Lonen per PC'!BZ38/'Indexeringen Lonen per PC'!BZ$33=0,NA(),'Indexeringen Lonen per PC'!BZ38/'Indexeringen Lonen per PC'!BZ$33),NA()) -> 1.004216093 | IF113: =IFERROR(IF('Indexeringen Lonen per PC'!CA38/'Indexeringen Lonen per PC'!CA$33=0,NA(),'Indexeringen Lonen per PC'!CA38/'Indexeringen Lonen per PC'!CA$33),NA()) -> 1 | IG113: =IFERROR(IF('Indexeringen Lonen per PC'!CB38/'Indexeringen Lonen per PC'!CB$33=0,NA(),'Indexeringen Lonen per PC'!CB38/'Indexeringen Lonen per PC'!CB$33),NA()) -> 1 | IH113: =IFERROR(IF('Indexeringen Lonen per PC'!CC38/'Indexeringen Lonen per PC'!CC$33=0,NA(),'Indexeringen Lonen per PC'!CC38/'Indexeringen Lonen per PC'!CC$33),NA()) -> 1.019855596 | II113: =IFERROR(IF('Indexeringen Lonen per PC'!CD38/'Indexeringen Lonen per PC'!CD$33=0,NA(),'Indexeringen Lonen per PC'!CD38/'Indexeringen Lonen per PC'!CD$33),NA()) -> 1 | IJ113: =IFERROR(IF('Indexeringen Lonen per PC'!CE38/'Indexeringen Lonen per PC'!CE$33=0,NA(),'Indexeringen Lonen per PC'!CE38/'Indexeringen Lonen per PC'!CE$33),NA()) -> 1 | IK113: =IFERROR(IF('Indexeringen Lonen per PC'!CF38/'Indexeringen Lonen per PC'!CF$33=0,NA(),'Indexeringen Lonen per PC'!CF38/'Indexeringen Lonen per PC'!CF$33),NA()) -> 1 | IL113: =IFERROR(IF('Indexeringen Lonen per PC'!CG38/'Indexeringen Lonen per PC'!CG$33=0,NA(),'Indexeringen Lonen per PC'!CG38/'Indexeringen Lonen per PC'!CG$33),NA()) -> 1.008928571 | IM113: =IFERROR(IF('Indexeringen Lonen per PC'!CH38/'Indexeringen Lonen per PC'!CH$33=0,NA(),'Indexeringen Lonen per PC'!CH38/'Indexeringen Lonen per PC'!CH$33),NA()) -> 1 | IN113: =IFERROR(IF('Indexeringen Lonen per PC'!CI38/'Indexeringen Lonen per PC'!CI$33=0,NA(),'Indexeringen Lonen per PC'!CI38/'Indexeringen Lonen per PC'!CI$33),NA()) -> 1
